Body,Body Name,Transaction No,Invoice Ref.,Vendor Name,Expense,Expense Type,Date,Amount
http://statistics.data.gov.uk/id/local-authority-district/23UB,Cheltenham Borough Council,455355,143474,A&E FIRE EQUIPMENT LTD,C-C22120-1808,Sports & Open S-RM-Routine works,17 August 2011,10.34
http://statistics.data.gov.uk/id/local-authority-district/23UB,Cheltenham Borough Council,455357,143476,A&E FIRE EQUIPMENT LTD,C-C22120-1808,Sports & Open S-RM-Routine works,17 August 2011,2.82
http://statistics.data.gov.uk/id/local-authority-district/23UB,Cheltenham Borough Council,455358,143477,A&E FIRE EQUIPMENT LTD,C-C22120-1808,Sports & Open S-RM-Routine works,17 August 2011,3.76
http://statistics.data.gov.uk/id/local-authority-district/23UB,Cheltenham Borough Council,455356,143475,A&E FIRE EQUIPMENT LTD,C-C22120-1808,Sports & Open S-RM-Routine works,17 August 2011,6.58
http://statistics.data.gov.uk/id/local-authority-district/23UB,Cheltenham Borough Council,455359,143478,A&E FIRE EQUIPMENT LTD,C-C22120-1808,Sports & Open S-RM-Routine works,17 August 2011,3.76
http://statistics.data.gov.uk/id/local-authority-district/23UB,Cheltenham Borough Council,455363,143482,A&E FIRE EQUIPMENT LTD,C-C22120-1808,Sports & Open S-RM-Routine works,17 August 2011,1.88
http://statistics.data.gov.uk/id/local-authority-district/23UB,Cheltenham Borough Council,455366,143486,A&E FIRE EQUIPMENT LTD,C-C22120-1808,Sports & Open S-RM-Routine works,17 August 2011,9.40
http://statistics.data.gov.uk/id/local-authority-district/23UB,Cheltenham Borough Council,455367,143487,A&E FIRE EQUIPMENT LTD,C-C22120-1808,Sports & Open S-RM-Routine works,17 August 2011,2.82
http://statistics.data.gov.uk/id/local-authority-district/23UB,Cheltenham Borough Council,455364,143484,A&E FIRE EQUIPMENT LTD,C-C22120-1808,Sports & Open S-RM-Routine works,17 August 2011,1.88
http://statistics.data.gov.uk/id/local-authority-district/23UB,Cheltenham Borough Council,455360,143479,A&E FIRE EQUIPMENT LTD,C-C22120-1808,Sports & Open S-RM-Routine works,17 August 2011,10.34
http://statistics.data.gov.uk/id/local-authority-district/23UB,Cheltenham Borough Council,455922,143483,A&E FIRE EQUIPMENT LTD,C-C22120-1808,Sports & Open S-RM-Routine works,17 August 2011,6.58
http://statistics.data.gov.uk/id/local-authority-district/23UB,Cheltenham Borough Council,455361,143480,A&E FIRE EQUIPMENT LTD,C-C23140-1808,Public Convnces-RM-Routine works,17 August 2011,2.82
http://statistics.data.gov.uk/id/local-authority-district/23UB,Cheltenham Borough Council,455362,143481,A&E FIRE EQUIPMENT LTD,C-C23140-1808,Public Convnces-RM-Routine works,17 August 2011,2.82
http://statistics.data.gov.uk/id/local-authority-district/23UB,Cheltenham Borough Council,455365,143485,A&E FIRE EQUIPMENT LTD,C-C23140-1808,Public Convnces-RM-Routine works,17 August 2011,9.40
http://statistics.data.gov.uk/id/local-authority-district/23UB,Cheltenham Borough Council,455354,143473,A&E FIRE EQUIPMENT LTD,C-D13100-1808,Muni Off Blgs-RM-Routine works,17 August 2011,143.10
http://statistics.data.gov.uk/id/local-authority-district/23UB,Cheltenham Borough Council,455369,143565,A&E FIRE EQUIPMENT LTD,C-D13100-1808,Muni Off Blgs-RM-Routine works,17 August 2011,153.22
http://statistics.data.gov.uk/id/local-authority-district/23UB,Cheltenham Borough Council,455374,143007,A&E FIRE EQUIPMENT LTD,C-D13100-1808,Muni Off Blgs-RM-Routine works,17 August 2011,247.48
http://statistics.data.gov.uk/id/local-authority-district/23UB,Cheltenham Borough Council,455368,143506,A&E FIRE EQUIPMENT LTD,C-D13100-1808,Muni Off Blgs-RM-Routine works,17 August 2011,74.94
http://statistics.data.gov.uk/id/local-authority-district/23UB,Cheltenham Borough Council,455349,143181,A&E FIRE EQUIPMENT LTD,C-D13550-1115,Area Off -E.Hse-Fire prevention,17 August 2011,63.92
http://statistics.data.gov.uk/id/local-authority-district/23UB,Cheltenham Borough Council,455339,143072,A&E FIRE EQUIPMENT LTD,C-D14100-1808,Depot Building-RM-Routine works,17 August 2011,60.16
http://statistics.data.gov.uk/id/local-authority-district/23UB,Cheltenham Borough Council,455821,2066,A&E FIRE EQUIPMENT LTD,C-D14100-1808,Depot Building-RM-Routine works,17 August 2011,-205.69
http://statistics.data.gov.uk/id/local-authority-district/23UB,Cheltenham Borough Council,455822,141212,A&E FIRE EQUIPMENT LTD,C-D14100-1808,Depot Building-RM-Routine works,17 August 2011,"1,034.30"
http://statistics.data.gov.uk/id/local-authority-district/23UB,Cheltenham Borough Council,455338,143071,A&E FIRE EQUIPMENT LTD,C-D30200-1124,Misc Props & Ld-Berkeley Mews  Repairs,17 August 2011,8.46
http://statistics.data.gov.uk/id/local-authority-district/23UB,Cheltenham Borough Council,455337,143070,A&E FIRE EQUIPMENT LTD,C-D33950-1808,Resource Centre-RM-Routine works,17 August 2011,5.64
http://statistics.data.gov.uk/id/local-authority-district/23UB,Cheltenham Borough Council,455336,143049,A&E FIRE EQUIPMENT LTD,C-E21100-1808,Car Prks-Off St-RM-Routine works,17 August 2011,"1,164.67"
http://statistics.data.gov.uk/id/local-authority-district/23UB,Cheltenham Borough Council,455341,143155,A&E FIRE EQUIPMENT LTD,C-E21100-1808,Car Prks-Off St-RM-Routine works,17 August 2011,81.78
http://statistics.data.gov.uk/id/local-authority-district/23UB,Cheltenham Borough Council,455372,143157,A&E FIRE EQUIPMENT LTD,C-E21100-1808,Car Prks-Off St-RM-Routine works,17 August 2011,344.25
http://statistics.data.gov.uk/id/local-authority-district/23UB,Cheltenham Borough Council,455342,143156,A&E FIRE EQUIPMENT LTD,C-E21100-1808,Car Prks-Off St-RM-Routine works,17 August 2011,61.60
http://statistics.data.gov.uk/id/local-authority-district/23UB,Cheltenham Borough Council,455340,143085,A&E FIRE EQUIPMENT LTD,C-E21400-3103,Shopmobility-Equipment repairs & maint,17 August 2011,12.00
http://statistics.data.gov.uk/id/local-authority-district/23UB,Cheltenham Borough Council,455353,143329,A&E FIRE EQUIPMENT LTD,C-E21400-3103,Shopmobility-Equipment repairs & maint,17 August 2011,1.50
http://statistics.data.gov.uk/id/local-authority-district/23UB,Cheltenham Borough Council,455478,142825,A&E FIRE EQUIPMENT LTD,C-H46200-1104,Fire. Syst.Serv-Council House repairs,17 August 2011,57.07
http://statistics.data.gov.uk/id/local-authority-district/23UB,Cheltenham Borough Council,455344,143175,A&E FIRE EQUIPMENT LTD,C-L11500-1808,Rec Facilities-RM-Routine works,17 August 2011,589.08
http://statistics.data.gov.uk/id/local-authority-district/23UB,Cheltenham Borough Council,455350,143264,A&E FIRE EQUIPMENT LTD,C-L11500-1808,Rec Facilities-RM-Routine works,17 August 2011,188.08
http://statistics.data.gov.uk/id/local-authority-district/23UB,Cheltenham Borough Council,455371,143579,A&E FIRE EQUIPMENT LTD,C-L11500-1808,Rec Facilities-RM-Routine works,17 August 2011,5.40
http://statistics.data.gov.uk/id/local-authority-district/23UB,Cheltenham Borough Council,455346,143177,A&E FIRE EQUIPMENT LTD,C-L11500-1808,Rec Facilities-RM-Routine works,17 August 2011,39.06
http://statistics.data.gov.uk/id/local-authority-district/23UB,Cheltenham Borough Council,455345,143176,A&E FIRE EQUIPMENT LTD,C-L11500-1808,Rec Facilities-RM-Routine works,17 August 2011,90.32
http://statistics.data.gov.uk/id/local-authority-district/23UB,Cheltenham Borough Council,455351,143322,A&E FIRE EQUIPMENT LTD,C-L21100-1808,Town Hall-RM-Routine works,17 August 2011,188.00
http://statistics.data.gov.uk/id/local-authority-district/23UB,Cheltenham Borough Council,455373,143645,A&E FIRE EQUIPMENT LTD,C-L21100-1808,Town Hall-RM-Routine works,17 August 2011,90.98
http://statistics.data.gov.uk/id/local-authority-district/23UB,Cheltenham Borough Council,455343,143158,A&E FIRE EQUIPMENT LTD,C-L21200-1808,Pump Room-RM-Routine works,17 August 2011,50.00
http://statistics.data.gov.uk/id/local-authority-district/23UB,Cheltenham Borough Council,455849,08/08/11,ALL ABOUT FUN,C-L16100-3178,Holiday Rec-Big Lottery Fund Expenditure,19 August 2011,"1,000.00"
http://statistics.data.gov.uk/id/local-authority-district/23UB,Cheltenham Borough Council,455054,51506,ALPHA COLOUR PRINTERS LTD,C-1T28F1-3406,The Manfreds-Printing-Promotion/Mkting,05 August 2011,54.00
http://statistics.data.gov.uk/id/local-authority-district/23UB,Cheltenham Borough Council,455111,51454,ALPHA COLOUR PRINTERS LTD,C-C22100-3401,Green Env Div-Printing - general,05 August 2011,165.00
http://statistics.data.gov.uk/id/local-authority-district/23UB,Cheltenham Borough Council,455163,51540,ALPHA COLOUR PRINTERS LTD,C-D21190-3403,O&S Committees-Printing-Committee Papers,05 August 2011,408.00
http://statistics.data.gov.uk/id/local-authority-district/23UB,Cheltenham Borough Council,455162,51545,ALPHA COLOUR PRINTERS LTD,C-D21190-3412,O&S Committees-Printing - Cabinet Papers,05 August 2011,300.00
http://statistics.data.gov.uk/id/local-authority-district/23UB,Cheltenham Borough Council,455012,51264,ALPHA COLOUR PRINTERS LTD,C-E36200-3410,On-St Car Prkng-Stationery & office supp,05 August 2011,157.00
http://statistics.data.gov.uk/id/local-authority-district/23UB,Cheltenham Borough Council,455288,51546,ALPHA COLOUR PRINTERS LTD,C-GCERP-3501,GO Capital Cost-Hire of outside services,11 August 2011,"1,071.00"
http://statistics.data.gov.uk/id/local-authority-district/23UB,Cheltenham Borough Council,454849,0745,ANDERSON CIVIL ENGINEERING UK LIMITED,C-D21250-3972,Civil Emergency-EU Restoration Fund,03 August 2011,"1,935.00"
http://statistics.data.gov.uk/id/local-authority-district/23UB,Cheltenham Borough Council,455642,0746,ANDERSON CIVIL ENGINEERING UK LIMITED,C-D21250-3972,Civil Emergency-EU Restoration Fund,03 August 2011,"6,850.00"
http://statistics.data.gov.uk/id/local-authority-district/23UB,Cheltenham Borough Council,454835,REDACTED,ANDREWS LETTING AND MANAGEMENT,C-H22400-3244,Homelessness-Supporting People,03 August 2011,550.00
http://statistics.data.gov.uk/id/local-authority-district/23UB,Cheltenham Borough Council,455607,10592,ARTFUL LIMITED,C-B51120-3920,Develt Con-Advertising,17 August 2011,"2,031.12"
http://statistics.data.gov.uk/id/local-authority-district/23UB,Cheltenham Borough Council,456092,13090,ART WORKS DESIGN CONSULTANTS (CHELT) LTD,C-L31100-3510,TIC-Promotion & Marketing,24 August 2011,"5,623.01"
http://statistics.data.gov.uk/id/local-authority-district/23UB,Cheltenham Borough Council,456091,13089,ART WORKS DESIGN CONSULTANTS (CHELT) LTD,C-L31100-3510,TIC-Promotion & Marketing,24 August 2011,162.50
http://statistics.data.gov.uk/id/local-authority-district/23UB,Cheltenham Borough Council,456090,13078,ART WORKS DESIGN CONSULTANTS (CHELT) LTD,C-L31100-3510,TIC-Promotion & Marketing,24 August 2011,35.00
http://statistics.data.gov.uk/id/local-authority-district/23UB,Cheltenham Borough Council,455447,1016719158,ARVAL UK LIMITED,C-N42250-3112,DSO Stores - Stock purchases,17 August 2011,31.03
http://statistics.data.gov.uk/id/local-authority-district/23UB,Cheltenham Borough Council,455446,1016719157,ARVAL UK LIMITED,C-N42250-3112,DSO Stores - Stock purchases,17 August 2011,"1,225.88"
http://statistics.data.gov.uk/id/local-authority-district/23UB,Cheltenham Borough Council,455924,11448,ASG UK SYSTEMS LIMITED,C-PM0030-R025,Pitt.Pump Room-Security Upgrades,19 August 2011,"10,519.00"
http://statistics.data.gov.uk/id/local-authority-district/23UB,Cheltenham Borough Council,456284,0076064,ATS EUROMASTER LTD,C-C24100-3501,Fleet Maint-Hire of outside services,31 August 2011,"3,153.94"
http://statistics.data.gov.uk/id/local-authority-district/23UB,Cheltenham Borough Council,455388,7234,AVM INTERNATIONAL,C-H22400-3501,Homelessness-Hire of outside services,17 August 2011,955.50
http://statistics.data.gov.uk/id/local-authority-district/23UB,Cheltenham Borough Council,455389,7230,AVM INTERNATIONAL,C-H22400-3501,Homelessness-Hire of outside services,17 August 2011,980.00
http://statistics.data.gov.uk/id/local-authority-district/23UB,Cheltenham Borough Council,455579,19234,BAM AGENCY LIMITED,C-L11500-3401,Rec Facilities-Printing - general,17 August 2011,37.40
http://statistics.data.gov.uk/id/local-authority-district/23UB,Cheltenham Borough Council,455579,19234,BAM AGENCY LIMITED,C-L11500-3401,Rec Facilities-Printing - general,17 August 2011,127.80
http://statistics.data.gov.uk/id/local-authority-district/23UB,Cheltenham Borough Council,455579,19234,BAM AGENCY LIMITED,C-L11500-3401,Rec Facilities-Printing - general,17 August 2011,7.12
http://statistics.data.gov.uk/id/local-authority-district/23UB,Cheltenham Borough Council,455579,19234,BAM AGENCY LIMITED,C-L11500-3510,Rec Facilities-Promotion & Marketing,17 August 2011,"1,500.00"
http://statistics.data.gov.uk/id/local-authority-district/23UB,Cheltenham Borough Council,455579,19234,BAM AGENCY LIMITED,C-L11500-3510,Rec Facilities-Promotion & Marketing,17 August 2011,200.00
http://statistics.data.gov.uk/id/local-authority-district/23UB,Cheltenham Borough Council,455579,19234,BAM AGENCY LIMITED,C-L11500-3510,Rec Facilities-Promotion & Marketing,17 August 2011,100.00
http://statistics.data.gov.uk/id/local-authority-district/23UB,Cheltenham Borough Council,455579,19234,BAM AGENCY LIMITED,C-L11500-3510,Rec Facilities-Promotion & Marketing,17 August 2011,96.00
http://statistics.data.gov.uk/id/local-authority-district/23UB,Cheltenham Borough Council,455569,2856,BATTLE SPORTS GLOUCESTER,C-L16100-3178,Holiday Rec-Big Lottery Fund Expenditure,17 August 2011,400.00
http://statistics.data.gov.uk/id/local-authority-district/23UB,Cheltenham Borough Council,456193,2857,BATTLE SPORTS GLOUCESTER,C-L16100-3501,Holiday Rec-Hire of outside services,31 August 2011,700.00
http://statistics.data.gov.uk/id/local-authority-district/23UB,Cheltenham Borough Council,454754,678,JASON R C BAYLISS,C-C22110-1301,Parks & Gardens-Routine grounds maint,03 August 2011,50.00
http://statistics.data.gov.uk/id/local-authority-district/23UB,Cheltenham Borough Council,454754,678,JASON R C BAYLISS,C-C22110-1301,Parks & Gardens-Routine grounds maint,03 August 2011,50.00
http://statistics.data.gov.uk/id/local-authority-district/23UB,Cheltenham Borough Council,454755,679,JASON R C BAYLISS,C-C22110-1301,Parks & Gardens-Routine grounds maint,03 August 2011,160.00
http://statistics.data.gov.uk/id/local-authority-district/23UB,Cheltenham Borough Council,455036,684,JASON R C BAYLISS,C-C22120-1119,Spts/Open Space-Playground Maint,03 August 2011,65.00
http://statistics.data.gov.uk/id/local-authority-district/23UB,Cheltenham Borough Council,455047,682,JASON R C BAYLISS,C-C22120-1119,Spts/Open Space-Playground Maint,03 August 2011,490.00
http://statistics.data.gov.uk/id/local-authority-district/23UB,Cheltenham Borough Council,455051,681,JASON R C BAYLISS,C-C22120-1119,Spts/Open Space-Playground Maint,03 August 2011,50.00
http://statistics.data.gov.uk/id/local-authority-district/23UB,Cheltenham Borough Council,455051,681,JASON R C BAYLISS,C-C22120-1119,Spts/Open Space-Playground Maint,03 August 2011,225.00
http://statistics.data.gov.uk/id/local-authority-district/23UB,Cheltenham Borough Council,455047,682,JASON R C BAYLISS,C-C22120-1119,Spts/Open Space-Playground Maint,05 August 2011,110.00
http://statistics.data.gov.uk/id/local-authority-district/23UB,Cheltenham Borough Council,455039,683,JASON R C BAYLISS,C-C22120-1119,Spts/Open Space-Playground Maint,05 August 2011,275.00
http://statistics.data.gov.uk/id/local-authority-district/23UB,Cheltenham Borough Council,455039,683,JASON R C BAYLISS,C-C22120-1119,Spts/Open Space-Playground Maint,05 August 2011,75.00
http://statistics.data.gov.uk/id/local-authority-district/23UB,Cheltenham Borough Council,455751,687,JASON R C BAYLISS,C-C22120-1119,Spts/Open Space-Playground Maint,05 August 2011,325.00
http://statistics.data.gov.uk/id/local-authority-district/23UB,Cheltenham Borough Council,454756,680,JASON R C BAYLISS,C-C22120-1301,Spts/Open Space-Routine grounds maint,05 August 2011,160.00
http://statistics.data.gov.uk/id/local-authority-district/23UB,Cheltenham Borough Council,455747,674,JASON R C BAYLISS,C-C22120-3104,Spts/Open Space-Sports & play equipment,05 August 2011,350.00
http://statistics.data.gov.uk/id/local-authority-district/23UB,Cheltenham Borough Council,455747,674,JASON R C BAYLISS,C-C22120-3104,Spts/Open Space-Sports & play equipment,05 August 2011,350.00
http://statistics.data.gov.uk/id/local-authority-district/23UB,Cheltenham Borough Council,455748,685,JASON R C BAYLISS,C-C22120-3104,Spts/Open Space-Sports & play equipment,05 August 2011,675.00
http://statistics.data.gov.uk/id/local-authority-district/23UB,Cheltenham Borough Council,455750,677,JASON R C BAYLISS,C-C22120-3104,Spts/Open Space-Sports & play equipment,05 August 2011,40.00
http://statistics.data.gov.uk/id/local-authority-district/23UB,Cheltenham Borough Council,455749,686,JASON R C BAYLISS,C-LC6001-P801,Playspace Schme-Adult/Youth,05 August 2011,150.00
http://statistics.data.gov.uk/id/local-authority-district/23UB,Cheltenham Borough Council,454754,678,JASON R C BAYLISS,C-N11250-9227,EXCLUDED,05 August 2011,-13.00
http://statistics.data.gov.uk/id/local-authority-district/23UB,Cheltenham Borough Council,456169,REDACTED,BELVOIR LETTINGS,C-H22400-3828,Homelessness-Prevention Fund,26 August 2011,600.00
http://statistics.data.gov.uk/id/local-authority-district/23UB,Cheltenham Borough Council,455105,47362,BIOLAB U K LTD,C-L11500-1714,Rec Facilities-Chemicals,05 August 2011,184.86
http://statistics.data.gov.uk/id/local-authority-district/23UB,Cheltenham Borough Council,455105,47362,BIOLAB U K LTD,C-L11500-1714,Rec Facilities-Chemicals,05 August 2011,19.17
http://statistics.data.gov.uk/id/local-authority-district/23UB,Cheltenham Borough Council,455105,47362,BIOLAB U K LTD,C-L11500-1714,Rec Facilities-Chemicals,05 August 2011,6.00
http://statistics.data.gov.uk/id/local-authority-district/23UB,Cheltenham Borough Council,455105,47362,BIOLAB U K LTD,C-L11500-1714,Rec Facilities-Chemicals,05 August 2011,22.00
http://statistics.data.gov.uk/id/local-authority-district/23UB,Cheltenham Borough Council,455105,47362,BIOLAB U K LTD,C-L11500-1714,Rec Facilities-Chemicals,05 August 2011,22.60
http://statistics.data.gov.uk/id/local-authority-district/23UB,Cheltenham Borough Council,455105,47362,BIOLAB U K LTD,C-L11500-1714,Rec Facilities-Chemicals,05 August 2011,229.77
http://statistics.data.gov.uk/id/local-authority-district/23UB,Cheltenham Borough Council,455105,47362,BIOLAB U K LTD,C-L11500-1714,Rec Facilities-Chemicals,05 August 2011,18.55
http://statistics.data.gov.uk/id/local-authority-district/23UB,Cheltenham Borough Council,453713,REDACTED,BIRMINGHAM MIDSHIRES,C-H22400-3501,Homelessness-Mortgage Rescue Scheme,17 August 2011,"3,000.00"
http://statistics.data.gov.uk/id/local-authority-district/23UB,Cheltenham Borough Council,455740,16775,BOTANY BAY NURSERIES LIMITED,C-C22140-3127,Nursery-Materials-Bedding,17 August 2011,22.40
http://statistics.data.gov.uk/id/local-authority-district/23UB,Cheltenham Borough Council,455740,16775,BOTANY BAY NURSERIES LIMITED,C-C22140-3127,Nursery-Materials-Bedding,17 August 2011,510.40
http://statistics.data.gov.uk/id/local-authority-district/23UB,Cheltenham Borough Council,456493,A0002086,B-PLAN INFORMATION SYSTEMS,C-D11300-3623,Accountancy-Cmpter-sftwre lic purch,31 August 2011,"3,320.95"
http://statistics.data.gov.uk/id/local-authority-district/23UB,Cheltenham Borough Council,455106,47si 624728,BRENNTAG UK,C-L11500-1714,Rec Facilities-Chemicals,05 August 2011,732.90
http://statistics.data.gov.uk/id/local-authority-district/23UB,Cheltenham Borough Council,455106,47si 624728,BRENNTAG UK,C-L11500-1714,Rec Facilities-Chemicals,05 August 2011,50.00
http://statistics.data.gov.uk/id/local-authority-district/23UB,Cheltenham Borough Council,455106,47si 624728,BRENNTAG UK,C-L11500-1714,Rec Facilities-Chemicals,05 August 2011,11.00
http://statistics.data.gov.uk/id/local-authority-district/23UB,Cheltenham Borough Council,455831,INV076722,BROXAP LIMITED,C-C22110-3101,Parks & Gardens-Equipment purchases,19 August 2011,"6,864.00"
http://statistics.data.gov.uk/id/local-authority-district/23UB,Cheltenham Borough Council,455831,INV076722,BROXAP LIMITED,C-C22110-3101,Parks & Gardens-Equipment purchases,19 August 2011,572.00
http://statistics.data.gov.uk/id/local-authority-district/23UB,Cheltenham Borough Council,455560,184531,BRYLAND FIRE PROTECTION LIMITED,C-L11500-3167,Rec Facilities-Maintenance Agreements,17 August 2011,604.00
http://statistics.data.gov.uk/id/local-authority-district/23UB,Cheltenham Borough Council,453714,REDACTED,REDACTED,C-H22400-3244,Homelessness-Supporting People,03 August 2011,500.00
http://statistics.data.gov.uk/id/local-authority-district/23UB,Cheltenham Borough Council,455310,BRI 15011918,BURNT TREE VEHICLE HIRE,C-C24100-2701,Fleet Maint-Hired transport,11 August 2011,504.00
http://statistics.data.gov.uk/id/local-authority-district/23UB,Cheltenham Borough Council,455151,4514,C AND R DECORATORS,C-H4201G-1104,Gen Wks 2201-Council House repairs,05 August 2011,382.53
http://statistics.data.gov.uk/id/local-authority-district/23UB,Cheltenham Borough Council,456110,4518,C AND R DECORATORS,C-H4201V-1104,Voids 2201-Council House repairs,05 August 2011,861.85
http://statistics.data.gov.uk/id/local-authority-district/23UB,Cheltenham Borough Council,454801,4500,C AND R DECORATORS,C-H4203A-1104,Dis Adapts 2203-Council House repairs,05 August 2011,820.56
http://statistics.data.gov.uk/id/local-authority-district/23UB,Cheltenham Borough Council,453165,DUP PAYMENT C,C AND R DECORATORS,C-H4203G-1104,Gen Wks 2203-Council House repairs,05 August 2011,-560.00
http://statistics.data.gov.uk/id/local-authority-district/23UB,Cheltenham Borough Council,454129,4484,C AND R DECORATORS,C-H4203V-1104,Voids 2203-Council House repairs,05 August 2011,137.03
http://statistics.data.gov.uk/id/local-authority-district/23UB,Cheltenham Borough Council,454948,4508,C AND R DECORATORS,C-H4204G-1104,Gen Wks 2204-Council House repairs,05 August 2011,45.00
http://statistics.data.gov.uk/id/local-authority-district/23UB,Cheltenham Borough Council,456111,4517,C AND R DECORATORS,C-H4204V-1104,Voids 2204-Council House repairs,05 August 2011,"1,153.05"
http://statistics.data.gov.uk/id/local-authority-district/23UB,Cheltenham Borough Council,454128,4483,C AND R DECORATORS,C-H4209V-1104,Voids 2209-Council House repairs,05 August 2011,195.75
http://statistics.data.gov.uk/id/local-authority-district/23UB,Cheltenham Borough Council,454883,4496,C AND R DECORATORS,C-H4211V-1104,Voids 2211-Council House repairs,05 August 2011,348.00
http://statistics.data.gov.uk/id/local-authority-district/23UB,Cheltenham Borough Council,456279,4519,C AND R DECORATORS,C-H4211V-1104,Voids 2211-Council House repairs,05 August 2011,887.93
http://statistics.data.gov.uk/id/local-authority-district/23UB,Cheltenham Borough Council,454950,4507,C AND R DECORATORS,C-H4213G-1104,Gen Wks 2213-Council House repairs,05 August 2011,189.00
http://statistics.data.gov.uk/id/local-authority-district/23UB,Cheltenham Borough Council,453165,DUP PAYMENT C,C AND R DECORATORS,C-H4213V-1104,Voids 2213-Council House repairs,05 August 2011,-945.00
http://statistics.data.gov.uk/id/local-authority-district/23UB,Cheltenham Borough Council,454882,4495,C AND R DECORATORS,C-H4213V-1104,Voids 2213-Council House repairs,05 August 2011,326.25
http://statistics.data.gov.uk/id/local-authority-district/23UB,Cheltenham Borough Council,456109,4515,C AND R DECORATORS,C-H4213V-1104,Voids 2213-Council House repairs,05 August 2011,"1,054.98"
http://statistics.data.gov.uk/id/local-authority-district/23UB,Cheltenham Borough Council,456112,4501,C AND R DECORATORS,C-H4213V-1104,Voids 2213-Council House repairs,05 August 2011,"1,050.00"
http://statistics.data.gov.uk/id/local-authority-district/23UB,Cheltenham Borough Council,454497,4489,C AND R DECORATORS,C-H4214G-1104,Gen Wks 2214-Council House repairs,05 August 2011,984.80
http://statistics.data.gov.uk/id/local-authority-district/23UB,Cheltenham Borough Council,453165,DUP PAYMENT C,C AND R DECORATORS,C-H4214V-1104,Voids 2214-Council House repairs,24 August 2011,-750.25
http://statistics.data.gov.uk/id/local-authority-district/23UB,Cheltenham Borough Council,454802,4505,C AND R DECORATORS,C-H43228-1104,3 New Barn Cl-Council House repairs,24 August 2011,"8,550.00"
http://statistics.data.gov.uk/id/local-authority-district/23UB,Cheltenham Borough Council,453165,DUP PAYMENT C,C AND R DECORATORS,C-HC4053-C302,Internal Imp-Building Contractor,24 August 2011,"-4,775.64"
http://statistics.data.gov.uk/id/local-authority-district/23UB,Cheltenham Borough Council,453165,DUP PAYMENT C,C AND R DECORATORS,C-HC4053-C302,Internal Imp-Building Contractor,24 August 2011,"-5,243.20"
http://statistics.data.gov.uk/id/local-authority-district/23UB,Cheltenham Borough Council,456108,4502,C AND R DECORATORS,C-HC4841-C302,Major Voids-Building Contractor,24 August 2011,"4,420.98"
http://statistics.data.gov.uk/id/local-authority-district/23UB,Cheltenham Borough Council,456113,4503,C AND R DECORATORS,C-HC4841-C302,Major Voids-Building Contractor,24 August 2011,"5,511.29"
http://statistics.data.gov.uk/id/local-authority-district/23UB,Cheltenham Borough Council,454063,4481,C AND R DECORATORS,C-HC4867-C302,Misc Works-Building Contractor,24 August 2011,508.56
http://statistics.data.gov.uk/id/local-authority-district/23UB,Cheltenham Borough Council,456107,4513,C AND R DECORATORS,C-HC4867-C302,Misc Works-Building Contractor,31 August 2011,"4,822.50"
http://statistics.data.gov.uk/id/local-authority-district/23UB,Cheltenham Borough Council,455629,COMM PRIDE PY,CHARLTON KINGS PARISH COUNCIL,C-D21970-3677,Parish Pride-Parish Council - Community,17 August 2011,"1,678.00"
http://statistics.data.gov.uk/id/local-authority-district/23UB,Cheltenham Borough Council,455603,05.08.11,CHELTENHAM TREE SERVICES,C-C22120-1305,Spts/Open Space-Tree surgery,17 August 2011,588.00
http://statistics.data.gov.uk/id/local-authority-district/23UB,Cheltenham Borough Council,455601,220711,CHELTENHAM TREE SERVICES,C-C22120-1312,Spts/Open Space-Annual felling prog,17 August 2011,330.00
http://statistics.data.gov.uk/id/local-authority-district/23UB,Cheltenham Borough Council,455603,05.08.11,CHELTENHAM TREE SERVICES,C-C22120-1312,Spts/Open Space-Annual felling prog,17 August 2011,537.00
http://statistics.data.gov.uk/id/local-authority-district/23UB,Cheltenham Borough Council,456041,57211,CHELTENHAM WINDOWS LIMITED,C-HC4849-C302,Concrete repair-Building Contractor,22 August 2011,600.00
http://statistics.data.gov.uk/id/local-authority-district/23UB,Cheltenham Borough Council,456046,57411,CHELTENHAM WINDOWS LIMITED,C-HC4849-C302,Concrete repair-Building Contractor,22 August 2011,600.00
http://statistics.data.gov.uk/id/local-authority-district/23UB,Cheltenham Borough Council,456048,56611,CHELTENHAM WINDOWS LIMITED,C-HC4849-C302,Concrete repair-Building Contractor,22 August 2011,600.00
http://statistics.data.gov.uk/id/local-authority-district/23UB,Cheltenham Borough Council,456049,56911,CHELTENHAM WINDOWS LIMITED,C-HC4849-C302,Concrete repair-Building Contractor,22 August 2011,600.00
http://statistics.data.gov.uk/id/local-authority-district/23UB,Cheltenham Borough Council,456047,56711,CHELTENHAM WINDOWS LIMITED,C-HC4849-C302,Concrete repair-Building Contractor,22 August 2011,600.00
http://statistics.data.gov.uk/id/local-authority-district/23UB,Cheltenham Borough Council,456045,56811,CHELTENHAM WINDOWS LIMITED,C-HC4849-C302,Concrete repair-Building Contractor,22 August 2011,600.00
http://statistics.data.gov.uk/id/local-authority-district/23UB,Cheltenham Borough Council,456043,57011,CHELTENHAM WINDOWS LIMITED,C-HC4849-C302,Concrete repair-Building Contractor,22 August 2011,600.00
http://statistics.data.gov.uk/id/local-authority-district/23UB,Cheltenham Borough Council,456044,57111,CHELTENHAM WINDOWS LIMITED,C-HC4849-C302,Concrete repair-Building Contractor,22 August 2011,600.00
http://statistics.data.gov.uk/id/local-authority-district/23UB,Cheltenham Borough Council,456044,57111,CHELTENHAM WINDOWS LIMITED,C-HC4849-C302,Concrete repair-Building Contractor,22 August 2011,-5.35
http://statistics.data.gov.uk/id/local-authority-district/23UB,Cheltenham Borough Council,456042,57311,CHELTENHAM WINDOWS LIMITED,C-HC4849-C302,Concrete repair-Building Contractor,22 August 2011,600.00
http://statistics.data.gov.uk/id/local-authority-district/23UB,Cheltenham Borough Council,456041,57211,CHELTENHAM WINDOWS LIMITED,C-N11250-9227,EXCLUDED,22 August 2011,-5.35
http://statistics.data.gov.uk/id/local-authority-district/23UB,Cheltenham Borough Council,456042,57311,CHELTENHAM WINDOWS LIMITED,C-N11250-9227,EXCLUDED,22 August 2011,-5.35
http://statistics.data.gov.uk/id/local-authority-district/23UB,Cheltenham Borough Council,456043,57011,CHELTENHAM WINDOWS LIMITED,C-N11250-9227,EXCLUDED,22 August 2011,-5.35
http://statistics.data.gov.uk/id/local-authority-district/23UB,Cheltenham Borough Council,456045,56811,CHELTENHAM WINDOWS LIMITED,C-N11250-9227,EXCLUDED,22 August 2011,-5.35
http://statistics.data.gov.uk/id/local-authority-district/23UB,Cheltenham Borough Council,456047,56711,CHELTENHAM WINDOWS LIMITED,C-N11250-9227,EXCLUDED,22 August 2011,-5.35
http://statistics.data.gov.uk/id/local-authority-district/23UB,Cheltenham Borough Council,456049,56911,CHELTENHAM WINDOWS LIMITED,C-N11250-9227,EXCLUDED,22 August 2011,-5.35
http://statistics.data.gov.uk/id/local-authority-district/23UB,Cheltenham Borough Council,456048,56611,CHELTENHAM WINDOWS LIMITED,C-N11250-9227,EXCLUDED,22 August 2011,-5.35
http://statistics.data.gov.uk/id/local-authority-district/23UB,Cheltenham Borough Council,456046,57411,CHELTENHAM WINDOWS LIMITED,C-N11250-9227,EXCLUDED,22 August 2011,-5.35
http://statistics.data.gov.uk/id/local-authority-district/23UB,Cheltenham Borough Council,454811,HOSTING,F J CLARK,C-1T05E1-3568,Sumr Ball Fest-Artist Fees,03 August 2011,700.00
http://statistics.data.gov.uk/id/local-authority-district/23UB,Cheltenham Borough Council,455293,20549,COLLETT TRANSPORT SERVICES LIMITED,C-C24100-2701,Fleet Maint-Hired transport,11 August 2011,"2,940.00"
http://statistics.data.gov.uk/id/local-authority-district/23UB,Cheltenham Borough Council,455294,20552,COLLETT TRANSPORT SERVICES LIMITED,C-C24100-2701,Fleet Maint-Hired transport,11 August 2011,"1,460.00"
http://statistics.data.gov.uk/id/local-authority-district/23UB,Cheltenham Borough Council,455295,20531,COLLETT TRANSPORT SERVICES LIMITED,C-C24100-2701,Fleet Maint-Hired transport,11 August 2011,"1,155.00"
http://statistics.data.gov.uk/id/local-authority-district/23UB,Cheltenham Borough Council,455430,20592,COLLETT TRANSPORT SERVICES LIMITED,C-C24100-2702,Fleet Maint-Additional vehicle hire,17 August 2011,"1,860.00"
http://statistics.data.gov.uk/id/local-authority-district/23UB,Cheltenham Borough Council,455713,SIT100354,COMMERCIAL LIMITED,C-D11820-3660,IT Infrastructu-Hardware PC & Servers,17 August 2011,"1,439.60"
http://statistics.data.gov.uk/id/local-authority-district/23UB,Cheltenham Borough Council,454746,7511441,COMPUTACENTER UK LIMITED,C-GCERP-3661,GO Capital Cost-Hardware Peripherals,03 August 2011,811.10
http://statistics.data.gov.uk/id/local-authority-district/23UB,Cheltenham Borough Council,454747,7509636,COMPUTACENTER UK LIMITED,C-GCERP-3661,GO Capital Cost-Hardware Peripherals,03 August 2011,124.02
http://statistics.data.gov.uk/id/local-authority-district/23UB,Cheltenham Borough Council,455715,7517852,COMPUTACENTER UK LIMITED,C-D11800-3660,IT Services-Hardware PC & Servers,17 August 2011,"2,388.97"
http://statistics.data.gov.uk/id/local-authority-district/23UB,Cheltenham Borough Council,455716,7519872,COMPUTACENTER UK LIMITED,C-D11800-3660,IT Services-Hardware PC & Servers,17 August 2011,342.74
http://statistics.data.gov.uk/id/local-authority-district/23UB,Cheltenham Borough Council,455716,7519872,COMPUTACENTER UK LIMITED,C-D11800-3660,IT Services-Hardware PC & Servers,17 August 2011,143.58
http://statistics.data.gov.uk/id/local-authority-district/23UB,Cheltenham Borough Council,455716,7519872,COMPUTACENTER UK LIMITED,C-D11800-3660,IT Services-Hardware PC & Servers,17 August 2011,54.65
http://statistics.data.gov.uk/id/local-authority-district/23UB,Cheltenham Borough Council,455716,7519872,COMPUTACENTER UK LIMITED,C-D11800-3660,IT Services-Hardware PC & Servers,17 August 2011,152.85
http://statistics.data.gov.uk/id/local-authority-district/23UB,Cheltenham Borough Council,455717,7517848,COMPUTACENTER UK LIMITED,C-D11820-3660,IT Infrastructu-Hardware PC & Servers,17 August 2011,49.00
http://statistics.data.gov.uk/id/local-authority-district/23UB,Cheltenham Borough Council,455717,7517848,COMPUTACENTER UK LIMITED,C-D11820-3660,IT Infrastructu-Hardware PC & Servers,17 August 2011,9.95
http://statistics.data.gov.uk/id/local-authority-district/23UB,Cheltenham Borough Council,455717,7517848,COMPUTACENTER UK LIMITED,C-D11820-3660,IT Infrastructu-Hardware PC & Servers,17 August 2011,122.16
http://statistics.data.gov.uk/id/local-authority-district/23UB,Cheltenham Borough Council,455718,7527420,COMPUTACENTER UK LIMITED,C-D11820-3662,IT Infrastructu-Cabling & Network work,17 August 2011,48.50
http://statistics.data.gov.uk/id/local-authority-district/23UB,Cheltenham Borough Council,454846,507501,COMENSURA LIMITED,C-C22100-0115,Green Env Div-Temporary Agency Staff,03 August 2011,197.11
http://statistics.data.gov.uk/id/local-authority-district/23UB,Cheltenham Borough Council,454846,507501,COMENSURA LIMITED,C-C22100-0115,Green Env Div-Temporary Agency Staff,03 August 2011,346.88
http://statistics.data.gov.uk/id/local-authority-district/23UB,Cheltenham Borough Council,454846,507501,COMENSURA LIMITED,C-C22100-0115,Green Env Div-Temporary Agency Staff,03 August 2011,346.88
http://statistics.data.gov.uk/id/local-authority-district/23UB,Cheltenham Borough Council,454848,507920,COMENSURA LIMITED,C-C22100-0115,Green Env Div-Temporary Agency Staff,03 August 2011,346.88
http://statistics.data.gov.uk/id/local-authority-district/23UB,Cheltenham Borough Council,454848,507920,COMENSURA LIMITED,C-C22100-0115,Green Env Div-Temporary Agency Staff,03 August 2011,277.08
http://statistics.data.gov.uk/id/local-authority-district/23UB,Cheltenham Borough Council,454848,507920,COMENSURA LIMITED,C-C22100-0115,Green Env Div-Temporary Agency Staff,03 August 2011,321.50
http://statistics.data.gov.uk/id/local-authority-district/23UB,Cheltenham Borough Council,454848,507920,COMENSURA LIMITED,C-C22100-0115,Green Env Div-Temporary Agency Staff,03 August 2011,342.65
http://statistics.data.gov.uk/id/local-authority-district/23UB,Cheltenham Borough Council,454848,507920,COMENSURA LIMITED,C-C22100-0115,Green Env Div-Temporary Agency Staff,03 August 2011,346.88
http://statistics.data.gov.uk/id/local-authority-district/23UB,Cheltenham Borough Council,454848,507920,COMENSURA LIMITED,C-C22100-0115,Green Env Div-Temporary Agency Staff,03 August 2011,277.08
http://statistics.data.gov.uk/id/local-authority-district/23UB,Cheltenham Borough Council,454848,507920,COMENSURA LIMITED,C-C22100-0115,Green Env Div-Temporary Agency Staff,03 August 2011,207.28
http://statistics.data.gov.uk/id/local-authority-district/23UB,Cheltenham Borough Council,454848,507920,COMENSURA LIMITED,C-C22100-0115,Green Env Div-Temporary Agency Staff,03 August 2011,346.87
http://statistics.data.gov.uk/id/local-authority-district/23UB,Cheltenham Borough Council,454848,507920,COMENSURA LIMITED,C-C22100-0115,Green Env Div-Temporary Agency Staff,03 August 2011,346.87
http://statistics.data.gov.uk/id/local-authority-district/23UB,Cheltenham Borough Council,454848,507920,COMENSURA LIMITED,C-C22100-0115,Green Env Div-Temporary Agency Staff,03 August 2011,346.88
http://statistics.data.gov.uk/id/local-authority-district/23UB,Cheltenham Borough Council,454846,507501,COMENSURA LIMITED,C-C22100-0115,Green Env Div-Temporary Agency Staff,03 August 2011,346.88
http://statistics.data.gov.uk/id/local-authority-district/23UB,Cheltenham Borough Council,454846,507501,COMENSURA LIMITED,C-C22100-0115,Green Env Div-Temporary Agency Staff,03 August 2011,346.88
http://statistics.data.gov.uk/id/local-authority-district/23UB,Cheltenham Borough Council,454846,507501,COMENSURA LIMITED,C-C22105-0115,Hsg Forecourts-Temporary Agency Staff,03 August 2011,351.09
http://statistics.data.gov.uk/id/local-authority-district/23UB,Cheltenham Borough Council,454847,507709,COMENSURA LIMITED,C-C22105-0115,Hsg Forecourts-Temporary Agency Staff,03 August 2011,262.26
http://statistics.data.gov.uk/id/local-authority-district/23UB,Cheltenham Borough Council,454848,507920,COMENSURA LIMITED,C-C22105-0115,Hsg Forecourts-Temporary Agency Staff,03 August 2011,346.86
http://statistics.data.gov.uk/id/local-authority-district/23UB,Cheltenham Borough Council,454848,507920,COMENSURA LIMITED,C-C22105-0115,Hsg Forecourts-Temporary Agency Staff,03 August 2011,346.86
http://statistics.data.gov.uk/id/local-authority-district/23UB,Cheltenham Borough Council,454847,507709,COMENSURA LIMITED,C-C22105-0115,Hsg Forecourts-Temporary Agency Staff,03 August 2011,346.86
http://statistics.data.gov.uk/id/local-authority-district/23UB,Cheltenham Borough Council,454847,507709,COMENSURA LIMITED,C-C22105-0115,Hsg Forecourts-Temporary Agency Staff,03 August 2011,274.94
http://statistics.data.gov.uk/id/local-authority-district/23UB,Cheltenham Borough Council,454847,507709,COMENSURA LIMITED,C-C22110-0115,Parks & Gardens-Temporary Agency Staff,03 August 2011,203.04
http://statistics.data.gov.uk/id/local-authority-district/23UB,Cheltenham Borough Council,454848,507920,COMENSURA LIMITED,C-C22110-0115,Parks & Gardens-Temporary Agency Staff,03 August 2011,334.17
http://statistics.data.gov.uk/id/local-authority-district/23UB,Cheltenham Borough Council,454846,507501,COMENSURA LIMITED,C-C22120-0115,Spts/Open Space-Temporary Agency Staff,03 August 2011,346.86
http://statistics.data.gov.uk/id/local-authority-district/23UB,Cheltenham Borough Council,454846,507501,COMENSURA LIMITED,C-C22120-0115,Spts/Open Space-Temporary Agency Staff,03 August 2011,346.86
http://statistics.data.gov.uk/id/local-authority-district/23UB,Cheltenham Borough Council,454847,507709,COMENSURA LIMITED,C-C22120-0115,Spts/Open Space-Temporary Agency Staff,03 August 2011,346.86
http://statistics.data.gov.uk/id/local-authority-district/23UB,Cheltenham Borough Council,454848,507920,COMENSURA LIMITED,C-C22120-0115,Spts/Open Space-Temporary Agency Staff,03 August 2011,346.86
http://statistics.data.gov.uk/id/local-authority-district/23UB,Cheltenham Borough Council,454848,507920,COMENSURA LIMITED,C-C22120-0115,Spts/Open Space-Temporary Agency Staff,03 August 2011,346.86
http://statistics.data.gov.uk/id/local-authority-district/23UB,Cheltenham Borough Council,454847,507709,COMENSURA LIMITED,C-C22120-0115,Spts/Open Space-Temporary Agency Staff,03 August 2011,334.17
http://statistics.data.gov.uk/id/local-authority-district/23UB,Cheltenham Borough Council,454846,507501,COMENSURA LIMITED,C-C23100-0115,Refuse Collection-Temporary Agency Staff,03 August 2011,54.99
http://statistics.data.gov.uk/id/local-authority-district/23UB,Cheltenham Borough Council,454846,507501,COMENSURA LIMITED,C-C23100-0115,Refuse Collection-Temporary Agency Staff,03 August 2011,194.08
http://statistics.data.gov.uk/id/local-authority-district/23UB,Cheltenham Borough Council,454846,507501,COMENSURA LIMITED,C-C23100-0115,Refuse Collection-Temporary Agency Staff,03 August 2011,258.02
http://statistics.data.gov.uk/id/local-authority-district/23UB,Cheltenham Borough Council,454846,507501,COMENSURA LIMITED,C-C23100-0115,Refuse Collection-Temporary Agency Staff,03 August 2011,52.88
http://statistics.data.gov.uk/id/local-authority-district/23UB,Cheltenham Borough Council,454846,507501,COMENSURA LIMITED,C-C23100-0115,Refuse Collection-Temporary Agency Staff,03 August 2011,186.12
http://statistics.data.gov.uk/id/local-authority-district/23UB,Cheltenham Borough Council,454846,507501,COMENSURA LIMITED,C-C23100-0115,Refuse Collection-Temporary Agency Staff,03 August 2011,97.04
http://statistics.data.gov.uk/id/local-authority-district/23UB,Cheltenham Borough Council,454846,507501,COMENSURA LIMITED,C-C23100-0115,Refuse Collection-Temporary Agency Staff,03 August 2011,46.53
http://statistics.data.gov.uk/id/local-authority-district/23UB,Cheltenham Borough Council,454847,507709,COMENSURA LIMITED,C-C23100-0115,Refuse Collection-Temporary Agency Staff,03 August 2011,391.27
http://statistics.data.gov.uk/id/local-authority-district/23UB,Cheltenham Borough Council,454847,507709,COMENSURA LIMITED,C-C23100-0115,Refuse Collection-Temporary Agency Staff,03 August 2011,59.22
http://statistics.data.gov.uk/id/local-authority-district/23UB,Cheltenham Borough Council,454847,507709,COMENSURA LIMITED,C-C23100-0115,Refuse Collection-Temporary Agency Staff,03 August 2011,59.22
http://statistics.data.gov.uk/id/local-authority-district/23UB,Cheltenham Borough Council,454847,507709,COMENSURA LIMITED,C-C23100-0115,Refuse Collection-Temporary Agency Staff,03 August 2011,313.02
http://statistics.data.gov.uk/id/local-authority-district/23UB,Cheltenham Borough Council,454846,507501,COMENSURA LIMITED,C-C23100-0115,Refuse Collection-Temporary Agency Staff,03 August 2011,313.02
http://statistics.data.gov.uk/id/local-authority-district/23UB,Cheltenham Borough Council,454846,507501,COMENSURA LIMITED,C-C23100-0115,Refuse Collection-Temporary Agency Staff,03 August 2011,340.45
http://statistics.data.gov.uk/id/local-authority-district/23UB,Cheltenham Borough Council,454846,507501,COMENSURA LIMITED,C-C23100-0115,Refuse Collection-Temporary Agency Staff,03 August 2011,181.89
http://statistics.data.gov.uk/id/local-authority-district/23UB,Cheltenham Borough Council,454846,507501,COMENSURA LIMITED,C-C23100-0115,Refuse Collection-Temporary Agency Staff,03 August 2011,296.10
http://statistics.data.gov.uk/id/local-authority-district/23UB,Cheltenham Borough Council,454846,507501,COMENSURA LIMITED,C-C23100-0115,Refuse Collection-Temporary Agency Staff,03 August 2011,46.53
http://statistics.data.gov.uk/id/local-authority-district/23UB,Cheltenham Borough Council,454848,507920,COMENSURA LIMITED,C-C23100-0115,Refuse Collection-Temporary Agency Staff,03 August 2011,313.02
http://statistics.data.gov.uk/id/local-authority-district/23UB,Cheltenham Borough Council,454848,507920,COMENSURA LIMITED,C-C23100-0115,Refuse Collection-Temporary Agency Staff,03 August 2011,313.02
http://statistics.data.gov.uk/id/local-authority-district/23UB,Cheltenham Borough Council,454848,507920,COMENSURA LIMITED,C-C23100-0115,Refuse Collection-Temporary Agency Staff,03 August 2011,139.59
http://statistics.data.gov.uk/id/local-authority-district/23UB,Cheltenham Borough Council,454848,507920,COMENSURA LIMITED,C-C23100-0115,Refuse Collection-Temporary Agency Staff,03 August 2011,389.16
http://statistics.data.gov.uk/id/local-authority-district/23UB,Cheltenham Borough Council,454848,507920,COMENSURA LIMITED,C-C23100-0115,Refuse Collection-Temporary Agency Staff,03 August 2011,313.02
http://statistics.data.gov.uk/id/local-authority-district/23UB,Cheltenham Borough Council,454847,507709,COMENSURA LIMITED,C-C23100-0115,Refuse Collection-Temporary Agency Staff,03 August 2011,308.79
http://statistics.data.gov.uk/id/local-authority-district/23UB,Cheltenham Borough Council,454847,507709,COMENSURA LIMITED,C-C23100-0115,Refuse Collection-Temporary Agency Staff,03 August 2011,308.79
http://statistics.data.gov.uk/id/local-authority-district/23UB,Cheltenham Borough Council,454847,507709,COMENSURA LIMITED,C-C23100-0115,Refuse Collection-Temporary Agency Staff,03 August 2011,198.81
http://statistics.data.gov.uk/id/local-authority-district/23UB,Cheltenham Borough Council,454847,507709,COMENSURA LIMITED,C-C23100-0115,Refuse Collection-Temporary Agency Staff,03 August 2011,287.66
http://statistics.data.gov.uk/id/local-authority-district/23UB,Cheltenham Borough Council,454847,507709,COMENSURA LIMITED,C-C23100-0115,Refuse Collection-Temporary Agency Staff,03 August 2011,285.53
http://statistics.data.gov.uk/id/local-authority-district/23UB,Cheltenham Borough Council,454847,507709,COMENSURA LIMITED,C-C23100-0115,Refuse Collection-Temporary Agency Staff,03 August 2011,291.88
http://statistics.data.gov.uk/id/local-authority-district/23UB,Cheltenham Borough Council,454847,507709,COMENSURA LIMITED,C-C23100-0115,Refuse Collection-Temporary Agency Staff,03 August 2011,152.28
http://statistics.data.gov.uk/id/local-authority-district/23UB,Cheltenham Borough Council,454847,507709,COMENSURA LIMITED,C-C23100-0115,Refuse Collection-Temporary Agency Staff,03 August 2011,249.57
http://statistics.data.gov.uk/id/local-authority-district/23UB,Cheltenham Borough Council,454847,507709,COMENSURA LIMITED,C-C23100-0115,Refuse Collection-Temporary Agency Staff,03 August 2011,313.02
http://statistics.data.gov.uk/id/local-authority-district/23UB,Cheltenham Borough Council,454847,507709,COMENSURA LIMITED,C-C23100-0115,Refuse Collection-Temporary Agency Staff,03 August 2011,313.02
http://statistics.data.gov.uk/id/local-authority-district/23UB,Cheltenham Borough Council,454847,507709,COMENSURA LIMITED,C-C23100-0115,Refuse Collection-Temporary Agency Staff,03 August 2011,397.62
http://statistics.data.gov.uk/id/local-authority-district/23UB,Cheltenham Borough Council,454847,507709,COMENSURA LIMITED,C-C23100-0115,Refuse Collection-Temporary Agency Staff,03 August 2011,313.02
http://statistics.data.gov.uk/id/local-authority-district/23UB,Cheltenham Borough Council,454846,507501,COMENSURA LIMITED,C-C23100-0115,Refuse Collection-Temporary Agency Staff,03 August 2011,194.08
http://statistics.data.gov.uk/id/local-authority-district/23UB,Cheltenham Borough Council,454846,507501,COMENSURA LIMITED,C-C23100-0115,Refuse Collection-Temporary Agency Staff,03 August 2011,194.08
http://statistics.data.gov.uk/id/local-authority-district/23UB,Cheltenham Borough Council,454846,507501,COMENSURA LIMITED,C-C23100-0115,Refuse Collection-Temporary Agency Staff,03 August 2011,186.12
http://statistics.data.gov.uk/id/local-authority-district/23UB,Cheltenham Borough Council,454846,507501,COMENSURA LIMITED,C-C23100-0115,Refuse Collection-Temporary Agency Staff,03 August 2011,42.30
http://statistics.data.gov.uk/id/local-authority-district/23UB,Cheltenham Borough Council,454846,507501,COMENSURA LIMITED,C-C23100-0115,Refuse Collection-Temporary Agency Staff,03 August 2011,296.10
http://statistics.data.gov.uk/id/local-authority-district/23UB,Cheltenham Borough Council,454846,507501,COMENSURA LIMITED,C-C23100-0115,Refuse Collection-Temporary Agency Staff,03 August 2011,268.61
http://statistics.data.gov.uk/id/local-authority-district/23UB,Cheltenham Borough Council,454846,507501,COMENSURA LIMITED,C-C23100-0115,Refuse Collection-Temporary Agency Staff,03 August 2011,167.08
http://statistics.data.gov.uk/id/local-authority-district/23UB,Cheltenham Borough Council,454846,507501,COMENSURA LIMITED,C-C23100-0115,Refuse Collection-Temporary Agency Staff,03 August 2011,226.30
http://statistics.data.gov.uk/id/local-authority-district/23UB,Cheltenham Borough Council,454848,507920,COMENSURA LIMITED,C-C23100-0115,Refuse Collection-Temporary Agency Staff,03 August 2011,329.94
http://statistics.data.gov.uk/id/local-authority-district/23UB,Cheltenham Borough Council,454848,507920,COMENSURA LIMITED,C-C23100-0115,Refuse Collection-Temporary Agency Staff,03 August 2011,236.88
http://statistics.data.gov.uk/id/local-authority-district/23UB,Cheltenham Borough Council,454848,507920,COMENSURA LIMITED,C-C23100-0115,Refuse Collection-Temporary Agency Staff,03 August 2011,196.70
http://statistics.data.gov.uk/id/local-authority-district/23UB,Cheltenham Borough Council,454848,507920,COMENSURA LIMITED,C-C23100-0115,Refuse Collection-Temporary Agency Staff,03 August 2011,272.83
http://statistics.data.gov.uk/id/local-authority-district/23UB,Cheltenham Borough Council,454848,507920,COMENSURA LIMITED,C-C23100-0115,Refuse Collection-Temporary Agency Staff,03 August 2011,279.18
http://statistics.data.gov.uk/id/local-authority-district/23UB,Cheltenham Borough Council,454848,507920,COMENSURA LIMITED,C-C23100-0115,Refuse Collection-Temporary Agency Staff,03 August 2011,329.94
http://statistics.data.gov.uk/id/local-authority-district/23UB,Cheltenham Borough Council,454848,507920,COMENSURA LIMITED,C-C23100-0115,Refuse Collection-Temporary Agency Staff,03 August 2011,205.16
http://statistics.data.gov.uk/id/local-authority-district/23UB,Cheltenham Borough Council,454848,507920,COMENSURA LIMITED,C-C23100-0115,Refuse Collection-Temporary Agency Staff,03 August 2011,122.67
http://statistics.data.gov.uk/id/local-authority-district/23UB,Cheltenham Borough Council,454848,507920,COMENSURA LIMITED,C-C23100-0115,Refuse Collection-Temporary Agency Staff,03 August 2011,313.02
http://statistics.data.gov.uk/id/local-authority-district/23UB,Cheltenham Borough Council,454848,507920,COMENSURA LIMITED,C-C23100-0115,Refuse Collection-Temporary Agency Staff,03 August 2011,274.95
http://statistics.data.gov.uk/id/local-authority-district/23UB,Cheltenham Borough Council,454848,507920,COMENSURA LIMITED,C-C23100-0115,Refuse Collection-Temporary Agency Staff,03 August 2011,46.53
http://statistics.data.gov.uk/id/local-authority-district/23UB,Cheltenham Borough Council,454848,507920,COMENSURA LIMITED,C-C23100-0115,Refuse Collection-Temporary Agency Staff,03 August 2011,97.04
http://statistics.data.gov.uk/id/local-authority-district/23UB,Cheltenham Borough Council,454848,507920,COMENSURA LIMITED,C-C23100-0115,Refuse Collection-Temporary Agency Staff,03 August 2011,345.71
http://statistics.data.gov.uk/id/local-authority-district/23UB,Cheltenham Borough Council,454848,507920,COMENSURA LIMITED,C-C23100-0115,Refuse Collection-Temporary Agency Staff,03 August 2011,122.67
http://statistics.data.gov.uk/id/local-authority-district/23UB,Cheltenham Borough Council,454846,507501,COMENSURA LIMITED,C-C23100-0115,Refuse Collection-Temporary Agency Staff,03 August 2011,260.15
http://statistics.data.gov.uk/id/local-authority-district/23UB,Cheltenham Borough Council,454846,507501,COMENSURA LIMITED,C-C23110-0115,Street Cleaning-Temporary Agency Staff,03 August 2011,291.87
http://statistics.data.gov.uk/id/local-authority-district/23UB,Cheltenham Borough Council,454846,507501,COMENSURA LIMITED,C-C23110-0115,Street Cleaning-Temporary Agency Staff,03 August 2011,266.49
http://statistics.data.gov.uk/id/local-authority-district/23UB,Cheltenham Borough Council,454847,507709,COMENSURA LIMITED,C-C23110-0115,Street Cleaning-Temporary Agency Staff,03 August 2011,253.80
http://statistics.data.gov.uk/id/local-authority-district/23UB,Cheltenham Borough Council,454847,507709,COMENSURA LIMITED,C-C23110-0115,Street Cleaning-Temporary Agency Staff,03 August 2011,253.80
http://statistics.data.gov.uk/id/local-authority-district/23UB,Cheltenham Borough Council,454846,507501,COMENSURA LIMITED,C-C23125-0115,Recyl Bring Schms-Temporary Agency Staff,03 August 2011,194.08
http://statistics.data.gov.uk/id/local-authority-district/23UB,Cheltenham Borough Council,454847,507709,COMENSURA LIMITED,C-C23125-0115,Recyl Bring Schms-Temporary Agency Staff,03 August 2011,194.08
http://statistics.data.gov.uk/id/local-authority-district/23UB,Cheltenham Borough Council,454848,507920,COMENSURA LIMITED,C-C23125-0115,Recyl Bring Schms-Temporary Agency Staff,03 August 2011,200.14
http://statistics.data.gov.uk/id/local-authority-district/23UB,Cheltenham Borough Council,454846,507501,COMENSURA LIMITED,C-C23160-0115,Env Maint Div-Temporary Agency Staff,03 August 2011,346.50
http://statistics.data.gov.uk/id/local-authority-district/23UB,Cheltenham Borough Council,454848,507920,COMENSURA LIMITED,C-C23160-0115,Env Maint Div-Temporary Agency Staff,03 August 2011,277.20
http://statistics.data.gov.uk/id/local-authority-district/23UB,Cheltenham Borough Council,454848,507920,COMENSURA LIMITED,C-C23160-0115,Env Maint Div-Temporary Agency Staff,03 August 2011,346.15
http://statistics.data.gov.uk/id/local-authority-district/23UB,Cheltenham Borough Council,454848,507920,COMENSURA LIMITED,C-C23160-0115,Env Maint Div-Temporary Agency Staff,03 August 2011,346.15
http://statistics.data.gov.uk/id/local-authority-district/23UB,Cheltenham Borough Council,454848,507920,COMENSURA LIMITED,C-C23160-0115,Env Maint Div-Temporary Agency Staff,03 August 2011,341.55
http://statistics.data.gov.uk/id/local-authority-district/23UB,Cheltenham Borough Council,454848,507920,COMENSURA LIMITED,C-C23160-0115,Env Maint Div-Temporary Agency Staff,03 August 2011,202.95
http://statistics.data.gov.uk/id/local-authority-district/23UB,Cheltenham Borough Council,454848,507920,COMENSURA LIMITED,C-C23160-0115,Env Maint Div-Temporary Agency Staff,03 August 2011,346.16
http://statistics.data.gov.uk/id/local-authority-district/23UB,Cheltenham Borough Council,454848,507920,COMENSURA LIMITED,C-C23160-0115,Env Maint Div-Temporary Agency Staff,03 August 2011,292.05
http://statistics.data.gov.uk/id/local-authority-district/23UB,Cheltenham Borough Council,454847,507709,COMENSURA LIMITED,C-C23160-0115,Env Maint Div-Temporary Agency Staff,03 August 2011,336.60
http://statistics.data.gov.uk/id/local-authority-district/23UB,Cheltenham Borough Council,454846,507501,COMENSURA LIMITED,C-C23160-0115,Env Maint Div-Temporary Agency Staff,03 August 2011,341.55
http://statistics.data.gov.uk/id/local-authority-district/23UB,Cheltenham Borough Council,454846,507501,COMENSURA LIMITED,C-C23160-0115,Env Maint Div-Temporary Agency Staff,03 August 2011,341.55
http://statistics.data.gov.uk/id/local-authority-district/23UB,Cheltenham Borough Council,454846,507501,COMENSURA LIMITED,C-C23160-0115,Env Maint Div-Temporary Agency Staff,03 August 2011,207.69
http://statistics.data.gov.uk/id/local-authority-district/23UB,Cheltenham Borough Council,454846,507501,COMENSURA LIMITED,C-C23180-0115,Rcycl Coltn Schms-Temporary Agency Staff,03 August 2011,126.90
http://statistics.data.gov.uk/id/local-authority-district/23UB,Cheltenham Borough Council,454846,507501,COMENSURA LIMITED,C-C23180-0115,Rcycl Coltn Schms-Temporary Agency Staff,03 August 2011,499.95
http://statistics.data.gov.uk/id/local-authority-district/23UB,Cheltenham Borough Council,454846,507501,COMENSURA LIMITED,C-C23180-0115,Rcycl Coltn Schms-Temporary Agency Staff,03 August 2011,270.72
http://statistics.data.gov.uk/id/local-authority-district/23UB,Cheltenham Borough Council,454846,507501,COMENSURA LIMITED,C-C23180-0115,Rcycl Coltn Schms-Temporary Agency Staff,03 August 2011,388.16
http://statistics.data.gov.uk/id/local-authority-district/23UB,Cheltenham Borough Council,454846,507501,COMENSURA LIMITED,C-C23180-0115,Rcycl Coltn Schms-Temporary Agency Staff,03 August 2011,285.54
http://statistics.data.gov.uk/id/local-authority-district/23UB,Cheltenham Borough Council,454846,507501,COMENSURA LIMITED,C-C23180-0115,Rcycl Coltn Schms-Temporary Agency Staff,03 August 2011,116.33
http://statistics.data.gov.uk/id/local-authority-district/23UB,Cheltenham Borough Council,454846,507501,COMENSURA LIMITED,C-C23180-0115,Rcycl Coltn Schms-Temporary Agency Staff,03 August 2011,84.88
http://statistics.data.gov.uk/id/local-authority-district/23UB,Cheltenham Borough Council,454846,507501,COMENSURA LIMITED,C-C23180-0115,Rcycl Coltn Schms-Temporary Agency Staff,03 August 2011,277.06
http://statistics.data.gov.uk/id/local-authority-district/23UB,Cheltenham Borough Council,454846,507501,COMENSURA LIMITED,C-C23180-0115,Rcycl Coltn Schms-Temporary Agency Staff,03 August 2011,200.14
http://statistics.data.gov.uk/id/local-authority-district/23UB,Cheltenham Borough Council,454846,507501,COMENSURA LIMITED,C-C23180-0115,Rcycl Coltn Schms-Temporary Agency Staff,03 August 2011,336.29
http://statistics.data.gov.uk/id/local-authority-district/23UB,Cheltenham Borough Council,454846,507501,COMENSURA LIMITED,C-C23180-0115,Rcycl Coltn Schms-Temporary Agency Staff,03 August 2011,126.90
http://statistics.data.gov.uk/id/local-authority-district/23UB,Cheltenham Borough Council,454846,507501,COMENSURA LIMITED,C-C23180-0115,Rcycl Coltn Schms-Temporary Agency Staff,03 August 2011,175.54
http://statistics.data.gov.uk/id/local-authority-district/23UB,Cheltenham Borough Council,454846,507501,COMENSURA LIMITED,C-C23180-0115,Rcycl Coltn Schms-Temporary Agency Staff,03 August 2011,245.34
http://statistics.data.gov.uk/id/local-authority-district/23UB,Cheltenham Borough Council,454846,507501,COMENSURA LIMITED,C-C23180-0115,Rcycl Coltn Schms-Temporary Agency Staff,03 August 2011,224.20
http://statistics.data.gov.uk/id/local-authority-district/23UB,Cheltenham Borough Council,454846,507501,COMENSURA LIMITED,C-C23180-0115,Rcycl Coltn Schms-Temporary Agency Staff,03 August 2011,211.50
http://statistics.data.gov.uk/id/local-authority-district/23UB,Cheltenham Borough Council,454847,507709,COMENSURA LIMITED,C-C23180-0115,Rcycl Coltn Schms-Temporary Agency Staff,03 August 2011,277.07
http://statistics.data.gov.uk/id/local-authority-district/23UB,Cheltenham Borough Council,454847,507709,COMENSURA LIMITED,C-C23180-0115,Rcycl Coltn Schms-Temporary Agency Staff,03 August 2011,485.20
http://statistics.data.gov.uk/id/local-authority-district/23UB,Cheltenham Borough Council,454847,507709,COMENSURA LIMITED,C-C23180-0115,Rcycl Coltn Schms-Temporary Agency Staff,03 August 2011,129.02
http://statistics.data.gov.uk/id/local-authority-district/23UB,Cheltenham Borough Council,454847,507709,COMENSURA LIMITED,C-C23180-0115,Rcycl Coltn Schms-Temporary Agency Staff,03 August 2011,509.45
http://statistics.data.gov.uk/id/local-authority-district/23UB,Cheltenham Borough Council,454847,507709,COMENSURA LIMITED,C-C23180-0115,Rcycl Coltn Schms-Temporary Agency Staff,03 August 2011,169.20
http://statistics.data.gov.uk/id/local-authority-district/23UB,Cheltenham Borough Council,454847,507709,COMENSURA LIMITED,C-C23180-0115,Rcycl Coltn Schms-Temporary Agency Staff,03 August 2011,103.10
http://statistics.data.gov.uk/id/local-authority-district/23UB,Cheltenham Borough Council,454847,507709,COMENSURA LIMITED,C-C23180-0115,Rcycl Coltn Schms-Temporary Agency Staff,03 August 2011,283.41
http://statistics.data.gov.uk/id/local-authority-district/23UB,Cheltenham Borough Council,454847,507709,COMENSURA LIMITED,C-C23180-0115,Rcycl Coltn Schms-Temporary Agency Staff,03 August 2011,490.86
http://statistics.data.gov.uk/id/local-authority-district/23UB,Cheltenham Borough Council,454847,507709,COMENSURA LIMITED,C-C23180-0115,Rcycl Coltn Schms-Temporary Agency Staff,03 August 2011,224.19
http://statistics.data.gov.uk/id/local-authority-district/23UB,Cheltenham Borough Council,454846,507501,COMENSURA LIMITED,C-C23180-0115,Rcycl Coltn Schms-Temporary Agency Staff,03 August 2011,97.04
http://statistics.data.gov.uk/id/local-authority-district/23UB,Cheltenham Borough Council,454846,507501,COMENSURA LIMITED,C-C23180-0115,Rcycl Coltn Schms-Temporary Agency Staff,03 August 2011,512.48
http://statistics.data.gov.uk/id/local-authority-district/23UB,Cheltenham Borough Council,454846,507501,COMENSURA LIMITED,C-C23180-0115,Rcycl Coltn Schms-Temporary Agency Staff,03 August 2011,23.26
http://statistics.data.gov.uk/id/local-authority-district/23UB,Cheltenham Borough Council,454846,507501,COMENSURA LIMITED,C-C23180-0115,Rcycl Coltn Schms-Temporary Agency Staff,03 August 2011,388.16
http://statistics.data.gov.uk/id/local-authority-district/23UB,Cheltenham Borough Council,454846,507501,COMENSURA LIMITED,C-C23180-0115,Rcycl Coltn Schms-Temporary Agency Staff,03 August 2011,103.63
http://statistics.data.gov.uk/id/local-authority-district/23UB,Cheltenham Borough Council,454846,507501,COMENSURA LIMITED,C-C23180-0115,Rcycl Coltn Schms-Temporary Agency Staff,03 August 2011,338.40
http://statistics.data.gov.uk/id/local-authority-district/23UB,Cheltenham Borough Council,454846,507501,COMENSURA LIMITED,C-C23180-0115,Rcycl Coltn Schms-Temporary Agency Staff,03 August 2011,298.21
http://statistics.data.gov.uk/id/local-authority-district/23UB,Cheltenham Borough Council,454846,507501,COMENSURA LIMITED,C-C23180-0115,Rcycl Coltn Schms-Temporary Agency Staff,03 August 2011,289.76
http://statistics.data.gov.uk/id/local-authority-district/23UB,Cheltenham Borough Council,454848,507920,COMENSURA LIMITED,C-C23180-0115,Rcycl Coltn Schms-Temporary Agency Staff,03 August 2011,63.45
http://statistics.data.gov.uk/id/local-authority-district/23UB,Cheltenham Borough Council,454848,507920,COMENSURA LIMITED,C-C23180-0115,Rcycl Coltn Schms-Temporary Agency Staff,03 August 2011,485.20
http://statistics.data.gov.uk/id/local-authority-district/23UB,Cheltenham Borough Council,454848,507920,COMENSURA LIMITED,C-C23180-0115,Rcycl Coltn Schms-Temporary Agency Staff,03 August 2011,230.48
http://statistics.data.gov.uk/id/local-authority-district/23UB,Cheltenham Borough Council,454848,507920,COMENSURA LIMITED,C-C23180-0115,Rcycl Coltn Schms-Temporary Agency Staff,03 August 2011,192.46
http://statistics.data.gov.uk/id/local-authority-district/23UB,Cheltenham Borough Council,454848,507920,COMENSURA LIMITED,C-C23180-0115,Rcycl Coltn Schms-Temporary Agency Staff,03 August 2011,279.18
http://statistics.data.gov.uk/id/local-authority-district/23UB,Cheltenham Borough Council,454848,507920,COMENSURA LIMITED,C-C23180-0115,Rcycl Coltn Schms-Temporary Agency Staff,03 August 2011,521.16
http://statistics.data.gov.uk/id/local-authority-district/23UB,Cheltenham Borough Council,454848,507920,COMENSURA LIMITED,C-C23180-0115,Rcycl Coltn Schms-Temporary Agency Staff,03 August 2011,243.24
http://statistics.data.gov.uk/id/local-authority-district/23UB,Cheltenham Borough Council,454848,507920,COMENSURA LIMITED,C-C23180-0115,Rcycl Coltn Schms-Temporary Agency Staff,03 August 2011,190.35
http://statistics.data.gov.uk/id/local-authority-district/23UB,Cheltenham Borough Council,454847,507709,COMENSURA LIMITED,C-C23180-0115,Rcycl Coltn Schms-Temporary Agency Staff,03 August 2011,33.84
http://statistics.data.gov.uk/id/local-authority-district/23UB,Cheltenham Borough Council,454848,507920,COMENSURA LIMITED,C-C23180-0115,Rcycl Coltn Schms-Temporary Agency Staff,03 August 2011,218.34
http://statistics.data.gov.uk/id/local-authority-district/23UB,Cheltenham Borough Council,454848,507920,COMENSURA LIMITED,C-C23180-0115,Rcycl Coltn Schms-Temporary Agency Staff,03 August 2011,211.50
http://statistics.data.gov.uk/id/local-authority-district/23UB,Cheltenham Borough Council,454848,507920,COMENSURA LIMITED,C-C23180-0115,Rcycl Coltn Schms-Temporary Agency Staff,03 August 2011,194.08
http://statistics.data.gov.uk/id/local-authority-district/23UB,Cheltenham Borough Council,454848,507920,COMENSURA LIMITED,C-C23180-0115,Rcycl Coltn Schms-Temporary Agency Staff,03 August 2011,226.31
http://statistics.data.gov.uk/id/local-authority-district/23UB,Cheltenham Borough Council,454848,507920,COMENSURA LIMITED,C-C23180-0115,Rcycl Coltn Schms-Temporary Agency Staff,03 August 2011,318.42
http://statistics.data.gov.uk/id/local-authority-district/23UB,Cheltenham Borough Council,454848,507920,COMENSURA LIMITED,C-C23180-0115,Rcycl Coltn Schms-Temporary Agency Staff,03 August 2011,97.04
http://statistics.data.gov.uk/id/local-authority-district/23UB,Cheltenham Borough Council,454848,507920,COMENSURA LIMITED,C-C23180-0115,Rcycl Coltn Schms-Temporary Agency Staff,03 August 2011,249.57
http://statistics.data.gov.uk/id/local-authority-district/23UB,Cheltenham Borough Council,454848,507920,COMENSURA LIMITED,C-C23180-0115,Rcycl Coltn Schms-Temporary Agency Staff,03 August 2011,190.35
http://statistics.data.gov.uk/id/local-authority-district/23UB,Cheltenham Borough Council,454848,507920,COMENSURA LIMITED,C-C23180-0115,Rcycl Coltn Schms-Temporary Agency Staff,03 August 2011,76.14
http://statistics.data.gov.uk/id/local-authority-district/23UB,Cheltenham Borough Council,454848,507920,COMENSURA LIMITED,C-C23180-0115,Rcycl Coltn Schms-Temporary Agency Staff,03 August 2011,291.87
http://statistics.data.gov.uk/id/local-authority-district/23UB,Cheltenham Borough Council,454848,507920,COMENSURA LIMITED,C-C23180-0115,Rcycl Coltn Schms-Temporary Agency Staff,03 August 2011,323.60
http://statistics.data.gov.uk/id/local-authority-district/23UB,Cheltenham Borough Council,454848,507920,COMENSURA LIMITED,C-C23180-0115,Rcycl Coltn Schms-Temporary Agency Staff,03 August 2011,291.86
http://statistics.data.gov.uk/id/local-authority-district/23UB,Cheltenham Borough Council,454848,507920,COMENSURA LIMITED,C-C23180-0115,Rcycl Coltn Schms-Temporary Agency Staff,03 August 2011,344.74
http://statistics.data.gov.uk/id/local-authority-district/23UB,Cheltenham Borough Council,454848,507920,COMENSURA LIMITED,C-C23180-0115,Rcycl Coltn Schms-Temporary Agency Staff,03 August 2011,122.67
http://statistics.data.gov.uk/id/local-authority-district/23UB,Cheltenham Borough Council,454848,507920,COMENSURA LIMITED,C-C23180-0115,Rcycl Coltn Schms-Temporary Agency Staff,03 August 2011,196.70
http://statistics.data.gov.uk/id/local-authority-district/23UB,Cheltenham Borough Council,454848,507920,COMENSURA LIMITED,C-C23180-0115,Rcycl Coltn Schms-Temporary Agency Staff,03 August 2011,325.71
http://statistics.data.gov.uk/id/local-authority-district/23UB,Cheltenham Borough Council,454848,507920,COMENSURA LIMITED,C-C23180-0115,Rcycl Coltn Schms-Temporary Agency Staff,03 August 2011,291.86
http://statistics.data.gov.uk/id/local-authority-district/23UB,Cheltenham Borough Council,454848,507920,COMENSURA LIMITED,C-C23180-0115,Rcycl Coltn Schms-Temporary Agency Staff,03 August 2011,281.30
http://statistics.data.gov.uk/id/local-authority-district/23UB,Cheltenham Borough Council,454847,507709,COMENSURA LIMITED,C-C23180-0115,Rcycl Coltn Schms-Temporary Agency Staff,03 August 2011,291.12
http://statistics.data.gov.uk/id/local-authority-district/23UB,Cheltenham Borough Council,454847,507709,COMENSURA LIMITED,C-C23180-0115,Rcycl Coltn Schms-Temporary Agency Staff,03 August 2011,266.50
http://statistics.data.gov.uk/id/local-authority-district/23UB,Cheltenham Borough Council,454847,507709,COMENSURA LIMITED,C-C23180-0115,Rcycl Coltn Schms-Temporary Agency Staff,03 August 2011,313.02
http://statistics.data.gov.uk/id/local-authority-district/23UB,Cheltenham Borough Council,454847,507709,COMENSURA LIMITED,C-C23180-0115,Rcycl Coltn Schms-Temporary Agency Staff,03 August 2011,59.22
http://statistics.data.gov.uk/id/local-authority-district/23UB,Cheltenham Borough Council,454847,507709,COMENSURA LIMITED,C-C23180-0115,Rcycl Coltn Schms-Temporary Agency Staff,03 August 2011,291.12
http://statistics.data.gov.uk/id/local-authority-district/23UB,Cheltenham Borough Council,454847,507709,COMENSURA LIMITED,C-C23180-0115,Rcycl Coltn Schms-Temporary Agency Staff,03 August 2011,503.39
http://statistics.data.gov.uk/id/local-authority-district/23UB,Cheltenham Borough Council,454847,507709,COMENSURA LIMITED,C-C23180-0115,Rcycl Coltn Schms-Temporary Agency Staff,03 August 2011,158.62
http://statistics.data.gov.uk/id/local-authority-district/23UB,Cheltenham Borough Council,454847,507709,COMENSURA LIMITED,C-C23180-0115,Rcycl Coltn Schms-Temporary Agency Staff,03 August 2011,300.33
http://statistics.data.gov.uk/id/local-authority-district/23UB,Cheltenham Borough Council,454848,507920,COMENSURA LIMITED,C-C23180-0115,Rcycl Coltn Schms-Temporary Agency Staff,03 August 2011,93.06
http://statistics.data.gov.uk/id/local-authority-district/23UB,Cheltenham Borough Council,454848,507920,COMENSURA LIMITED,C-C23180-0115,Rcycl Coltn Schms-Temporary Agency Staff,03 August 2011,171.32
http://statistics.data.gov.uk/id/local-authority-district/23UB,Cheltenham Borough Council,454848,507920,COMENSURA LIMITED,C-C23180-0115,Rcycl Coltn Schms-Temporary Agency Staff,03 August 2011,97.04
http://statistics.data.gov.uk/id/local-authority-district/23UB,Cheltenham Borough Council,454848,507920,COMENSURA LIMITED,C-C23180-0115,Rcycl Coltn Schms-Temporary Agency Staff,03 August 2011,112.20
http://statistics.data.gov.uk/id/local-authority-district/23UB,Cheltenham Borough Council,454847,507709,COMENSURA LIMITED,C-C23180-0115,Rcycl Coltn Schms-Temporary Agency Staff,03 August 2011,181.89
http://statistics.data.gov.uk/id/local-authority-district/23UB,Cheltenham Borough Council,454847,507709,COMENSURA LIMITED,C-C23180-0115,Rcycl Coltn Schms-Temporary Agency Staff,03 August 2011,291.87
http://statistics.data.gov.uk/id/local-authority-district/23UB,Cheltenham Borough Council,454847,507709,COMENSURA LIMITED,C-C23180-0115,Rcycl Coltn Schms-Temporary Agency Staff,03 August 2011,258.03
http://statistics.data.gov.uk/id/local-authority-district/23UB,Cheltenham Borough Council,454847,507709,COMENSURA LIMITED,C-C23180-0115,Rcycl Coltn Schms-Temporary Agency Staff,03 August 2011,262.26
http://statistics.data.gov.uk/id/local-authority-district/23UB,Cheltenham Borough Council,454847,507709,COMENSURA LIMITED,C-C23180-0115,Rcycl Coltn Schms-Temporary Agency Staff,03 August 2011,308.79
http://statistics.data.gov.uk/id/local-authority-district/23UB,Cheltenham Borough Council,454847,507709,COMENSURA LIMITED,C-C23180-0115,Rcycl Coltn Schms-Temporary Agency Staff,03 August 2011,177.66
http://statistics.data.gov.uk/id/local-authority-district/23UB,Cheltenham Borough Council,454847,507709,COMENSURA LIMITED,C-C23180-0115,Rcycl Coltn Schms-Temporary Agency Staff,03 August 2011,291.87
http://statistics.data.gov.uk/id/local-authority-district/23UB,Cheltenham Borough Council,454847,507709,COMENSURA LIMITED,C-C23180-0115,Rcycl Coltn Schms-Temporary Agency Staff,03 August 2011,258.03
http://statistics.data.gov.uk/id/local-authority-district/23UB,Cheltenham Borough Council,454846,507501,COMENSURA LIMITED,C-C23180-0115,Rcycl Coltn Schms-Temporary Agency Staff,03 August 2011,527.65
http://statistics.data.gov.uk/id/local-authority-district/23UB,Cheltenham Borough Council,454846,507501,COMENSURA LIMITED,C-C23180-0115,Rcycl Coltn Schms-Temporary Agency Staff,03 August 2011,334.17
http://statistics.data.gov.uk/id/local-authority-district/23UB,Cheltenham Borough Council,454846,507501,COMENSURA LIMITED,C-C23180-0115,Rcycl Coltn Schms-Temporary Agency Staff,03 August 2011,241.11
http://statistics.data.gov.uk/id/local-authority-district/23UB,Cheltenham Borough Council,454846,507501,COMENSURA LIMITED,C-C23190-0115,Garden Collectn-Temporary Agency Staff,03 August 2011,341.55
http://statistics.data.gov.uk/id/local-authority-district/23UB,Cheltenham Borough Council,454846,507501,COMENSURA LIMITED,C-C23190-0115,Garden Collectn-Temporary Agency Staff,03 August 2011,228.42
http://statistics.data.gov.uk/id/local-authority-district/23UB,Cheltenham Borough Council,454847,507709,COMENSURA LIMITED,C-C23190-0115,Garden Collectn-Temporary Agency Staff,03 August 2011,80.37
http://statistics.data.gov.uk/id/local-authority-district/23UB,Cheltenham Borough Council,454847,507709,COMENSURA LIMITED,C-C23190-0115,Garden Collectn-Temporary Agency Staff,03 August 2011,194.08
http://statistics.data.gov.uk/id/local-authority-district/23UB,Cheltenham Borough Council,454848,507920,COMENSURA LIMITED,C-C23190-0115,Garden Collectn-Temporary Agency Staff,03 August 2011,215.73
http://statistics.data.gov.uk/id/local-authority-district/23UB,Cheltenham Borough Council,454848,507920,COMENSURA LIMITED,C-C23190-0115,Garden Collectn-Temporary Agency Staff,03 August 2011,239.00
http://statistics.data.gov.uk/id/local-authority-district/23UB,Cheltenham Borough Council,454847,507709,COMENSURA LIMITED,C-C23190-0115,Garden Collectn-Temporary Agency Staff,03 August 2011,213.61
http://statistics.data.gov.uk/id/local-authority-district/23UB,Cheltenham Borough Council,454847,507709,COMENSURA LIMITED,C-C23190-0115,Garden Collectn-Temporary Agency Staff,03 August 2011,59.22
http://statistics.data.gov.uk/id/local-authority-district/23UB,Cheltenham Borough Council,454847,507709,COMENSURA LIMITED,C-C23190-0115,Garden Collectn-Temporary Agency Staff,03 August 2011,126.90
http://statistics.data.gov.uk/id/local-authority-district/23UB,Cheltenham Borough Council,454846,507501,COMENSURA LIMITED,C-C23190-0115,Garden Collectn-Temporary Agency Staff,03 August 2011,148.05
http://statistics.data.gov.uk/id/local-authority-district/23UB,Cheltenham Borough Council,454846,507501,COMENSURA LIMITED,C-C23190-0115,Garden Collectn-Temporary Agency Staff,03 August 2011,97.04
http://statistics.data.gov.uk/id/local-authority-district/23UB,Cheltenham Borough Council,454846,507501,COMENSURA LIMITED,C-C23190-0115,Garden Collectn-Temporary Agency Staff,03 August 2011,203.04
http://statistics.data.gov.uk/id/local-authority-district/23UB,Cheltenham Borough Council,454846,507501,COMENSURA LIMITED,C-D12500-0115,Property Servs-Temporary Agency Staff,03 August 2011,63.45
http://statistics.data.gov.uk/id/local-authority-district/23UB,Cheltenham Borough Council,454847,507709,COMENSURA LIMITED,C-D12500-0115,Property Servs-Temporary Agency Staff,03 August 2011,105.75
http://statistics.data.gov.uk/id/local-authority-district/23UB,Cheltenham Borough Council,454848,507920,COMENSURA LIMITED,C-D12500-0115,Property Servs-Temporary Agency Staff,03 August 2011,84.60
http://statistics.data.gov.uk/id/local-authority-district/23UB,Cheltenham Borough Council,454847,507709,COMENSURA LIMITED,C-D13100-0115,Muni Off Blgs-Temporary Agency Staff,03 August 2011,16.92
http://statistics.data.gov.uk/id/local-authority-district/23UB,Cheltenham Borough Council,454846,507501,COMENSURA LIMITED,C-E36200-0115,On-St Car Prkng-Temporary Agency Staff,03 August 2011,606.12
http://statistics.data.gov.uk/id/local-authority-district/23UB,Cheltenham Borough Council,454847,507709,COMENSURA LIMITED,C-E36200-0115,On-St Car Prkng-Temporary Agency Staff,03 August 2011,507.17
http://statistics.data.gov.uk/id/local-authority-district/23UB,Cheltenham Borough Council,454846,507501,COMENSURA LIMITED,C-E36200-0115,On-St Car Prkng-Temporary Agency Staff,03 August 2011,593.76
http://statistics.data.gov.uk/id/local-authority-district/23UB,Cheltenham Borough Council,454846,507501,COMENSURA LIMITED,C-E36200-0115,On-St Car Prkng-Temporary Agency Staff,03 August 2011,504.08
http://statistics.data.gov.uk/id/local-authority-district/23UB,Cheltenham Borough Council,454847,507709,COMENSURA LIMITED,C-E36200-0115,On-St Car Prkng-Temporary Agency Staff,03 August 2011,513.35
http://statistics.data.gov.uk/id/local-authority-district/23UB,Cheltenham Borough Council,454846,507501,COMENSURA LIMITED,C-E63100-0115,Cemetery & Crem-Temporary Agency Staff,03 August 2011,214.40
http://statistics.data.gov.uk/id/local-authority-district/23UB,Cheltenham Borough Council,454846,507501,COMENSURA LIMITED,C-E63100-0115,Cemetery & Crem-Temporary Agency Staff,03 August 2011,279.18
http://statistics.data.gov.uk/id/local-authority-district/23UB,Cheltenham Borough Council,454846,507501,COMENSURA LIMITED,C-E63100-0115,Cemetery & Crem-Temporary Agency Staff,03 August 2011,300.33
http://statistics.data.gov.uk/id/local-authority-district/23UB,Cheltenham Borough Council,454846,507501,COMENSURA LIMITED,C-E63100-0115,Cemetery & Crem-Temporary Agency Staff,03 August 2011,249.57
http://statistics.data.gov.uk/id/local-authority-district/23UB,Cheltenham Borough Council,454846,507501,COMENSURA LIMITED,C-E63100-0115,Cemetery & Crem-Temporary Agency Staff,03 August 2011,313.02
http://statistics.data.gov.uk/id/local-authority-district/23UB,Cheltenham Borough Council,454846,507501,COMENSURA LIMITED,C-E63100-0115,Cemetery & Crem-Temporary Agency Staff,03 August 2011,313.02
http://statistics.data.gov.uk/id/local-authority-district/23UB,Cheltenham Borough Council,454846,507501,COMENSURA LIMITED,C-E63100-0115,Cemetery & Crem-Temporary Agency Staff,03 August 2011,304.56
http://statistics.data.gov.uk/id/local-authority-district/23UB,Cheltenham Borough Council,454846,507501,COMENSURA LIMITED,C-E63100-0115,Cemetery & Crem-Temporary Agency Staff,03 August 2011,296.10
http://statistics.data.gov.uk/id/local-authority-district/23UB,Cheltenham Borough Council,454848,507920,COMENSURA LIMITED,C-E63100-0115,Cemetery & Crem-Temporary Agency Staff,03 August 2011,291.87
http://statistics.data.gov.uk/id/local-authority-district/23UB,Cheltenham Borough Council,454848,507920,COMENSURA LIMITED,C-E63100-0115,Cemetery & Crem-Temporary Agency Staff,03 August 2011,313.02
http://statistics.data.gov.uk/id/local-authority-district/23UB,Cheltenham Borough Council,454848,507920,COMENSURA LIMITED,C-E63100-0115,Cemetery & Crem-Temporary Agency Staff,03 August 2011,304.56
http://statistics.data.gov.uk/id/local-authority-district/23UB,Cheltenham Borough Council,454847,507709,COMENSURA LIMITED,C-E63100-0115,Cemetery & Crem-Temporary Agency Staff,03 August 2011,152.28
http://statistics.data.gov.uk/id/local-authority-district/23UB,Cheltenham Borough Council,454847,507709,COMENSURA LIMITED,C-E63100-0115,Cemetery & Crem-Temporary Agency Staff,03 August 2011,313.02
http://statistics.data.gov.uk/id/local-authority-district/23UB,Cheltenham Borough Council,454847,507709,COMENSURA LIMITED,C-E63100-0115,Cemetery & Crem-Temporary Agency Staff,03 August 2011,249.57
http://statistics.data.gov.uk/id/local-authority-district/23UB,Cheltenham Borough Council,454847,507709,COMENSURA LIMITED,C-E63100-0115,Cemetery & Crem-Temporary Agency Staff,03 August 2011,313.02
http://statistics.data.gov.uk/id/local-authority-district/23UB,Cheltenham Borough Council,454847,507709,COMENSURA LIMITED,C-E63100-0115,Cemetery & Crem-Temporary Agency Staff,03 August 2011,313.02
http://statistics.data.gov.uk/id/local-authority-district/23UB,Cheltenham Borough Council,454847,507709,COMENSURA LIMITED,C-E63100-0115,Cemetery & Crem-Temporary Agency Staff,03 August 2011,313.02
http://statistics.data.gov.uk/id/local-authority-district/23UB,Cheltenham Borough Council,454847,507709,COMENSURA LIMITED,C-E63100-0115,Cemetery & Crem-Temporary Agency Staff,03 August 2011,249.57
http://statistics.data.gov.uk/id/local-authority-district/23UB,Cheltenham Borough Council,455214,508128,COMENSURA LIMITED,C-C22100-0115,Green Env Div-Temporary Agency Staff,09 August 2011,277.08
http://statistics.data.gov.uk/id/local-authority-district/23UB,Cheltenham Borough Council,455214,508128,COMENSURA LIMITED,C-C22100-0115,Green Env Div-Temporary Agency Staff,09 August 2011,346.88
http://statistics.data.gov.uk/id/local-authority-district/23UB,Cheltenham Borough Council,455214,508128,COMENSURA LIMITED,C-C22100-0115,Green Env Div-Temporary Agency Staff,09 August 2011,346.88
http://statistics.data.gov.uk/id/local-authority-district/23UB,Cheltenham Borough Council,455214,508128,COMENSURA LIMITED,C-C22100-0115,Green Env Div-Temporary Agency Staff,09 August 2011,346.88
http://statistics.data.gov.uk/id/local-authority-district/23UB,Cheltenham Borough Council,455214,508128,COMENSURA LIMITED,C-C22105-0115,Hsg Forecourts-Temporary Agency Staff,09 August 2011,346.86
http://statistics.data.gov.uk/id/local-authority-district/23UB,Cheltenham Borough Council,455214,508128,COMENSURA LIMITED,C-C22105-0115,Hsg Forecourts-Temporary Agency Staff,09 August 2011,346.86
http://statistics.data.gov.uk/id/local-authority-district/23UB,Cheltenham Borough Council,455214,508128,COMENSURA LIMITED,C-C22110-0115,Parks & Gardens-Temporary Agency Staff,09 August 2011,346.86
http://statistics.data.gov.uk/id/local-authority-district/23UB,Cheltenham Borough Council,455214,508128,COMENSURA LIMITED,C-C22120-0115,Spts/Open Space-Temporary Agency Staff,09 August 2011,346.86
http://statistics.data.gov.uk/id/local-authority-district/23UB,Cheltenham Borough Council,455214,508128,COMENSURA LIMITED,C-C22120-0115,Spts/Open Space-Temporary Agency Staff,09 August 2011,346.86
http://statistics.data.gov.uk/id/local-authority-district/23UB,Cheltenham Borough Council,455214,508128,COMENSURA LIMITED,C-C23100-0115,Refuse Collection-Temporary Agency Staff,09 August 2011,97.04
http://statistics.data.gov.uk/id/local-authority-district/23UB,Cheltenham Borough Council,455214,508128,COMENSURA LIMITED,C-C23100-0115,Refuse Collection-Temporary Agency Staff,09 August 2011,179.77
http://statistics.data.gov.uk/id/local-authority-district/23UB,Cheltenham Borough Council,455214,508128,COMENSURA LIMITED,C-C23100-0115,Refuse Collection-Temporary Agency Staff,09 August 2011,234.77
http://statistics.data.gov.uk/id/local-authority-district/23UB,Cheltenham Borough Council,455214,508128,COMENSURA LIMITED,C-C23100-0115,Refuse Collection-Temporary Agency Staff,09 August 2011,212.28
http://statistics.data.gov.uk/id/local-authority-district/23UB,Cheltenham Borough Council,455214,508128,COMENSURA LIMITED,C-C23100-0115,Refuse Collection-Temporary Agency Staff,09 August 2011,131.14
http://statistics.data.gov.uk/id/local-authority-district/23UB,Cheltenham Borough Council,455214,508128,COMENSURA LIMITED,C-C23100-0115,Refuse Collection-Temporary Agency Staff,09 August 2011,287.65
http://statistics.data.gov.uk/id/local-authority-district/23UB,Cheltenham Borough Council,455214,508128,COMENSURA LIMITED,C-C23100-0115,Refuse Collection-Temporary Agency Staff,09 August 2011,291.87
http://statistics.data.gov.uk/id/local-authority-district/23UB,Cheltenham Borough Council,455214,508128,COMENSURA LIMITED,C-C23100-0115,Refuse Collection-Temporary Agency Staff,09 August 2011,266.49
http://statistics.data.gov.uk/id/local-authority-district/23UB,Cheltenham Borough Council,455214,508128,COMENSURA LIMITED,C-C23100-0115,Refuse Collection-Temporary Agency Staff,09 August 2011,313.02
http://statistics.data.gov.uk/id/local-authority-district/23UB,Cheltenham Borough Council,455214,508128,COMENSURA LIMITED,C-C23100-0115,Refuse Collection-Temporary Agency Staff,09 August 2011,217.84
http://statistics.data.gov.uk/id/local-authority-district/23UB,Cheltenham Borough Council,455214,508128,COMENSURA LIMITED,C-C23100-0115,Refuse Collection-Temporary Agency Staff,09 August 2011,186.12
http://statistics.data.gov.uk/id/local-authority-district/23UB,Cheltenham Borough Council,455214,508128,COMENSURA LIMITED,C-C23100-0115,Refuse Collection-Temporary Agency Staff,09 August 2011,340.51
http://statistics.data.gov.uk/id/local-authority-district/23UB,Cheltenham Borough Council,455214,508128,COMENSURA LIMITED,C-C23100-0115,Refuse Collection-Temporary Agency Staff,09 August 2011,313.02
http://statistics.data.gov.uk/id/local-authority-district/23UB,Cheltenham Borough Council,455214,508128,COMENSURA LIMITED,C-C23100-0115,Refuse Collection-Temporary Agency Staff,09 August 2011,313.02
http://statistics.data.gov.uk/id/local-authority-district/23UB,Cheltenham Borough Council,455214,508128,COMENSURA LIMITED,C-C23100-0115,Refuse Collection-Temporary Agency Staff,09 August 2011,382.82
http://statistics.data.gov.uk/id/local-authority-district/23UB,Cheltenham Borough Council,455214,508128,COMENSURA LIMITED,C-C23100-0115,Refuse Collection-Temporary Agency Staff,09 August 2011,313.02
http://statistics.data.gov.uk/id/local-authority-district/23UB,Cheltenham Borough Council,455214,508128,COMENSURA LIMITED,C-C23100-0115,Refuse Collection-Temporary Agency Staff,09 August 2011,249.57
http://statistics.data.gov.uk/id/local-authority-district/23UB,Cheltenham Borough Council,455214,508128,COMENSURA LIMITED,C-C23100-0115,Refuse Collection-Temporary Agency Staff,09 August 2011,249.56
http://statistics.data.gov.uk/id/local-authority-district/23UB,Cheltenham Borough Council,455214,508128,COMENSURA LIMITED,C-C23100-0115,Refuse Collection-Temporary Agency Staff,09 August 2011,186.12
http://statistics.data.gov.uk/id/local-authority-district/23UB,Cheltenham Borough Council,455214,508128,COMENSURA LIMITED,C-C23100-0115,Refuse Collection-Temporary Agency Staff,09 August 2011,109.98
http://statistics.data.gov.uk/id/local-authority-district/23UB,Cheltenham Borough Council,455214,508128,COMENSURA LIMITED,C-C23125-0115,Recyl Bring Schms-Temporary Agency Staff,09 August 2011,491.26
http://statistics.data.gov.uk/id/local-authority-district/23UB,Cheltenham Borough Council,455214,508128,COMENSURA LIMITED,C-C23160-0115,Env Maint Div-Temporary Agency Staff,09 August 2011,346.15
http://statistics.data.gov.uk/id/local-authority-district/23UB,Cheltenham Borough Council,455214,508128,COMENSURA LIMITED,C-C23160-0115,Env Maint Div-Temporary Agency Staff,09 August 2011,346.50
http://statistics.data.gov.uk/id/local-authority-district/23UB,Cheltenham Borough Council,455214,508128,COMENSURA LIMITED,C-C23180-0115,Rcycl Coltn Schms-Temporary Agency Staff,09 August 2011,-4.23
http://statistics.data.gov.uk/id/local-authority-district/23UB,Cheltenham Borough Council,455214,508128,COMENSURA LIMITED,C-C23180-0115,Rcycl Coltn Schms-Temporary Agency Staff,09 August 2011,145.93
http://statistics.data.gov.uk/id/local-authority-district/23UB,Cheltenham Borough Council,455214,508128,COMENSURA LIMITED,C-C23180-0115,Rcycl Coltn Schms-Temporary Agency Staff,09 August 2011,241.11
http://statistics.data.gov.uk/id/local-authority-district/23UB,Cheltenham Borough Council,455214,508128,COMENSURA LIMITED,C-C23180-0115,Rcycl Coltn Schms-Temporary Agency Staff,09 August 2011,213.62
http://statistics.data.gov.uk/id/local-authority-district/23UB,Cheltenham Borough Council,455214,508128,COMENSURA LIMITED,C-C23180-0115,Rcycl Coltn Schms-Temporary Agency Staff,09 August 2011,126.90
http://statistics.data.gov.uk/id/local-authority-district/23UB,Cheltenham Borough Council,455214,508128,COMENSURA LIMITED,C-C23180-0115,Rcycl Coltn Schms-Temporary Agency Staff,09 August 2011,97.29
http://statistics.data.gov.uk/id/local-authority-district/23UB,Cheltenham Borough Council,455214,508128,COMENSURA LIMITED,C-C23180-0115,Rcycl Coltn Schms-Temporary Agency Staff,09 August 2011,297.18
http://statistics.data.gov.uk/id/local-authority-district/23UB,Cheltenham Borough Council,455214,508128,COMENSURA LIMITED,C-C23180-0115,Rcycl Coltn Schms-Temporary Agency Staff,09 August 2011,186.12
http://statistics.data.gov.uk/id/local-authority-district/23UB,Cheltenham Borough Council,455214,508128,COMENSURA LIMITED,C-C23180-0115,Rcycl Coltn Schms-Temporary Agency Staff,09 August 2011,101.52
http://statistics.data.gov.uk/id/local-authority-district/23UB,Cheltenham Borough Council,455214,508128,COMENSURA LIMITED,C-C23180-0115,Rcycl Coltn Schms-Temporary Agency Staff,09 August 2011,281.30
http://statistics.data.gov.uk/id/local-authority-district/23UB,Cheltenham Borough Council,455214,508128,COMENSURA LIMITED,C-C23180-0115,Rcycl Coltn Schms-Temporary Agency Staff,09 August 2011,293.98
http://statistics.data.gov.uk/id/local-authority-district/23UB,Cheltenham Borough Council,455214,508128,COMENSURA LIMITED,C-C23180-0115,Rcycl Coltn Schms-Temporary Agency Staff,09 August 2011,184.01
http://statistics.data.gov.uk/id/local-authority-district/23UB,Cheltenham Borough Council,455214,508128,COMENSURA LIMITED,C-C23180-0115,Rcycl Coltn Schms-Temporary Agency Staff,09 August 2011,266.49
http://statistics.data.gov.uk/id/local-authority-district/23UB,Cheltenham Borough Council,455214,508128,COMENSURA LIMITED,C-C23180-0115,Rcycl Coltn Schms-Temporary Agency Staff,09 August 2011,272.83
http://statistics.data.gov.uk/id/local-authority-district/23UB,Cheltenham Borough Council,455214,508128,COMENSURA LIMITED,C-C23180-0115,Rcycl Coltn Schms-Temporary Agency Staff,09 August 2011,304.56
http://statistics.data.gov.uk/id/local-authority-district/23UB,Cheltenham Borough Council,455214,508128,COMENSURA LIMITED,C-C23180-0115,Rcycl Coltn Schms-Temporary Agency Staff,09 August 2011,388.16
http://statistics.data.gov.uk/id/local-authority-district/23UB,Cheltenham Borough Council,455214,508128,COMENSURA LIMITED,C-C23180-0115,Rcycl Coltn Schms-Temporary Agency Staff,09 August 2011,485.20
http://statistics.data.gov.uk/id/local-authority-district/23UB,Cheltenham Borough Council,455214,508128,COMENSURA LIMITED,C-C23180-0115,Rcycl Coltn Schms-Temporary Agency Staff,09 August 2011,42.30
http://statistics.data.gov.uk/id/local-authority-district/23UB,Cheltenham Borough Council,455214,508128,COMENSURA LIMITED,C-C23180-0115,Rcycl Coltn Schms-Temporary Agency Staff,09 August 2011,281.30
http://statistics.data.gov.uk/id/local-authority-district/23UB,Cheltenham Borough Council,455214,508128,COMENSURA LIMITED,C-C23180-0115,Rcycl Coltn Schms-Temporary Agency Staff,09 August 2011,207.26
http://statistics.data.gov.uk/id/local-authority-district/23UB,Cheltenham Borough Council,455214,508128,COMENSURA LIMITED,C-C23180-0115,Rcycl Coltn Schms-Temporary Agency Staff,09 August 2011,126.90
http://statistics.data.gov.uk/id/local-authority-district/23UB,Cheltenham Borough Council,455214,508128,COMENSURA LIMITED,C-C23180-0115,Rcycl Coltn Schms-Temporary Agency Staff,09 August 2011,98.00
http://statistics.data.gov.uk/id/local-authority-district/23UB,Cheltenham Borough Council,455214,508128,COMENSURA LIMITED,C-C23180-0115,Rcycl Coltn Schms-Temporary Agency Staff,09 August 2011,184.01
http://statistics.data.gov.uk/id/local-authority-district/23UB,Cheltenham Borough Council,455214,508128,COMENSURA LIMITED,C-C23180-0115,Rcycl Coltn Schms-Temporary Agency Staff,09 August 2011,169.76
http://statistics.data.gov.uk/id/local-authority-district/23UB,Cheltenham Borough Council,455214,508128,COMENSURA LIMITED,C-C23180-0115,Rcycl Coltn Schms-Temporary Agency Staff,09 August 2011,380.70
http://statistics.data.gov.uk/id/local-authority-district/23UB,Cheltenham Borough Council,455214,508128,COMENSURA LIMITED,C-C23180-0115,Rcycl Coltn Schms-Temporary Agency Staff,09 August 2011,315.38
http://statistics.data.gov.uk/id/local-authority-district/23UB,Cheltenham Borough Council,455214,508128,COMENSURA LIMITED,C-C23180-0115,Rcycl Coltn Schms-Temporary Agency Staff,09 August 2011,484.80
http://statistics.data.gov.uk/id/local-authority-district/23UB,Cheltenham Borough Council,455214,508128,COMENSURA LIMITED,C-C23190-0115,Garden Collectn-Temporary Agency Staff,09 August 2011,97.04
http://statistics.data.gov.uk/id/local-authority-district/23UB,Cheltenham Borough Council,455214,508128,COMENSURA LIMITED,C-C23190-0115,Garden Collectn-Temporary Agency Staff,09 August 2011,222.08
http://statistics.data.gov.uk/id/local-authority-district/23UB,Cheltenham Borough Council,455214,508128,COMENSURA LIMITED,C-C23190-0115,Garden Collectn-Temporary Agency Staff,09 August 2011,230.54
http://statistics.data.gov.uk/id/local-authority-district/23UB,Cheltenham Borough Council,455214,508128,COMENSURA LIMITED,C-C23190-0115,Garden Collectn-Temporary Agency Staff,09 August 2011,97.04
http://statistics.data.gov.uk/id/local-authority-district/23UB,Cheltenham Borough Council,455214,508128,COMENSURA LIMITED,C-C23190-0115,Garden Collectn-Temporary Agency Staff,09 August 2011,222.08
http://statistics.data.gov.uk/id/local-authority-district/23UB,Cheltenham Borough Council,455214,508128,COMENSURA LIMITED,C-D12300-0115,Personnel and P-Temporary Agency Staff,09 August 2011,398.53
http://statistics.data.gov.uk/id/local-authority-district/23UB,Cheltenham Borough Council,455214,508128,COMENSURA LIMITED,C-D12300-0115,Personnel and P-Temporary Agency Staff,09 August 2011,499.86
http://statistics.data.gov.uk/id/local-authority-district/23UB,Cheltenham Borough Council,455214,508128,COMENSURA LIMITED,C-D12500-0115,Property Servs-Temporary Agency Staff,09 August 2011,105.75
http://statistics.data.gov.uk/id/local-authority-district/23UB,Cheltenham Borough Council,455214,508128,COMENSURA LIMITED,C-D13100-0115,Muni Off Blgs-Temporary Agency Staff,09 August 2011,42.30
http://statistics.data.gov.uk/id/local-authority-district/23UB,Cheltenham Borough Council,456136,508325,COMENSURA LIMITED,C-C22100-0115,Green Env Div-Temporary Agency Staff,26 August 2011,323.61
http://statistics.data.gov.uk/id/local-authority-district/23UB,Cheltenham Borough Council,456136,508325,COMENSURA LIMITED,C-C22100-0115,Green Env Div-Temporary Agency Staff,26 August 2011,346.88
http://statistics.data.gov.uk/id/local-authority-district/23UB,Cheltenham Borough Council,456139,508747,COMENSURA LIMITED,C-C22100-0115,Green Env Div-Temporary Agency Staff,26 August 2011,346.88
http://statistics.data.gov.uk/id/local-authority-district/23UB,Cheltenham Borough Council,456139,508747,COMENSURA LIMITED,C-C22100-0115,Green Env Div-Temporary Agency Staff,26 August 2011,346.88
http://statistics.data.gov.uk/id/local-authority-district/23UB,Cheltenham Borough Council,456137,508467,COMENSURA LIMITED,C-C22100-0115,Green Env Div-Temporary Agency Staff,26 August 2011,346.88
http://statistics.data.gov.uk/id/local-authority-district/23UB,Cheltenham Borough Council,456137,508467,COMENSURA LIMITED,C-C22100-0115,Green Env Div-Temporary Agency Staff,26 August 2011,346.88
http://statistics.data.gov.uk/id/local-authority-district/23UB,Cheltenham Borough Council,456138,508611,COMENSURA LIMITED,C-C22100-0115,Green Env Div-Temporary Agency Staff,26 August 2011,346.88
http://statistics.data.gov.uk/id/local-authority-district/23UB,Cheltenham Borough Council,456138,508611,COMENSURA LIMITED,C-C22100-0115,Green Env Div-Temporary Agency Staff,26 August 2011,346.88
http://statistics.data.gov.uk/id/local-authority-district/23UB,Cheltenham Borough Council,456138,508611,COMENSURA LIMITED,C-C22100-0115,Green Env Div-Temporary Agency Staff,26 August 2011,346.88
http://statistics.data.gov.uk/id/local-authority-district/23UB,Cheltenham Borough Council,456138,508611,COMENSURA LIMITED,C-C22100-0115,Green Env Div-Temporary Agency Staff,26 August 2011,277.08
http://statistics.data.gov.uk/id/local-authority-district/23UB,Cheltenham Borough Council,456138,508611,COMENSURA LIMITED,C-C22100-0115,Green Env Div-Temporary Agency Staff,26 August 2011,346.88
http://statistics.data.gov.uk/id/local-authority-district/23UB,Cheltenham Borough Council,456137,508467,COMENSURA LIMITED,C-C22100-0115,Green Env Div-Temporary Agency Staff,26 August 2011,277.08
http://statistics.data.gov.uk/id/local-authority-district/23UB,Cheltenham Borough Council,456137,508467,COMENSURA LIMITED,C-C22100-0115,Green Env Div-Temporary Agency Staff,26 August 2011,277.08
http://statistics.data.gov.uk/id/local-authority-district/23UB,Cheltenham Borough Council,456137,508467,COMENSURA LIMITED,C-C22100-0115,Green Env Div-Temporary Agency Staff,26 August 2011,346.88
http://statistics.data.gov.uk/id/local-authority-district/23UB,Cheltenham Borough Council,456139,508747,COMENSURA LIMITED,C-C22100-0115,Green Env Div-Temporary Agency Staff,26 August 2011,346.88
http://statistics.data.gov.uk/id/local-authority-district/23UB,Cheltenham Borough Council,456139,508747,COMENSURA LIMITED,C-C22100-0115,Green Env Div-Temporary Agency Staff,26 August 2011,279.20
http://statistics.data.gov.uk/id/local-authority-district/23UB,Cheltenham Borough Council,456136,508325,COMENSURA LIMITED,C-C22100-0115,Green Env Div-Temporary Agency Staff,26 August 2011,344.76
http://statistics.data.gov.uk/id/local-authority-district/23UB,Cheltenham Borough Council,456136,508325,COMENSURA LIMITED,C-C22100-0115,Green Env Div-Temporary Agency Staff,26 August 2011,329.96
http://statistics.data.gov.uk/id/local-authority-district/23UB,Cheltenham Borough Council,456136,508325,COMENSURA LIMITED,C-C22100-0115,Green Env Div-Temporary Agency Staff,26 August 2011,431.48
http://statistics.data.gov.uk/id/local-authority-district/23UB,Cheltenham Borough Council,456136,508325,COMENSURA LIMITED,C-C22105-0115,Hsg Forecourts-Temporary Agency Staff,26 August 2011,346.86
http://statistics.data.gov.uk/id/local-authority-district/23UB,Cheltenham Borough Council,456139,508747,COMENSURA LIMITED,C-C22105-0115,Hsg Forecourts-Temporary Agency Staff,26 August 2011,346.86
http://statistics.data.gov.uk/id/local-authority-district/23UB,Cheltenham Borough Council,456138,508611,COMENSURA LIMITED,C-C22105-0115,Hsg Forecourts-Temporary Agency Staff,26 August 2011,346.86
http://statistics.data.gov.uk/id/local-authority-district/23UB,Cheltenham Borough Council,456137,508467,COMENSURA LIMITED,C-C22105-0115,Hsg Forecourts-Temporary Agency Staff,26 August 2011,346.86
http://statistics.data.gov.uk/id/local-authority-district/23UB,Cheltenham Borough Council,456136,508325,COMENSURA LIMITED,C-C22110-0115,Parks & Gardens-Temporary Agency Staff,26 August 2011,287.64
http://statistics.data.gov.uk/id/local-authority-district/23UB,Cheltenham Borough Council,456137,508467,COMENSURA LIMITED,C-C22110-0115,Parks & Gardens-Temporary Agency Staff,26 August 2011,346.86
http://statistics.data.gov.uk/id/local-authority-district/23UB,Cheltenham Borough Council,456138,508611,COMENSURA LIMITED,C-C22110-0115,Parks & Gardens-Temporary Agency Staff,26 August 2011,346.86
http://statistics.data.gov.uk/id/local-authority-district/23UB,Cheltenham Borough Council,456139,508747,COMENSURA LIMITED,C-C22110-0115,Parks & Gardens-Temporary Agency Staff,26 August 2011,346.86
http://statistics.data.gov.uk/id/local-authority-district/23UB,Cheltenham Borough Council,456136,508325,COMENSURA LIMITED,C-C22115-0115,Grass Verges-Temporary Agency Staff,26 August 2011,287.64
http://statistics.data.gov.uk/id/local-authority-district/23UB,Cheltenham Borough Council,456138,508611,COMENSURA LIMITED,C-C22115-0115,Grass Verges-Temporary Agency Staff,26 August 2011,274.95
http://statistics.data.gov.uk/id/local-authority-district/23UB,Cheltenham Borough Council,456137,508467,COMENSURA LIMITED,C-C22115-0115,Grass Verges-Temporary Agency Staff,26 August 2011,346.86
http://statistics.data.gov.uk/id/local-authority-district/23UB,Cheltenham Borough Council,456136,508325,COMENSURA LIMITED,C-C22120-0115,Spts/Open Space-Temporary Agency Staff,26 August 2011,346.86
http://statistics.data.gov.uk/id/local-authority-district/23UB,Cheltenham Borough Council,456139,508747,COMENSURA LIMITED,C-C22120-0115,Spts/Open Space-Temporary Agency Staff,26 August 2011,346.86
http://statistics.data.gov.uk/id/local-authority-district/23UB,Cheltenham Borough Council,456137,508467,COMENSURA LIMITED,C-C22120-0115,Spts/Open Space-Temporary Agency Staff,26 August 2011,346.86
http://statistics.data.gov.uk/id/local-authority-district/23UB,Cheltenham Borough Council,456139,508747,COMENSURA LIMITED,C-C22120-0115,Spts/Open Space-Temporary Agency Staff,26 August 2011,346.86
http://statistics.data.gov.uk/id/local-authority-district/23UB,Cheltenham Borough Council,456138,508611,COMENSURA LIMITED,C-C22120-0115,Spts/Open Space-Temporary Agency Staff,26 August 2011,346.86
http://statistics.data.gov.uk/id/local-authority-district/23UB,Cheltenham Borough Council,456138,508611,COMENSURA LIMITED,C-C22120-0115,Spts/Open Space-Temporary Agency Staff,26 August 2011,274.95
http://statistics.data.gov.uk/id/local-authority-district/23UB,Cheltenham Borough Council,456137,508467,COMENSURA LIMITED,C-C22120-0115,Spts/Open Space-Temporary Agency Staff,26 August 2011,346.86
http://statistics.data.gov.uk/id/local-authority-district/23UB,Cheltenham Borough Council,456136,508325,COMENSURA LIMITED,C-C23100-0115,Refuse Collection-Temporary Agency Staff,26 August 2011,54.99
http://statistics.data.gov.uk/id/local-authority-district/23UB,Cheltenham Borough Council,456136,508325,COMENSURA LIMITED,C-C23100-0115,Refuse Collection-Temporary Agency Staff,26 August 2011,-97.04
http://statistics.data.gov.uk/id/local-authority-district/23UB,Cheltenham Borough Council,456136,508325,COMENSURA LIMITED,C-C23100-0115,Refuse Collection-Temporary Agency Staff,26 August 2011,126.90
http://statistics.data.gov.uk/id/local-authority-district/23UB,Cheltenham Borough Council,456136,508325,COMENSURA LIMITED,C-C23100-0115,Refuse Collection-Temporary Agency Staff,26 August 2011,274.95
http://statistics.data.gov.uk/id/local-authority-district/23UB,Cheltenham Borough Council,456136,508325,COMENSURA LIMITED,C-C23100-0115,Refuse Collection-Temporary Agency Staff,26 August 2011,224.19
http://statistics.data.gov.uk/id/local-authority-district/23UB,Cheltenham Borough Council,456136,508325,COMENSURA LIMITED,C-C23100-0115,Refuse Collection-Temporary Agency Staff,26 August 2011,245.34
http://statistics.data.gov.uk/id/local-authority-district/23UB,Cheltenham Borough Council,456136,508325,COMENSURA LIMITED,C-C23100-0115,Refuse Collection-Temporary Agency Staff,26 August 2011,126.90
http://statistics.data.gov.uk/id/local-authority-district/23UB,Cheltenham Borough Council,456138,508611,COMENSURA LIMITED,C-C23100-0115,Refuse Collection-Temporary Agency Staff,26 August 2011,103.64
http://statistics.data.gov.uk/id/local-authority-district/23UB,Cheltenham Borough Council,456138,508611,COMENSURA LIMITED,C-C23100-0115,Refuse Collection-Temporary Agency Staff,26 August 2011,63.45
http://statistics.data.gov.uk/id/local-authority-district/23UB,Cheltenham Borough Council,456138,508611,COMENSURA LIMITED,C-C23100-0115,Refuse Collection-Temporary Agency Staff,26 August 2011,196.69
http://statistics.data.gov.uk/id/local-authority-district/23UB,Cheltenham Borough Council,456138,508611,COMENSURA LIMITED,C-C23100-0115,Refuse Collection-Temporary Agency Staff,26 August 2011,97.04
http://statistics.data.gov.uk/id/local-authority-district/23UB,Cheltenham Borough Council,456138,508611,COMENSURA LIMITED,C-C23100-0115,Refuse Collection-Temporary Agency Staff,26 August 2011,249.57
http://statistics.data.gov.uk/id/local-authority-district/23UB,Cheltenham Borough Council,456138,508611,COMENSURA LIMITED,C-C23100-0115,Refuse Collection-Temporary Agency Staff,26 August 2011,234.75
http://statistics.data.gov.uk/id/local-authority-district/23UB,Cheltenham Borough Council,456138,508611,COMENSURA LIMITED,C-C23100-0115,Refuse Collection-Temporary Agency Staff,26 August 2011,258.03
http://statistics.data.gov.uk/id/local-authority-district/23UB,Cheltenham Borough Council,456138,508611,COMENSURA LIMITED,C-C23100-0115,Refuse Collection-Temporary Agency Staff,26 August 2011,44.42
http://statistics.data.gov.uk/id/local-authority-district/23UB,Cheltenham Borough Council,456138,508611,COMENSURA LIMITED,C-C23100-0115,Refuse Collection-Temporary Agency Staff,26 August 2011,200.92
http://statistics.data.gov.uk/id/local-authority-district/23UB,Cheltenham Borough Council,456138,508611,COMENSURA LIMITED,C-C23100-0115,Refuse Collection-Temporary Agency Staff,26 August 2011,255.93
http://statistics.data.gov.uk/id/local-authority-district/23UB,Cheltenham Borough Council,456138,508611,COMENSURA LIMITED,C-C23100-0115,Refuse Collection-Temporary Agency Staff,26 August 2011,291.12
http://statistics.data.gov.uk/id/local-authority-district/23UB,Cheltenham Borough Council,456138,508611,COMENSURA LIMITED,C-C23100-0115,Refuse Collection-Temporary Agency Staff,26 August 2011,485.20
http://statistics.data.gov.uk/id/local-authority-district/23UB,Cheltenham Borough Council,456138,508611,COMENSURA LIMITED,C-C23100-0115,Refuse Collection-Temporary Agency Staff,26 August 2011,200.91
http://statistics.data.gov.uk/id/local-authority-district/23UB,Cheltenham Borough Council,456138,508611,COMENSURA LIMITED,C-C23100-0115,Refuse Collection-Temporary Agency Staff,26 August 2011,249.57
http://statistics.data.gov.uk/id/local-authority-district/23UB,Cheltenham Borough Council,456138,508611,COMENSURA LIMITED,C-C23100-0115,Refuse Collection-Temporary Agency Staff,26 August 2011,313.02
http://statistics.data.gov.uk/id/local-authority-district/23UB,Cheltenham Borough Council,456138,508611,COMENSURA LIMITED,C-C23100-0115,Refuse Collection-Temporary Agency Staff,26 August 2011,313.02
http://statistics.data.gov.uk/id/local-authority-district/23UB,Cheltenham Borough Council,456138,508611,COMENSURA LIMITED,C-C23100-0115,Refuse Collection-Temporary Agency Staff,26 August 2011,313.02
http://statistics.data.gov.uk/id/local-authority-district/23UB,Cheltenham Borough Council,456138,508611,COMENSURA LIMITED,C-C23100-0115,Refuse Collection-Temporary Agency Staff,26 August 2011,340.51
http://statistics.data.gov.uk/id/local-authority-district/23UB,Cheltenham Borough Council,456138,508611,COMENSURA LIMITED,C-C23100-0115,Refuse Collection-Temporary Agency Staff,26 August 2011,313.02
http://statistics.data.gov.uk/id/local-authority-district/23UB,Cheltenham Borough Council,456138,508611,COMENSURA LIMITED,C-C23100-0115,Refuse Collection-Temporary Agency Staff,26 August 2011,258.03
http://statistics.data.gov.uk/id/local-authority-district/23UB,Cheltenham Borough Council,456138,508611,COMENSURA LIMITED,C-C23100-0115,Refuse Collection-Temporary Agency Staff,26 August 2011,296.10
http://statistics.data.gov.uk/id/local-authority-district/23UB,Cheltenham Borough Council,456138,508611,COMENSURA LIMITED,C-C23100-0115,Refuse Collection-Temporary Agency Staff,26 August 2011,21.15
http://statistics.data.gov.uk/id/local-authority-district/23UB,Cheltenham Borough Council,456137,508467,COMENSURA LIMITED,C-C23100-0115,Refuse Collection-Temporary Agency Staff,26 August 2011,57.10
http://statistics.data.gov.uk/id/local-authority-district/23UB,Cheltenham Borough Council,456137,508467,COMENSURA LIMITED,C-C23100-0115,Refuse Collection-Temporary Agency Staff,26 August 2011,291.12
http://statistics.data.gov.uk/id/local-authority-district/23UB,Cheltenham Borough Council,456137,508467,COMENSURA LIMITED,C-C23100-0115,Refuse Collection-Temporary Agency Staff,26 August 2011,518.56
http://statistics.data.gov.uk/id/local-authority-district/23UB,Cheltenham Borough Council,456137,508467,COMENSURA LIMITED,C-C23100-0115,Refuse Collection-Temporary Agency Staff,26 August 2011,156.51
http://statistics.data.gov.uk/id/local-authority-district/23UB,Cheltenham Borough Council,456137,508467,COMENSURA LIMITED,C-C23100-0115,Refuse Collection-Temporary Agency Staff,26 August 2011,266.49
http://statistics.data.gov.uk/id/local-authority-district/23UB,Cheltenham Borough Council,456137,508467,COMENSURA LIMITED,C-C23100-0115,Refuse Collection-Temporary Agency Staff,26 August 2011,302.45
http://statistics.data.gov.uk/id/local-authority-district/23UB,Cheltenham Borough Council,456137,508467,COMENSURA LIMITED,C-C23100-0115,Refuse Collection-Temporary Agency Staff,26 August 2011,287.64
http://statistics.data.gov.uk/id/local-authority-district/23UB,Cheltenham Borough Council,456137,508467,COMENSURA LIMITED,C-C23100-0115,Refuse Collection-Temporary Agency Staff,26 August 2011,209.24
http://statistics.data.gov.uk/id/local-authority-district/23UB,Cheltenham Borough Council,456137,508467,COMENSURA LIMITED,C-C23100-0115,Refuse Collection-Temporary Agency Staff,26 August 2011,63.45
http://statistics.data.gov.uk/id/local-authority-district/23UB,Cheltenham Borough Council,456137,508467,COMENSURA LIMITED,C-C23100-0115,Refuse Collection-Temporary Agency Staff,26 August 2011,298.22
http://statistics.data.gov.uk/id/local-authority-district/23UB,Cheltenham Borough Council,456137,508467,COMENSURA LIMITED,C-C23100-0115,Refuse Collection-Temporary Agency Staff,26 August 2011,274.95
http://statistics.data.gov.uk/id/local-authority-district/23UB,Cheltenham Borough Council,456137,508467,COMENSURA LIMITED,C-C23100-0115,Refuse Collection-Temporary Agency Staff,26 August 2011,126.90
http://statistics.data.gov.uk/id/local-authority-district/23UB,Cheltenham Borough Council,456137,508467,COMENSURA LIMITED,C-C23100-0115,Refuse Collection-Temporary Agency Staff,26 August 2011,361.66
http://statistics.data.gov.uk/id/local-authority-district/23UB,Cheltenham Borough Council,456137,508467,COMENSURA LIMITED,C-C23100-0115,Refuse Collection-Temporary Agency Staff,26 August 2011,313.02
http://statistics.data.gov.uk/id/local-authority-district/23UB,Cheltenham Borough Council,456137,508467,COMENSURA LIMITED,C-C23100-0115,Refuse Collection-Temporary Agency Staff,26 August 2011,313.02
http://statistics.data.gov.uk/id/local-authority-district/23UB,Cheltenham Borough Council,456137,508467,COMENSURA LIMITED,C-C23100-0115,Refuse Collection-Temporary Agency Staff,26 August 2011,313.02
http://statistics.data.gov.uk/id/local-authority-district/23UB,Cheltenham Borough Council,456137,508467,COMENSURA LIMITED,C-C23100-0115,Refuse Collection-Temporary Agency Staff,26 August 2011,177.66
http://statistics.data.gov.uk/id/local-authority-district/23UB,Cheltenham Borough Council,456137,508467,COMENSURA LIMITED,C-C23100-0115,Refuse Collection-Temporary Agency Staff,26 August 2011,340.51
http://statistics.data.gov.uk/id/local-authority-district/23UB,Cheltenham Borough Council,456137,508467,COMENSURA LIMITED,C-C23100-0115,Refuse Collection-Temporary Agency Staff,26 August 2011,253.80
http://statistics.data.gov.uk/id/local-authority-district/23UB,Cheltenham Borough Council,456139,508747,COMENSURA LIMITED,C-C23100-0115,Refuse Collection-Temporary Agency Staff,26 August 2011,59.22
http://statistics.data.gov.uk/id/local-authority-district/23UB,Cheltenham Borough Council,456139,508747,COMENSURA LIMITED,C-C23100-0115,Refuse Collection-Temporary Agency Staff,26 August 2011,115.24
http://statistics.data.gov.uk/id/local-authority-district/23UB,Cheltenham Borough Council,456139,508747,COMENSURA LIMITED,C-C23100-0115,Refuse Collection-Temporary Agency Staff,26 August 2011,160.74
http://statistics.data.gov.uk/id/local-authority-district/23UB,Cheltenham Borough Council,456139,508747,COMENSURA LIMITED,C-C23100-0115,Refuse Collection-Temporary Agency Staff,26 August 2011,42.30
http://statistics.data.gov.uk/id/local-authority-district/23UB,Cheltenham Borough Council,456139,508747,COMENSURA LIMITED,C-C23100-0115,Refuse Collection-Temporary Agency Staff,26 August 2011,61.34
http://statistics.data.gov.uk/id/local-authority-district/23UB,Cheltenham Borough Council,456139,508747,COMENSURA LIMITED,C-C23100-0115,Refuse Collection-Temporary Agency Staff,26 August 2011,57.10
http://statistics.data.gov.uk/id/local-authority-district/23UB,Cheltenham Borough Council,456139,508747,COMENSURA LIMITED,C-C23100-0115,Refuse Collection-Temporary Agency Staff,26 August 2011,279.18
http://statistics.data.gov.uk/id/local-authority-district/23UB,Cheltenham Borough Council,456139,508747,COMENSURA LIMITED,C-C23100-0115,Refuse Collection-Temporary Agency Staff,26 August 2011,97.04
http://statistics.data.gov.uk/id/local-authority-district/23UB,Cheltenham Borough Council,456139,508747,COMENSURA LIMITED,C-C23100-0115,Refuse Collection-Temporary Agency Staff,26 August 2011,59.22
http://statistics.data.gov.uk/id/local-authority-district/23UB,Cheltenham Borough Council,456139,508747,COMENSURA LIMITED,C-C23100-0115,Refuse Collection-Temporary Agency Staff,26 August 2011,302.44
http://statistics.data.gov.uk/id/local-authority-district/23UB,Cheltenham Borough Council,456136,508325,COMENSURA LIMITED,C-C23100-0115,Refuse Collection-Temporary Agency Staff,26 August 2011,54.48
http://statistics.data.gov.uk/id/local-authority-district/23UB,Cheltenham Borough Council,456136,508325,COMENSURA LIMITED,C-C23100-0115,Refuse Collection-Temporary Agency Staff,26 August 2011,329.94
http://statistics.data.gov.uk/id/local-authority-district/23UB,Cheltenham Borough Council,456136,508325,COMENSURA LIMITED,C-C23100-0115,Refuse Collection-Temporary Agency Staff,26 August 2011,313.02
http://statistics.data.gov.uk/id/local-authority-district/23UB,Cheltenham Borough Council,456136,508325,COMENSURA LIMITED,C-C23100-0115,Refuse Collection-Temporary Agency Staff,26 August 2011,313.02
http://statistics.data.gov.uk/id/local-authority-district/23UB,Cheltenham Borough Council,456136,508325,COMENSURA LIMITED,C-C23100-0115,Refuse Collection-Temporary Agency Staff,26 August 2011,48.64
http://statistics.data.gov.uk/id/local-authority-district/23UB,Cheltenham Borough Council,456136,508325,COMENSURA LIMITED,C-C23100-0115,Refuse Collection-Temporary Agency Staff,26 August 2011,167.08
http://statistics.data.gov.uk/id/local-authority-district/23UB,Cheltenham Borough Council,456136,508325,COMENSURA LIMITED,C-C23100-0115,Refuse Collection-Temporary Agency Staff,26 August 2011,485.20
http://statistics.data.gov.uk/id/local-authority-district/23UB,Cheltenham Borough Council,456136,508325,COMENSURA LIMITED,C-C23100-0115,Refuse Collection-Temporary Agency Staff,26 August 2011,494.30
http://statistics.data.gov.uk/id/local-authority-district/23UB,Cheltenham Borough Council,456139,508747,COMENSURA LIMITED,C-C23100-0115,Refuse Collection-Temporary Agency Staff,26 August 2011,268.61
http://statistics.data.gov.uk/id/local-authority-district/23UB,Cheltenham Borough Council,456139,508747,COMENSURA LIMITED,C-C23100-0115,Refuse Collection-Temporary Agency Staff,26 August 2011,219.96
http://statistics.data.gov.uk/id/local-authority-district/23UB,Cheltenham Borough Council,456139,508747,COMENSURA LIMITED,C-C23100-0115,Refuse Collection-Temporary Agency Staff,26 August 2011,107.86
http://statistics.data.gov.uk/id/local-authority-district/23UB,Cheltenham Borough Council,456139,508747,COMENSURA LIMITED,C-C23100-0115,Refuse Collection-Temporary Agency Staff,26 August 2011,300.33
http://statistics.data.gov.uk/id/local-authority-district/23UB,Cheltenham Borough Council,456139,508747,COMENSURA LIMITED,C-C23100-0115,Refuse Collection-Temporary Agency Staff,26 August 2011,287.64
http://statistics.data.gov.uk/id/local-authority-district/23UB,Cheltenham Borough Council,456139,508747,COMENSURA LIMITED,C-C23100-0115,Refuse Collection-Temporary Agency Staff,26 August 2011,485.20
http://statistics.data.gov.uk/id/local-authority-district/23UB,Cheltenham Borough Council,456139,508747,COMENSURA LIMITED,C-C23100-0115,Refuse Collection-Temporary Agency Staff,26 August 2011,266.49
http://statistics.data.gov.uk/id/local-authority-district/23UB,Cheltenham Borough Council,456139,508747,COMENSURA LIMITED,C-C23100-0115,Refuse Collection-Temporary Agency Staff,26 August 2011,186.12
http://statistics.data.gov.uk/id/local-authority-district/23UB,Cheltenham Borough Council,456139,508747,COMENSURA LIMITED,C-C23100-0115,Refuse Collection-Temporary Agency Staff,26 August 2011,93.06
http://statistics.data.gov.uk/id/local-authority-district/23UB,Cheltenham Borough Council,456136,508325,COMENSURA LIMITED,C-C23100-0115,Refuse Collection-Temporary Agency Staff,26 August 2011,215.73
http://statistics.data.gov.uk/id/local-authority-district/23UB,Cheltenham Borough Council,456136,508325,COMENSURA LIMITED,C-C23100-0115,Refuse Collection-Temporary Agency Staff,26 August 2011,131.13
http://statistics.data.gov.uk/id/local-authority-district/23UB,Cheltenham Borough Council,456136,508325,COMENSURA LIMITED,C-C23100-0115,Refuse Collection-Temporary Agency Staff,26 August 2011,266.49
http://statistics.data.gov.uk/id/local-authority-district/23UB,Cheltenham Borough Council,456136,508325,COMENSURA LIMITED,C-C23100-0115,Refuse Collection-Temporary Agency Staff,26 August 2011,200.93
http://statistics.data.gov.uk/id/local-authority-district/23UB,Cheltenham Borough Council,456136,508325,COMENSURA LIMITED,C-C23110-0115,Street Cleaning-Temporary Agency Staff,26 August 2011,329.94
http://statistics.data.gov.uk/id/local-authority-district/23UB,Cheltenham Borough Council,456136,508325,COMENSURA LIMITED,C-C23110-0115,Street Cleaning-Temporary Agency Staff,26 August 2011,300.33
http://statistics.data.gov.uk/id/local-authority-district/23UB,Cheltenham Borough Council,456138,508611,COMENSURA LIMITED,C-C23110-0115,Street Cleaning-Temporary Agency Staff,26 August 2011,329.94
http://statistics.data.gov.uk/id/local-authority-district/23UB,Cheltenham Borough Council,456138,508611,COMENSURA LIMITED,C-C23110-0115,Street Cleaning-Temporary Agency Staff,26 August 2011,334.17
http://statistics.data.gov.uk/id/local-authority-district/23UB,Cheltenham Borough Council,456138,508611,COMENSURA LIMITED,C-C23110-0115,Street Cleaning-Temporary Agency Staff,26 August 2011,313.02
http://statistics.data.gov.uk/id/local-authority-district/23UB,Cheltenham Borough Council,456139,508747,COMENSURA LIMITED,C-C23110-0115,Street Cleaning-Temporary Agency Staff,26 August 2011,346.86
http://statistics.data.gov.uk/id/local-authority-district/23UB,Cheltenham Borough Council,456136,508325,COMENSURA LIMITED,C-C23110-0115,Street Cleaning-Temporary Agency Staff,26 August 2011,384.93
http://statistics.data.gov.uk/id/local-authority-district/23UB,Cheltenham Borough Council,456136,508325,COMENSURA LIMITED,C-C23110-0115,Street Cleaning-Temporary Agency Staff,26 August 2011,334.17
http://statistics.data.gov.uk/id/local-authority-district/23UB,Cheltenham Borough Council,456136,508325,COMENSURA LIMITED,C-C23125-0115,Recyl Bring Schms-Temporary Agency Staff,26 August 2011,515.51
http://statistics.data.gov.uk/id/local-authority-district/23UB,Cheltenham Borough Council,456137,508467,COMENSURA LIMITED,C-C23125-0115,Recyl Bring Schms-Temporary Agency Staff,26 August 2011,6.06
http://statistics.data.gov.uk/id/local-authority-district/23UB,Cheltenham Borough Council,456139,508747,COMENSURA LIMITED,C-C23160-0115,Env Maint Div-Temporary Agency Staff,26 August 2011,351.45
http://statistics.data.gov.uk/id/local-authority-district/23UB,Cheltenham Borough Council,456139,508747,COMENSURA LIMITED,C-C23160-0115,Env Maint Div-Temporary Agency Staff,26 August 2011,371.25
http://statistics.data.gov.uk/id/local-authority-district/23UB,Cheltenham Borough Council,456139,508747,COMENSURA LIMITED,C-C23160-0115,Env Maint Div-Temporary Agency Staff,26 August 2011,356.40
http://statistics.data.gov.uk/id/local-authority-district/23UB,Cheltenham Borough Council,456139,508747,COMENSURA LIMITED,C-C23160-0115,Env Maint Div-Temporary Agency Staff,26 August 2011,371.25
http://statistics.data.gov.uk/id/local-authority-district/23UB,Cheltenham Borough Council,456137,508467,COMENSURA LIMITED,C-C23160-0115,Env Maint Div-Temporary Agency Staff,26 August 2011,346.15
http://statistics.data.gov.uk/id/local-authority-district/23UB,Cheltenham Borough Council,456138,508611,COMENSURA LIMITED,C-C23160-0115,Env Maint Div-Temporary Agency Staff,26 August 2011,341.55
http://statistics.data.gov.uk/id/local-authority-district/23UB,Cheltenham Borough Council,456138,508611,COMENSURA LIMITED,C-C23160-0115,Env Maint Div-Temporary Agency Staff,26 August 2011,321.42
http://statistics.data.gov.uk/id/local-authority-district/23UB,Cheltenham Borough Council,456138,508611,COMENSURA LIMITED,C-C23160-0115,Env Maint Div-Temporary Agency Staff,26 August 2011,341.55
http://statistics.data.gov.uk/id/local-authority-district/23UB,Cheltenham Borough Council,456138,508611,COMENSURA LIMITED,C-C23160-0115,Env Maint Div-Temporary Agency Staff,26 August 2011,346.15
http://statistics.data.gov.uk/id/local-authority-district/23UB,Cheltenham Borough Council,456137,508467,COMENSURA LIMITED,C-C23160-0115,Env Maint Div-Temporary Agency Staff,26 August 2011,277.20
http://statistics.data.gov.uk/id/local-authority-district/23UB,Cheltenham Borough Council,456139,508747,COMENSURA LIMITED,C-C23160-0115,Env Maint Div-Temporary Agency Staff,26 August 2011,371.25
http://statistics.data.gov.uk/id/local-authority-district/23UB,Cheltenham Borough Council,456136,508325,COMENSURA LIMITED,C-C23180-0115,Rcycl Coltn Schms-Temporary Agency Staff,26 August 2011,190.35
http://statistics.data.gov.uk/id/local-authority-district/23UB,Cheltenham Borough Council,456136,508325,COMENSURA LIMITED,C-C23180-0115,Rcycl Coltn Schms-Temporary Agency Staff,26 August 2011,291.87
http://statistics.data.gov.uk/id/local-authority-district/23UB,Cheltenham Borough Council,456136,508325,COMENSURA LIMITED,C-C23180-0115,Rcycl Coltn Schms-Temporary Agency Staff,26 August 2011,116.33
http://statistics.data.gov.uk/id/local-authority-district/23UB,Cheltenham Borough Council,456136,508325,COMENSURA LIMITED,C-C23180-0115,Rcycl Coltn Schms-Temporary Agency Staff,26 August 2011,321.48
http://statistics.data.gov.uk/id/local-authority-district/23UB,Cheltenham Borough Council,456136,508325,COMENSURA LIMITED,C-C23180-0115,Rcycl Coltn Schms-Temporary Agency Staff,26 August 2011,224.19
http://statistics.data.gov.uk/id/local-authority-district/23UB,Cheltenham Borough Council,456136,508325,COMENSURA LIMITED,C-C23180-0115,Rcycl Coltn Schms-Temporary Agency Staff,26 August 2011,54.48
http://statistics.data.gov.uk/id/local-authority-district/23UB,Cheltenham Borough Council,456136,508325,COMENSURA LIMITED,C-C23180-0115,Rcycl Coltn Schms-Temporary Agency Staff,26 August 2011,71.91
http://statistics.data.gov.uk/id/local-authority-district/23UB,Cheltenham Borough Council,456136,508325,COMENSURA LIMITED,C-C23180-0115,Rcycl Coltn Schms-Temporary Agency Staff,26 August 2011,69.80
http://statistics.data.gov.uk/id/local-authority-district/23UB,Cheltenham Borough Council,456136,508325,COMENSURA LIMITED,C-C23180-0115,Rcycl Coltn Schms-Temporary Agency Staff,26 August 2011,78.26
http://statistics.data.gov.uk/id/local-authority-district/23UB,Cheltenham Borough Council,456136,508325,COMENSURA LIMITED,C-C23180-0115,Rcycl Coltn Schms-Temporary Agency Staff,26 August 2011,334.17
http://statistics.data.gov.uk/id/local-authority-district/23UB,Cheltenham Borough Council,456136,508325,COMENSURA LIMITED,C-C23180-0115,Rcycl Coltn Schms-Temporary Agency Staff,26 August 2011,63.45
http://statistics.data.gov.uk/id/local-authority-district/23UB,Cheltenham Borough Council,456136,508325,COMENSURA LIMITED,C-C23180-0115,Rcycl Coltn Schms-Temporary Agency Staff,26 August 2011,190.35
http://statistics.data.gov.uk/id/local-authority-district/23UB,Cheltenham Borough Council,456136,508325,COMENSURA LIMITED,C-C23180-0115,Rcycl Coltn Schms-Temporary Agency Staff,26 August 2011,283.41
http://statistics.data.gov.uk/id/local-authority-district/23UB,Cheltenham Borough Council,456136,508325,COMENSURA LIMITED,C-C23180-0115,Rcycl Coltn Schms-Temporary Agency Staff,26 August 2011,327.83
http://statistics.data.gov.uk/id/local-authority-district/23UB,Cheltenham Borough Council,456136,508325,COMENSURA LIMITED,C-C23180-0115,Rcycl Coltn Schms-Temporary Agency Staff,26 August 2011,325.70
http://statistics.data.gov.uk/id/local-authority-district/23UB,Cheltenham Borough Council,456136,508325,COMENSURA LIMITED,C-C23180-0115,Rcycl Coltn Schms-Temporary Agency Staff,26 August 2011,382.81
http://statistics.data.gov.uk/id/local-authority-district/23UB,Cheltenham Borough Council,456136,508325,COMENSURA LIMITED,C-C23180-0115,Rcycl Coltn Schms-Temporary Agency Staff,26 August 2011,126.90
http://statistics.data.gov.uk/id/local-authority-district/23UB,Cheltenham Borough Council,456136,508325,COMENSURA LIMITED,C-C23180-0115,Rcycl Coltn Schms-Temporary Agency Staff,26 August 2011,76.14
http://statistics.data.gov.uk/id/local-authority-district/23UB,Cheltenham Borough Council,456136,508325,COMENSURA LIMITED,C-C23180-0115,Rcycl Coltn Schms-Temporary Agency Staff,26 August 2011,243.22
http://statistics.data.gov.uk/id/local-authority-district/23UB,Cheltenham Borough Council,456136,508325,COMENSURA LIMITED,C-C23180-0115,Rcycl Coltn Schms-Temporary Agency Staff,26 August 2011,97.04
http://statistics.data.gov.uk/id/local-authority-district/23UB,Cheltenham Borough Council,456136,508325,COMENSURA LIMITED,C-C23180-0115,Rcycl Coltn Schms-Temporary Agency Staff,26 August 2011,211.31
http://statistics.data.gov.uk/id/local-authority-district/23UB,Cheltenham Borough Council,456136,508325,COMENSURA LIMITED,C-C23180-0115,Rcycl Coltn Schms-Temporary Agency Staff,26 August 2011,181.88
http://statistics.data.gov.uk/id/local-authority-district/23UB,Cheltenham Borough Council,456136,508325,COMENSURA LIMITED,C-C23180-0115,Rcycl Coltn Schms-Temporary Agency Staff,26 August 2011,169.76
http://statistics.data.gov.uk/id/local-authority-district/23UB,Cheltenham Borough Council,456136,508325,COMENSURA LIMITED,C-C23180-0115,Rcycl Coltn Schms-Temporary Agency Staff,26 August 2011,71.91
http://statistics.data.gov.uk/id/local-authority-district/23UB,Cheltenham Borough Council,456136,508325,COMENSURA LIMITED,C-C23180-0115,Rcycl Coltn Schms-Temporary Agency Staff,26 August 2011,308.80
http://statistics.data.gov.uk/id/local-authority-district/23UB,Cheltenham Borough Council,456136,508325,COMENSURA LIMITED,C-C23180-0115,Rcycl Coltn Schms-Temporary Agency Staff,26 August 2011,524.63
http://statistics.data.gov.uk/id/local-authority-district/23UB,Cheltenham Borough Council,456138,508611,COMENSURA LIMITED,C-C23180-0115,Rcycl Coltn Schms-Temporary Agency Staff,26 August 2011,97.04
http://statistics.data.gov.uk/id/local-authority-district/23UB,Cheltenham Borough Council,456138,508611,COMENSURA LIMITED,C-C23180-0115,Rcycl Coltn Schms-Temporary Agency Staff,26 August 2011,194.08
http://statistics.data.gov.uk/id/local-authority-district/23UB,Cheltenham Borough Council,456138,508611,COMENSURA LIMITED,C-C23180-0115,Rcycl Coltn Schms-Temporary Agency Staff,26 August 2011,54.99
http://statistics.data.gov.uk/id/local-authority-district/23UB,Cheltenham Borough Council,456138,508611,COMENSURA LIMITED,C-C23180-0115,Rcycl Coltn Schms-Temporary Agency Staff,26 August 2011,326.88
http://statistics.data.gov.uk/id/local-authority-district/23UB,Cheltenham Borough Council,456138,508611,COMENSURA LIMITED,C-C23180-0115,Rcycl Coltn Schms-Temporary Agency Staff,26 August 2011,283.41
http://statistics.data.gov.uk/id/local-authority-district/23UB,Cheltenham Borough Council,456138,508611,COMENSURA LIMITED,C-C23180-0115,Rcycl Coltn Schms-Temporary Agency Staff,26 August 2011,42.30
http://statistics.data.gov.uk/id/local-authority-district/23UB,Cheltenham Borough Council,456138,508611,COMENSURA LIMITED,C-C23180-0115,Rcycl Coltn Schms-Temporary Agency Staff,26 August 2011,228.42
http://statistics.data.gov.uk/id/local-authority-district/23UB,Cheltenham Borough Council,456138,508611,COMENSURA LIMITED,C-C23180-0115,Rcycl Coltn Schms-Temporary Agency Staff,26 August 2011,254.64
http://statistics.data.gov.uk/id/local-authority-district/23UB,Cheltenham Borough Council,456138,508611,COMENSURA LIMITED,C-C23180-0115,Rcycl Coltn Schms-Temporary Agency Staff,26 August 2011,177.67
http://statistics.data.gov.uk/id/local-authority-district/23UB,Cheltenham Borough Council,456138,508611,COMENSURA LIMITED,C-C23180-0115,Rcycl Coltn Schms-Temporary Agency Staff,26 August 2011,236.88
http://statistics.data.gov.uk/id/local-authority-district/23UB,Cheltenham Borough Council,456138,508611,COMENSURA LIMITED,C-C23180-0115,Rcycl Coltn Schms-Temporary Agency Staff,26 August 2011,251.68
http://statistics.data.gov.uk/id/local-authority-district/23UB,Cheltenham Borough Council,456138,508611,COMENSURA LIMITED,C-C23180-0115,Rcycl Coltn Schms-Temporary Agency Staff,26 August 2011,114.21
http://statistics.data.gov.uk/id/local-authority-district/23UB,Cheltenham Borough Council,456138,508611,COMENSURA LIMITED,C-C23180-0115,Rcycl Coltn Schms-Temporary Agency Staff,26 August 2011,388.16
http://statistics.data.gov.uk/id/local-authority-district/23UB,Cheltenham Borough Council,456138,508611,COMENSURA LIMITED,C-C23180-0115,Rcycl Coltn Schms-Temporary Agency Staff,26 August 2011,287.64
http://statistics.data.gov.uk/id/local-authority-district/23UB,Cheltenham Borough Council,456138,508611,COMENSURA LIMITED,C-C23180-0115,Rcycl Coltn Schms-Temporary Agency Staff,26 August 2011,300.32
http://statistics.data.gov.uk/id/local-authority-district/23UB,Cheltenham Borough Council,456138,508611,COMENSURA LIMITED,C-C23180-0115,Rcycl Coltn Schms-Temporary Agency Staff,26 August 2011,361.67
http://statistics.data.gov.uk/id/local-authority-district/23UB,Cheltenham Borough Council,456138,508611,COMENSURA LIMITED,C-C23180-0115,Rcycl Coltn Schms-Temporary Agency Staff,26 August 2011,491.26
http://statistics.data.gov.uk/id/local-authority-district/23UB,Cheltenham Borough Council,456138,508611,COMENSURA LIMITED,C-C23180-0115,Rcycl Coltn Schms-Temporary Agency Staff,26 August 2011,291.87
http://statistics.data.gov.uk/id/local-authority-district/23UB,Cheltenham Borough Council,456138,508611,COMENSURA LIMITED,C-C23180-0115,Rcycl Coltn Schms-Temporary Agency Staff,26 August 2011,243.22
http://statistics.data.gov.uk/id/local-authority-district/23UB,Cheltenham Borough Council,456138,508611,COMENSURA LIMITED,C-C23180-0115,Rcycl Coltn Schms-Temporary Agency Staff,26 August 2011,279.18
http://statistics.data.gov.uk/id/local-authority-district/23UB,Cheltenham Borough Council,456138,508611,COMENSURA LIMITED,C-C23180-0115,Rcycl Coltn Schms-Temporary Agency Staff,26 August 2011,258.03
http://statistics.data.gov.uk/id/local-authority-district/23UB,Cheltenham Borough Council,456138,508611,COMENSURA LIMITED,C-C23180-0115,Rcycl Coltn Schms-Temporary Agency Staff,26 August 2011,194.08
http://statistics.data.gov.uk/id/local-authority-district/23UB,Cheltenham Borough Council,456138,508611,COMENSURA LIMITED,C-C23180-0115,Rcycl Coltn Schms-Temporary Agency Staff,26 August 2011,327.82
http://statistics.data.gov.uk/id/local-authority-district/23UB,Cheltenham Borough Council,456138,508611,COMENSURA LIMITED,C-C23180-0115,Rcycl Coltn Schms-Temporary Agency Staff,26 August 2011,234.76
http://statistics.data.gov.uk/id/local-authority-district/23UB,Cheltenham Borough Council,456138,508611,COMENSURA LIMITED,C-C23180-0115,Rcycl Coltn Schms-Temporary Agency Staff,26 August 2011,509.45
http://statistics.data.gov.uk/id/local-authority-district/23UB,Cheltenham Borough Council,456138,508611,COMENSURA LIMITED,C-C23180-0115,Rcycl Coltn Schms-Temporary Agency Staff,26 August 2011,319.37
http://statistics.data.gov.uk/id/local-authority-district/23UB,Cheltenham Borough Council,456138,508611,COMENSURA LIMITED,C-C23180-0115,Rcycl Coltn Schms-Temporary Agency Staff,26 August 2011,228.42
http://statistics.data.gov.uk/id/local-authority-district/23UB,Cheltenham Borough Council,456138,508611,COMENSURA LIMITED,C-C23180-0115,Rcycl Coltn Schms-Temporary Agency Staff,26 August 2011,313.02
http://statistics.data.gov.uk/id/local-authority-district/23UB,Cheltenham Borough Council,456137,508467,COMENSURA LIMITED,C-C23180-0115,Rcycl Coltn Schms-Temporary Agency Staff,26 August 2011,97.04
http://statistics.data.gov.uk/id/local-authority-district/23UB,Cheltenham Borough Council,456137,508467,COMENSURA LIMITED,C-C23180-0115,Rcycl Coltn Schms-Temporary Agency Staff,26 August 2011,291.12
http://statistics.data.gov.uk/id/local-authority-district/23UB,Cheltenham Borough Council,456137,508467,COMENSURA LIMITED,C-C23180-0115,Rcycl Coltn Schms-Temporary Agency Staff,26 August 2011,335.96
http://statistics.data.gov.uk/id/local-authority-district/23UB,Cheltenham Borough Council,456137,508467,COMENSURA LIMITED,C-C23180-0115,Rcycl Coltn Schms-Temporary Agency Staff,26 August 2011,315.13
http://statistics.data.gov.uk/id/local-authority-district/23UB,Cheltenham Borough Council,456137,508467,COMENSURA LIMITED,C-C23180-0115,Rcycl Coltn Schms-Temporary Agency Staff,26 August 2011,213.62
http://statistics.data.gov.uk/id/local-authority-district/23UB,Cheltenham Borough Council,456137,508467,COMENSURA LIMITED,C-C23180-0115,Rcycl Coltn Schms-Temporary Agency Staff,26 August 2011,169.76
http://statistics.data.gov.uk/id/local-authority-district/23UB,Cheltenham Borough Council,456137,508467,COMENSURA LIMITED,C-C23180-0115,Rcycl Coltn Schms-Temporary Agency Staff,26 August 2011,173.44
http://statistics.data.gov.uk/id/local-authority-district/23UB,Cheltenham Borough Council,456137,508467,COMENSURA LIMITED,C-C23180-0115,Rcycl Coltn Schms-Temporary Agency Staff,26 August 2011,224.19
http://statistics.data.gov.uk/id/local-authority-district/23UB,Cheltenham Borough Council,456137,508467,COMENSURA LIMITED,C-C23180-0115,Rcycl Coltn Schms-Temporary Agency Staff,26 August 2011,124.78
http://statistics.data.gov.uk/id/local-authority-district/23UB,Cheltenham Borough Council,456137,508467,COMENSURA LIMITED,C-C23180-0115,Rcycl Coltn Schms-Temporary Agency Staff,26 August 2011,156.51
http://statistics.data.gov.uk/id/local-authority-district/23UB,Cheltenham Borough Council,456137,508467,COMENSURA LIMITED,C-C23180-0115,Rcycl Coltn Schms-Temporary Agency Staff,26 August 2011,245.34
http://statistics.data.gov.uk/id/local-authority-district/23UB,Cheltenham Borough Council,456137,508467,COMENSURA LIMITED,C-C23180-0115,Rcycl Coltn Schms-Temporary Agency Staff,26 August 2011,194.08
http://statistics.data.gov.uk/id/local-authority-district/23UB,Cheltenham Borough Council,456137,508467,COMENSURA LIMITED,C-C23180-0115,Rcycl Coltn Schms-Temporary Agency Staff,26 August 2011,122.67
http://statistics.data.gov.uk/id/local-authority-district/23UB,Cheltenham Borough Council,456137,508467,COMENSURA LIMITED,C-C23180-0115,Rcycl Coltn Schms-Temporary Agency Staff,26 August 2011,124.78
http://statistics.data.gov.uk/id/local-authority-district/23UB,Cheltenham Borough Council,456137,508467,COMENSURA LIMITED,C-C23180-0115,Rcycl Coltn Schms-Temporary Agency Staff,26 August 2011,287.64
http://statistics.data.gov.uk/id/local-authority-district/23UB,Cheltenham Borough Council,456137,508467,COMENSURA LIMITED,C-C23180-0115,Rcycl Coltn Schms-Temporary Agency Staff,26 August 2011,293.98
http://statistics.data.gov.uk/id/local-authority-district/23UB,Cheltenham Borough Council,456137,508467,COMENSURA LIMITED,C-C23180-0115,Rcycl Coltn Schms-Temporary Agency Staff,26 August 2011,361.68
http://statistics.data.gov.uk/id/local-authority-district/23UB,Cheltenham Borough Council,456137,508467,COMENSURA LIMITED,C-C23180-0115,Rcycl Coltn Schms-Temporary Agency Staff,26 August 2011,171.31
http://statistics.data.gov.uk/id/local-authority-district/23UB,Cheltenham Borough Council,456137,508467,COMENSURA LIMITED,C-C23180-0115,Rcycl Coltn Schms-Temporary Agency Staff,26 August 2011,184.01
http://statistics.data.gov.uk/id/local-authority-district/23UB,Cheltenham Borough Council,456137,508467,COMENSURA LIMITED,C-C23180-0115,Rcycl Coltn Schms-Temporary Agency Staff,26 August 2011,293.98
http://statistics.data.gov.uk/id/local-authority-district/23UB,Cheltenham Borough Council,456137,508467,COMENSURA LIMITED,C-C23180-0115,Rcycl Coltn Schms-Temporary Agency Staff,26 August 2011,264.38
http://statistics.data.gov.uk/id/local-authority-district/23UB,Cheltenham Borough Council,456137,508467,COMENSURA LIMITED,C-C23180-0115,Rcycl Coltn Schms-Temporary Agency Staff,26 August 2011,258.03
http://statistics.data.gov.uk/id/local-authority-district/23UB,Cheltenham Borough Council,456137,508467,COMENSURA LIMITED,C-C23180-0115,Rcycl Coltn Schms-Temporary Agency Staff,26 August 2011,291.12
http://statistics.data.gov.uk/id/local-authority-district/23UB,Cheltenham Borough Council,456137,508467,COMENSURA LIMITED,C-C23180-0115,Rcycl Coltn Schms-Temporary Agency Staff,26 August 2011,485.20
http://statistics.data.gov.uk/id/local-authority-district/23UB,Cheltenham Borough Council,456137,508467,COMENSURA LIMITED,C-C23180-0115,Rcycl Coltn Schms-Temporary Agency Staff,26 August 2011,287.64
http://statistics.data.gov.uk/id/local-authority-district/23UB,Cheltenham Borough Council,456137,508467,COMENSURA LIMITED,C-C23180-0115,Rcycl Coltn Schms-Temporary Agency Staff,26 August 2011,485.20
http://statistics.data.gov.uk/id/local-authority-district/23UB,Cheltenham Borough Council,456137,508467,COMENSURA LIMITED,C-C23180-0115,Rcycl Coltn Schms-Temporary Agency Staff,26 August 2011,249.58
http://statistics.data.gov.uk/id/local-authority-district/23UB,Cheltenham Borough Council,456137,508467,COMENSURA LIMITED,C-C23180-0115,Rcycl Coltn Schms-Temporary Agency Staff,26 August 2011,487.83
http://statistics.data.gov.uk/id/local-authority-district/23UB,Cheltenham Borough Council,456137,508467,COMENSURA LIMITED,C-C23180-0115,Rcycl Coltn Schms-Temporary Agency Staff,26 August 2011,200.92
http://statistics.data.gov.uk/id/local-authority-district/23UB,Cheltenham Borough Council,456137,508467,COMENSURA LIMITED,C-C23180-0115,Rcycl Coltn Schms-Temporary Agency Staff,26 August 2011,186.12
http://statistics.data.gov.uk/id/local-authority-district/23UB,Cheltenham Borough Council,456137,508467,COMENSURA LIMITED,C-C23180-0115,Rcycl Coltn Schms-Temporary Agency Staff,26 August 2011,297.18
http://statistics.data.gov.uk/id/local-authority-district/23UB,Cheltenham Borough Council,456137,508467,COMENSURA LIMITED,C-C23180-0115,Rcycl Coltn Schms-Temporary Agency Staff,26 August 2011,-4.23
http://statistics.data.gov.uk/id/local-authority-district/23UB,Cheltenham Borough Council,456139,508747,COMENSURA LIMITED,C-C23180-0115,Rcycl Coltn Schms-Temporary Agency Staff,26 August 2011,69.80
http://statistics.data.gov.uk/id/local-authority-district/23UB,Cheltenham Borough Council,456139,508747,COMENSURA LIMITED,C-C23180-0115,Rcycl Coltn Schms-Temporary Agency Staff,26 August 2011,97.04
http://statistics.data.gov.uk/id/local-authority-district/23UB,Cheltenham Borough Council,456139,508747,COMENSURA LIMITED,C-C23180-0115,Rcycl Coltn Schms-Temporary Agency Staff,26 August 2011,67.68
http://statistics.data.gov.uk/id/local-authority-district/23UB,Cheltenham Borough Council,456139,508747,COMENSURA LIMITED,C-C23180-0115,Rcycl Coltn Schms-Temporary Agency Staff,26 August 2011,412.42
http://statistics.data.gov.uk/id/local-authority-district/23UB,Cheltenham Borough Council,456139,508747,COMENSURA LIMITED,C-C23180-0115,Rcycl Coltn Schms-Temporary Agency Staff,26 August 2011,78.84
http://statistics.data.gov.uk/id/local-authority-district/23UB,Cheltenham Borough Council,456139,508747,COMENSURA LIMITED,C-C23180-0115,Rcycl Coltn Schms-Temporary Agency Staff,26 August 2011,54.99
http://statistics.data.gov.uk/id/local-authority-district/23UB,Cheltenham Borough Council,456139,508747,COMENSURA LIMITED,C-C23180-0115,Rcycl Coltn Schms-Temporary Agency Staff,26 August 2011,272.40
http://statistics.data.gov.uk/id/local-authority-district/23UB,Cheltenham Borough Council,456139,508747,COMENSURA LIMITED,C-C23180-0115,Rcycl Coltn Schms-Temporary Agency Staff,26 August 2011,346.86
http://statistics.data.gov.uk/id/local-authority-district/23UB,Cheltenham Borough Council,456139,508747,COMENSURA LIMITED,C-C23180-0115,Rcycl Coltn Schms-Temporary Agency Staff,26 August 2011,59.22
http://statistics.data.gov.uk/id/local-authority-district/23UB,Cheltenham Borough Council,456139,508747,COMENSURA LIMITED,C-C23180-0115,Rcycl Coltn Schms-Temporary Agency Staff,26 August 2011,118.44
http://statistics.data.gov.uk/id/local-authority-district/23UB,Cheltenham Borough Council,456139,508747,COMENSURA LIMITED,C-C23180-0115,Rcycl Coltn Schms-Temporary Agency Staff,26 August 2011,98.00
http://statistics.data.gov.uk/id/local-authority-district/23UB,Cheltenham Borough Council,456139,508747,COMENSURA LIMITED,C-C23180-0115,Rcycl Coltn Schms-Temporary Agency Staff,26 August 2011,339.52
http://statistics.data.gov.uk/id/local-authority-district/23UB,Cheltenham Borough Council,456139,508747,COMENSURA LIMITED,C-C23180-0115,Rcycl Coltn Schms-Temporary Agency Staff,26 August 2011,230.54
http://statistics.data.gov.uk/id/local-authority-district/23UB,Cheltenham Borough Council,456139,508747,COMENSURA LIMITED,C-C23180-0115,Rcycl Coltn Schms-Temporary Agency Staff,26 August 2011,291.87
http://statistics.data.gov.uk/id/local-authority-district/23UB,Cheltenham Borough Council,456139,508747,COMENSURA LIMITED,C-C23180-0115,Rcycl Coltn Schms-Temporary Agency Staff,26 August 2011,291.88
http://statistics.data.gov.uk/id/local-authority-district/23UB,Cheltenham Borough Council,456139,508747,COMENSURA LIMITED,C-C23180-0115,Rcycl Coltn Schms-Temporary Agency Staff,26 August 2011,97.04
http://statistics.data.gov.uk/id/local-authority-district/23UB,Cheltenham Borough Council,456139,508747,COMENSURA LIMITED,C-C23180-0115,Rcycl Coltn Schms-Temporary Agency Staff,26 August 2011,122.67
http://statistics.data.gov.uk/id/local-authority-district/23UB,Cheltenham Borough Council,456139,508747,COMENSURA LIMITED,C-C23180-0115,Rcycl Coltn Schms-Temporary Agency Staff,26 August 2011,306.67
http://statistics.data.gov.uk/id/local-authority-district/23UB,Cheltenham Borough Council,456139,508747,COMENSURA LIMITED,C-C23180-0115,Rcycl Coltn Schms-Temporary Agency Staff,26 August 2011,285.54
http://statistics.data.gov.uk/id/local-authority-district/23UB,Cheltenham Borough Council,456139,508747,COMENSURA LIMITED,C-C23180-0115,Rcycl Coltn Schms-Temporary Agency Staff,26 August 2011,497.32
http://statistics.data.gov.uk/id/local-authority-district/23UB,Cheltenham Borough Council,456139,508747,COMENSURA LIMITED,C-C23180-0115,Rcycl Coltn Schms-Temporary Agency Staff,26 August 2011,243.23
http://statistics.data.gov.uk/id/local-authority-district/23UB,Cheltenham Borough Council,456139,508747,COMENSURA LIMITED,C-C23180-0115,Rcycl Coltn Schms-Temporary Agency Staff,26 August 2011,181.89
http://statistics.data.gov.uk/id/local-authority-district/23UB,Cheltenham Borough Council,456139,508747,COMENSURA LIMITED,C-C23180-0115,Rcycl Coltn Schms-Temporary Agency Staff,26 August 2011,188.24
http://statistics.data.gov.uk/id/local-authority-district/23UB,Cheltenham Borough Council,456139,508747,COMENSURA LIMITED,C-C23180-0115,Rcycl Coltn Schms-Temporary Agency Staff,26 August 2011,139.59
http://statistics.data.gov.uk/id/local-authority-district/23UB,Cheltenham Borough Council,456139,508747,COMENSURA LIMITED,C-C23180-0115,Rcycl Coltn Schms-Temporary Agency Staff,26 August 2011,260.14
http://statistics.data.gov.uk/id/local-authority-district/23UB,Cheltenham Borough Council,456139,508747,COMENSURA LIMITED,C-C23180-0115,Rcycl Coltn Schms-Temporary Agency Staff,26 August 2011,297.18
http://statistics.data.gov.uk/id/local-authority-district/23UB,Cheltenham Borough Council,456139,508747,COMENSURA LIMITED,C-C23180-0115,Rcycl Coltn Schms-Temporary Agency Staff,26 August 2011,291.87
http://statistics.data.gov.uk/id/local-authority-district/23UB,Cheltenham Borough Council,456139,508747,COMENSURA LIMITED,C-C23180-0115,Rcycl Coltn Schms-Temporary Agency Staff,26 August 2011,491.26
http://statistics.data.gov.uk/id/local-authority-district/23UB,Cheltenham Borough Council,456139,508747,COMENSURA LIMITED,C-C23180-0115,Rcycl Coltn Schms-Temporary Agency Staff,26 August 2011,296.10
http://statistics.data.gov.uk/id/local-authority-district/23UB,Cheltenham Borough Council,456139,508747,COMENSURA LIMITED,C-C23180-0115,Rcycl Coltn Schms-Temporary Agency Staff,26 August 2011,209.38
http://statistics.data.gov.uk/id/local-authority-district/23UB,Cheltenham Borough Council,456139,508747,COMENSURA LIMITED,C-C23180-0115,Rcycl Coltn Schms-Temporary Agency Staff,26 August 2011,126.90
http://statistics.data.gov.uk/id/local-authority-district/23UB,Cheltenham Borough Council,456136,508325,COMENSURA LIMITED,C-C23180-0115,Rcycl Coltn Schms-Temporary Agency Staff,26 August 2011,236.89
http://statistics.data.gov.uk/id/local-authority-district/23UB,Cheltenham Borough Council,456136,508325,COMENSURA LIMITED,C-C23180-0115,Rcycl Coltn Schms-Temporary Agency Staff,26 August 2011,334.17
http://statistics.data.gov.uk/id/local-authority-district/23UB,Cheltenham Borough Council,456136,508325,COMENSURA LIMITED,C-C23180-0115,Rcycl Coltn Schms-Temporary Agency Staff,26 August 2011,500.36
http://statistics.data.gov.uk/id/local-authority-district/23UB,Cheltenham Borough Council,456136,508325,COMENSURA LIMITED,C-C23180-0115,Rcycl Coltn Schms-Temporary Agency Staff,26 August 2011,291.12
http://statistics.data.gov.uk/id/local-authority-district/23UB,Cheltenham Borough Council,456136,508325,COMENSURA LIMITED,C-C23180-0115,Rcycl Coltn Schms-Temporary Agency Staff,26 August 2011,194.58
http://statistics.data.gov.uk/id/local-authority-district/23UB,Cheltenham Borough Council,456136,508325,COMENSURA LIMITED,C-C23180-0115,Rcycl Coltn Schms-Temporary Agency Staff,26 August 2011,291.87
http://statistics.data.gov.uk/id/local-authority-district/23UB,Cheltenham Borough Council,456136,508325,COMENSURA LIMITED,C-C23180-0115,Rcycl Coltn Schms-Temporary Agency Staff,26 August 2011,545.40
http://statistics.data.gov.uk/id/local-authority-district/23UB,Cheltenham Borough Council,456136,508325,COMENSURA LIMITED,C-C23190-0115,Garden Collectn-Temporary Agency Staff,26 August 2011,245.34
http://statistics.data.gov.uk/id/local-authority-district/23UB,Cheltenham Borough Council,456137,508467,COMENSURA LIMITED,C-C23190-0115,Garden Collectn-Temporary Agency Staff,26 August 2011,232.66
http://statistics.data.gov.uk/id/local-authority-district/23UB,Cheltenham Borough Council,456137,508467,COMENSURA LIMITED,C-C23190-0115,Garden Collectn-Temporary Agency Staff,26 August 2011,46.53
http://statistics.data.gov.uk/id/local-authority-district/23UB,Cheltenham Borough Council,456137,508467,COMENSURA LIMITED,C-C23190-0115,Garden Collectn-Temporary Agency Staff,26 August 2011,118.43
http://statistics.data.gov.uk/id/local-authority-district/23UB,Cheltenham Borough Council,456139,508747,COMENSURA LIMITED,C-C23190-0115,Garden Collectn-Temporary Agency Staff,26 August 2011,50.76
http://statistics.data.gov.uk/id/local-authority-district/23UB,Cheltenham Borough Council,456139,508747,COMENSURA LIMITED,C-C23190-0115,Garden Collectn-Temporary Agency Staff,26 August 2011,97.04
http://statistics.data.gov.uk/id/local-authority-district/23UB,Cheltenham Borough Council,456139,508747,COMENSURA LIMITED,C-C23190-0115,Garden Collectn-Temporary Agency Staff,26 August 2011,258.03
http://statistics.data.gov.uk/id/local-authority-district/23UB,Cheltenham Borough Council,456139,508747,COMENSURA LIMITED,C-C23190-0115,Garden Collectn-Temporary Agency Staff,26 August 2011,485.20
http://statistics.data.gov.uk/id/local-authority-district/23UB,Cheltenham Borough Council,456139,508747,COMENSURA LIMITED,C-C23190-0115,Garden Collectn-Temporary Agency Staff,26 August 2011,97.04
http://statistics.data.gov.uk/id/local-authority-district/23UB,Cheltenham Borough Council,456139,508747,COMENSURA LIMITED,C-C23190-0115,Garden Collectn-Temporary Agency Staff,26 August 2011,175.55
http://statistics.data.gov.uk/id/local-authority-district/23UB,Cheltenham Borough Council,456136,508325,COMENSURA LIMITED,C-C23190-0115,Garden Collectn-Temporary Agency Staff,26 August 2011,485.20
http://statistics.data.gov.uk/id/local-authority-district/23UB,Cheltenham Borough Council,456136,508325,COMENSURA LIMITED,C-C23190-0115,Garden Collectn-Temporary Agency Staff,26 August 2011,50.76
http://statistics.data.gov.uk/id/local-authority-district/23UB,Cheltenham Borough Council,456136,508325,COMENSURA LIMITED,C-C23190-0115,Garden Collectn-Temporary Agency Staff,26 August 2011,200.91
http://statistics.data.gov.uk/id/local-authority-district/23UB,Cheltenham Borough Council,456138,508611,COMENSURA LIMITED,C-C23190-0115,Garden Collectn-Temporary Agency Staff,26 August 2011,50.76
http://statistics.data.gov.uk/id/local-authority-district/23UB,Cheltenham Borough Council,456138,508611,COMENSURA LIMITED,C-C23190-0115,Garden Collectn-Temporary Agency Staff,26 August 2011,95.17
http://statistics.data.gov.uk/id/local-authority-district/23UB,Cheltenham Borough Council,456138,508611,COMENSURA LIMITED,C-C23190-0115,Garden Collectn-Temporary Agency Staff,26 August 2011,97.04
http://statistics.data.gov.uk/id/local-authority-district/23UB,Cheltenham Borough Council,456138,508611,COMENSURA LIMITED,C-C23190-0115,Garden Collectn-Temporary Agency Staff,26 August 2011,124.78
http://statistics.data.gov.uk/id/local-authority-district/23UB,Cheltenham Borough Council,456138,508611,COMENSURA LIMITED,C-C23190-0115,Garden Collectn-Temporary Agency Staff,26 August 2011,198.82
http://statistics.data.gov.uk/id/local-authority-district/23UB,Cheltenham Borough Council,456137,508467,COMENSURA LIMITED,C-C23190-0115,Garden Collectn-Temporary Agency Staff,26 August 2011,57.10
http://statistics.data.gov.uk/id/local-authority-district/23UB,Cheltenham Borough Council,456137,508467,COMENSURA LIMITED,C-C23190-0115,Garden Collectn-Temporary Agency Staff,26 August 2011,97.29
http://statistics.data.gov.uk/id/local-authority-district/23UB,Cheltenham Borough Council,456136,508325,COMENSURA LIMITED,C-C23190-0115,Garden Collectn-Temporary Agency Staff,26 August 2011,35.96
http://statistics.data.gov.uk/id/local-authority-district/23UB,Cheltenham Borough Council,456136,508325,COMENSURA LIMITED,C-C23190-0115,Garden Collectn-Temporary Agency Staff,26 August 2011,97.04
http://statistics.data.gov.uk/id/local-authority-district/23UB,Cheltenham Borough Council,456137,508467,COMENSURA LIMITED,C-D12300-0115,Personnel and P-Temporary Agency Staff,26 August 2011,412.04
http://statistics.data.gov.uk/id/local-authority-district/23UB,Cheltenham Borough Council,456137,508467,COMENSURA LIMITED,C-D12300-0115,Personnel and P-Temporary Agency Staff,26 August 2011,499.86
http://statistics.data.gov.uk/id/local-authority-district/23UB,Cheltenham Borough Council,456136,508325,COMENSURA LIMITED,C-D12500-0115,Property Servs-Temporary Agency Staff,26 August 2011,84.60
http://statistics.data.gov.uk/id/local-authority-district/23UB,Cheltenham Borough Council,456137,508467,COMENSURA LIMITED,C-D12500-0115,Property Servs-Temporary Agency Staff,26 August 2011,105.75
http://statistics.data.gov.uk/id/local-authority-district/23UB,Cheltenham Borough Council,456138,508611,COMENSURA LIMITED,C-D12500-0115,Property Servs-Temporary Agency Staff,26 August 2011,63.45
http://statistics.data.gov.uk/id/local-authority-district/23UB,Cheltenham Borough Council,456136,508325,COMENSURA LIMITED,C-D13100-0115,Muni Off Blgs-Temporary Agency Staff,26 August 2011,16.92
http://statistics.data.gov.uk/id/local-authority-district/23UB,Cheltenham Borough Council,456139,508747,COMENSURA LIMITED,C-D13100-0115,Muni Off Blgs-Temporary Agency Staff,26 August 2011,63.45
http://statistics.data.gov.uk/id/local-authority-district/23UB,Cheltenham Borough Council,456138,508611,COMENSURA LIMITED,C-D13100-0115,Muni Off Blgs-Temporary Agency Staff,26 August 2011,63.45
http://statistics.data.gov.uk/id/local-authority-district/23UB,Cheltenham Borough Council,456138,508611,COMENSURA LIMITED,C-D13100-0115,Muni Off Blgs-Temporary Agency Staff,26 August 2011,139.59
http://statistics.data.gov.uk/id/local-authority-district/23UB,Cheltenham Borough Council,456138,508611,COMENSURA LIMITED,C-D13100-0115,Muni Off Blgs-Temporary Agency Staff,26 August 2011,177.66
http://statistics.data.gov.uk/id/local-authority-district/23UB,Cheltenham Borough Council,456137,508467,COMENSURA LIMITED,C-D13100-0115,Muni Off Blgs-Temporary Agency Staff,26 August 2011,84.60
http://statistics.data.gov.uk/id/local-authority-district/23UB,Cheltenham Borough Council,456137,508467,COMENSURA LIMITED,C-D13100-0115,Muni Off Blgs-Temporary Agency Staff,26 August 2011,380.70
http://statistics.data.gov.uk/id/local-authority-district/23UB,Cheltenham Borough Council,456139,508747,COMENSURA LIMITED,C-D13100-0115,Muni Off Blgs-Temporary Agency Staff,26 August 2011,42.30
http://statistics.data.gov.uk/id/local-authority-district/23UB,Cheltenham Borough Council,456136,508325,COMENSURA LIMITED,C-D13100-0115,Muni Off Blgs-Temporary Agency Staff,26 August 2011,76.14
http://statistics.data.gov.uk/id/local-authority-district/23UB,Cheltenham Borough Council,456136,508325,COMENSURA LIMITED,C-E36200-0115,On-St Car Prkng-Temporary Agency Staff,26 August 2011,519.54
http://statistics.data.gov.uk/id/local-authority-district/23UB,Cheltenham Borough Council,456136,508325,COMENSURA LIMITED,C-E36200-0115,On-St Car Prkng-Temporary Agency Staff,26 August 2011,531.91
http://statistics.data.gov.uk/id/local-authority-district/23UB,Cheltenham Borough Council,456137,508467,COMENSURA LIMITED,C-E36200-0115,On-St Car Prkng-Temporary Agency Staff,26 August 2011,525.73
http://statistics.data.gov.uk/id/local-authority-district/23UB,Cheltenham Borough Council,456139,508747,COMENSURA LIMITED,C-E36200-0115,On-St Car Prkng-Temporary Agency Staff,26 August 2011,417.48
http://statistics.data.gov.uk/id/local-authority-district/23UB,Cheltenham Borough Council,456139,508747,COMENSURA LIMITED,C-E36200-0115,On-St Car Prkng-Temporary Agency Staff,26 August 2011,309.25
http://statistics.data.gov.uk/id/local-authority-district/23UB,Cheltenham Borough Council,456136,508325,COMENSURA LIMITED,C-E63100-0115,Cemetery & Crem-Temporary Agency Staff,26 August 2011,313.02
http://statistics.data.gov.uk/id/local-authority-district/23UB,Cheltenham Borough Council,456136,508325,COMENSURA LIMITED,C-E63100-0115,Cemetery & Crem-Temporary Agency Staff,26 August 2011,313.02
http://statistics.data.gov.uk/id/local-authority-district/23UB,Cheltenham Borough Council,456138,508611,COMENSURA LIMITED,C-E63100-0115,Cemetery & Crem-Temporary Agency Staff,26 August 2011,313.02
http://statistics.data.gov.uk/id/local-authority-district/23UB,Cheltenham Borough Council,456138,508611,COMENSURA LIMITED,C-E63100-0115,Cemetery & Crem-Temporary Agency Staff,26 August 2011,313.02
http://statistics.data.gov.uk/id/local-authority-district/23UB,Cheltenham Borough Council,456138,508611,COMENSURA LIMITED,C-E63100-0115,Cemetery & Crem-Temporary Agency Staff,26 August 2011,313.02
http://statistics.data.gov.uk/id/local-authority-district/23UB,Cheltenham Borough Council,456137,508467,COMENSURA LIMITED,C-E63100-0115,Cemetery & Crem-Temporary Agency Staff,26 August 2011,313.02
http://statistics.data.gov.uk/id/local-authority-district/23UB,Cheltenham Borough Council,456137,508467,COMENSURA LIMITED,C-E63100-0115,Cemetery & Crem-Temporary Agency Staff,26 August 2011,249.57
http://statistics.data.gov.uk/id/local-authority-district/23UB,Cheltenham Borough Council,456139,508747,COMENSURA LIMITED,C-E63100-0115,Cemetery & Crem-Temporary Agency Staff,26 August 2011,296.10
http://statistics.data.gov.uk/id/local-authority-district/23UB,Cheltenham Borough Council,456139,508747,COMENSURA LIMITED,C-E63100-0115,Cemetery & Crem-Temporary Agency Staff,26 August 2011,313.02
http://statistics.data.gov.uk/id/local-authority-district/23UB,Cheltenham Borough Council,456139,508747,COMENSURA LIMITED,C-E63100-0115,Cemetery & Crem-Temporary Agency Staff,26 August 2011,296.10
http://statistics.data.gov.uk/id/local-authority-district/23UB,Cheltenham Borough Council,456136,508325,COMENSURA LIMITED,C-E63100-0115,Cemetery & Crem-Temporary Agency Staff,26 August 2011,253.80
http://statistics.data.gov.uk/id/local-authority-district/23UB,Cheltenham Borough Council,456136,508325,COMENSURA LIMITED,C-E63100-0115,Cemetery & Crem-Temporary Agency Staff,26 August 2011,253.80
http://statistics.data.gov.uk/id/local-authority-district/23UB,Cheltenham Borough Council,456136,508325,COMENSURA LIMITED,C-E63100-0115,Cemetery & Crem-Temporary Agency Staff,26 August 2011,313.02
http://statistics.data.gov.uk/id/local-authority-district/23UB,Cheltenham Borough Council,456136,508325,COMENSURA LIMITED,C-E63100-0115,Cemetery & Crem-Temporary Agency Staff,26 August 2011,296.10
http://statistics.data.gov.uk/id/local-authority-district/23UB,Cheltenham Borough Council,456085,0111/12,CONTEMPORARY ART SOCIETY,C-L41100-3890,AG & M-Subscriptions - general,24 August 2011,"1,350.00"
http://statistics.data.gov.uk/id/local-authority-district/23UB,Cheltenham Borough Council,455097,015378,CORY ENVIRONMENTAL LTD,C-C23100-3581,Refuse Collctn-Tipping charges,05 August 2011,"5,038.39"
http://statistics.data.gov.uk/id/local-authority-district/23UB,Cheltenham Borough Council,455547,015434,CORY ENVIRONMENTAL LTD,C-C23100-3581,Refuse Collctn-Tipping charges,17 August 2011,"5,135.17"
http://statistics.data.gov.uk/id/local-authority-district/23UB,Cheltenham Borough Council,455549,015496,CORY ENVIRONMENTAL LTD,C-C23100-3581,Refuse Collctn-Tipping charges,17 August 2011,"5,475.93"
http://statistics.data.gov.uk/id/local-authority-district/23UB,Cheltenham Borough Council,455495,859478,CRASH REPAIRS,C-C24100-3582,Fleet Maint-DSO Invoices,17 August 2011,200.00
http://statistics.data.gov.uk/id/local-authority-district/23UB,Cheltenham Borough Council,455494,859476,CRASH REPAIRS,C-C24100-3582,Fleet Maint-DSO Invoices,17 August 2011,"1,535.56"
http://statistics.data.gov.uk/id/local-authority-district/23UB,Cheltenham Borough Council,456198,CEE059,CRAWFORD EQUIPMENT EUROPE LTD,C-E63100-3101,Cemetery & Crem-Equipment purchases,31 August 2011,"1,360.00"
http://statistics.data.gov.uk/id/local-authority-district/23UB,Cheltenham Borough Council,454731,SETTLEMENT,MRS R CREED T/A HOWLERS COMEDY CLUB,C-N13125-9205,ASH Ledger-Town Hall Invoices Paid,03 August 2011,-523.04
http://statistics.data.gov.uk/id/local-authority-district/23UB,Cheltenham Borough Council,454731,SETTLEMENT,MRS R CREED T/A HOWLERS COMEDY CLUB,C-Z12210-9138,Box Off A/C-TH Hirers Tkt Pd out,03 August 2011,"2,902.00"
http://statistics.data.gov.uk/id/local-authority-district/23UB,Cheltenham Borough Council,453844,801654,CRIMINAL RECORDS BUREAU,C-A21500-3501,Licensing-Hire of outside services,03 August 2011,714.00
http://statistics.data.gov.uk/id/local-authority-district/23UB,Cheltenham Borough Council,453844,801654,CRIMINAL RECORDS BUREAU,C-C22100-3501,Green Env Div-Hire of outside services,03 August 2011,26.00
http://statistics.data.gov.uk/id/local-authority-district/23UB,Cheltenham Borough Council,453844,801654,CRIMINAL RECORDS BUREAU,C-E36200-3501,On-St Car Prkng-Hire of outside services,03 August 2011,208.00
http://statistics.data.gov.uk/id/local-authority-district/23UB,Cheltenham Borough Council,453844,801654,CRIMINAL RECORDS BUREAU,C-H22600-3501,Community Servs-Hire of outside services,03 August 2011,44.00
http://statistics.data.gov.uk/id/local-authority-district/23UB,Cheltenham Borough Council,453844,801654,CRIMINAL RECORDS BUREAU,C-L11500-3501,Rec Facilities-Hire of outside services,03 August 2011,44.00
http://statistics.data.gov.uk/id/local-authority-district/23UB,Cheltenham Borough Council,453844,801654,CRIMINAL RECORDS BUREAU,C-L16100-3501,Holiday Rec-Hire of outside services,03 August 2011,88.00
http://statistics.data.gov.uk/id/local-authority-district/23UB,Cheltenham Borough Council,453844,801654,CRIMINAL RECORDS BUREAU,C-L17300-3501,Sport Dev-Hire of outside services,03 August 2011,220.00
http://statistics.data.gov.uk/id/local-authority-district/23UB,Cheltenham Borough Council,455224,805838,CRIMINAL RECORDS BUREAU,C-A21500-3501,Licensing-Hire of outside services,09 August 2011,890.00
http://statistics.data.gov.uk/id/local-authority-district/23UB,Cheltenham Borough Council,455224,805838,CRIMINAL RECORDS BUREAU,C-L11500-3501,Rec Facilities-Hire of outside services,09 August 2011,132.00
http://statistics.data.gov.uk/id/local-authority-district/23UB,Cheltenham Borough Council,455224,805838,CRIMINAL RECORDS BUREAU,C-L16100-3501,Holiday Rec-Hire of outside services,09 August 2011,88.00
http://statistics.data.gov.uk/id/local-authority-district/23UB,Cheltenham Borough Council,456023,REDACTED,REDACTED,C-Z13080-J041,Rech Wks Hwys-Rechargeable Job,19 August 2011,500.00
http://statistics.data.gov.uk/id/local-authority-district/23UB,Cheltenham Borough Council,456023,REDACTED,REDACTED,C-Z13080-J043,Rech Wks Hwys-Rechargeable Job,19 August 2011,500.00
http://statistics.data.gov.uk/id/local-authority-district/23UB,Cheltenham Borough Council,456082,027892,THE DARKROOM UK LTD,C-L41100-3545,AG & M-Curatorial Projects,24 August 2011,841.40
http://statistics.data.gov.uk/id/local-authority-district/23UB,Cheltenham Borough Council,454790,110821,DEEPCLEAN HYGIENE SOLUTIONS LTD,C-L21100-3501,Town Hall-Hire of outside services,03 August 2011,225.00
http://statistics.data.gov.uk/id/local-authority-district/23UB,Cheltenham Borough Council,454789,110820,DEEPCLEAN HYGIENE SOLUTIONS LTD,C-L21200-3501,Pump Room-Hire of outside services,03 August 2011,495.00
http://statistics.data.gov.uk/id/local-authority-district/23UB,Cheltenham Borough Council,455444,110960,DEEPCLEAN HYGIENE SOLUTIONS LTD,C-L21100-3501,Town Hall-Hire of outside services,17 August 2011,697.50
http://statistics.data.gov.uk/id/local-authority-district/23UB,Cheltenham Borough Council,456069,513458,DESIGNA UK LIMITED,C-E21100-3103,Car Prks-Off St-Equipment repairs & main,24 August 2011,"4,752.25"
http://statistics.data.gov.uk/id/local-authority-district/23UB,Cheltenham Borough Council,456066,513440,DESIGNA UK LIMITED,C-E21100-3401,Car Prks-Off St-Printing - general,24 August 2011,140.00
http://statistics.data.gov.uk/id/local-authority-district/23UB,Cheltenham Borough Council,456066,513440,DESIGNA UK LIMITED,C-E21100-3401,Car Prks-Off St-Printing - general,24 August 2011,16.50
http://statistics.data.gov.uk/id/local-authority-district/23UB,Cheltenham Borough Council,455627,REDACTED,DISABLED CARE AND MOBILITY LIMITED,C-HC4100-C801,Dis.Adapt.HRA-Grants,17 August 2011,"1,275.00"
http://statistics.data.gov.uk/id/local-authority-district/23UB,Cheltenham Borough Council,455427,1026,DPDS CONSULTING GROUP,C-B51145-3501,Joint Core Stra-Hire of outside services,17 August 2011,"9,175.00"
http://statistics.data.gov.uk/id/local-authority-district/23UB,Cheltenham Borough Council,456104,1033,DPDS CONSULTING GROUP,C-B51145-3501,Joint Core Stra-Hire of outside services,24 August 2011,"2,446.72"
http://statistics.data.gov.uk/id/local-authority-district/23UB,Cheltenham Borough Council,456083,15220,ECO MOVERS,C-L41100-3131,AG & M-Exhibition & Display,24 August 2011,360.00
http://statistics.data.gov.uk/id/local-authority-district/23UB,Cheltenham Borough Council,456083,15220,ECO MOVERS,C-L41100-3131,AG & M-Exhibition & Display,24 August 2011,315.00
http://statistics.data.gov.uk/id/local-authority-district/23UB,Cheltenham Borough Council,456080,15219,ECO MOVERS,C-L41100-3131,AG & M-Exhibition & Display,24 August 2011,315.00
http://statistics.data.gov.uk/id/local-authority-district/23UB,Cheltenham Borough Council,456079,15098,ECO MOVERS,C-L41100-3256,AG & M-Fine Form Horse Parade exp,24 August 2011,896.00
http://statistics.data.gov.uk/id/local-authority-district/23UB,Cheltenham Borough Council,455064,9303,EMMDEE BUILDING SERVICES,C-D13100-1801,Muni Off Blgs-RM-Electrical repairs,05 August 2011,194.44
http://statistics.data.gov.uk/id/local-authority-district/23UB,Cheltenham Borough Council,455067,9241,EMMDEE BUILDING SERVICES,C-D14100-1801,Depot Building-RM-Electrical repairs,05 August 2011,954.76
http://statistics.data.gov.uk/id/local-authority-district/23UB,Cheltenham Borough Council,455063,9368,EMMDEE BUILDING SERVICES,C-D14100-1801,Depot Building-RM-Electrical repairs,05 August 2011,73.13
http://statistics.data.gov.uk/id/local-authority-district/23UB,Cheltenham Borough Council,455065,9301,EMMDEE BUILDING SERVICES,C-E21100-1801,Car Prks-Off St-RM-Electrical repairs,05 August 2011,22.50
http://statistics.data.gov.uk/id/local-authority-district/23UB,Cheltenham Borough Council,455215,9245,EMMDEE BUILDING SERVICES,C-L21200-1801,Pump Room-RM-Electrical repairs,09 August 2011,131.74
http://statistics.data.gov.uk/id/local-authority-district/23UB,Cheltenham Borough Council,455216,9263,EMMDEE BUILDING SERVICES,C-PM0092-R048,Central Nursery-Other Internal Improveme,09 August 2011,"1,195.00"
http://statistics.data.gov.uk/id/local-authority-district/23UB,Cheltenham Borough Council,455407,9244,EMMDEE BUILDING SERVICES,C-C22110-1801,Parks & Gardens-RM-Electrical repairs,17 August 2011,22.50
http://statistics.data.gov.uk/id/local-authority-district/23UB,Cheltenham Borough Council,455403,9366,EMMDEE BUILDING SERVICES,C-D13100-1801,Muni Off Blgs-RM-Electrical repairs,17 August 2011,45.00
http://statistics.data.gov.uk/id/local-authority-district/23UB,Cheltenham Borough Council,455406,9243,EMMDEE BUILDING SERVICES,C-D13100-1801,Muni Off Blgs-RM-Electrical repairs,17 August 2011,70.00
http://statistics.data.gov.uk/id/local-authority-district/23UB,Cheltenham Borough Council,455412,9378,EMMDEE BUILDING SERVICES,C-D13100-1801,Muni Off Blgs-RM-Electrical repairs,17 August 2011,56.25
http://statistics.data.gov.uk/id/local-authority-district/23UB,Cheltenham Borough Council,455410,9304,EMMDEE BUILDING SERVICES,C-D13100-1801,Muni Off Blgs-RM-Electrical repairs,17 August 2011,29.75
http://statistics.data.gov.uk/id/local-authority-district/23UB,Cheltenham Borough Council,455405,9242,EMMDEE BUILDING SERVICES,C-D13100-1801,Muni Off Blgs-RM-Electrical repairs,17 August 2011,155.00
http://statistics.data.gov.uk/id/local-authority-district/23UB,Cheltenham Borough Council,455413,9380,EMMDEE BUILDING SERVICES,C-E21100-1801,Car Prks-Off St-RM-Electrical repairs,17 August 2011,22.50
http://statistics.data.gov.uk/id/local-authority-district/23UB,Cheltenham Borough Council,455408,9246,EMMDEE BUILDING SERVICES,C-L11500-1801,Rec Facilities-RM-Electrical repairs,17 August 2011,39.37
http://statistics.data.gov.uk/id/local-authority-district/23UB,Cheltenham Borough Council,455409,9305,EMMDEE BUILDING SERVICES,C-L11500-1801,Rec Facilities-RM-Electrical repairs,17 August 2011,67.50
http://statistics.data.gov.uk/id/local-authority-district/23UB,Cheltenham Borough Council,455414,9381,EMMDEE BUILDING SERVICES,C-L11500-1801,Rec Facilities-RM-Electrical repairs,17 August 2011,78.75
http://statistics.data.gov.uk/id/local-authority-district/23UB,Cheltenham Borough Council,455411,9370,EMMDEE BUILDING SERVICES,C-L11500-1801,Rec Facilities-RM-Electrical repairs,17 August 2011,56.25
http://statistics.data.gov.uk/id/local-authority-district/23UB,Cheltenham Borough Council,455817,9300,EMMDEE BUILDING SERVICES,C-L21100-1801,Town Hall-RM-Electrical repairs,19 August 2011,216.52
http://statistics.data.gov.uk/id/local-authority-district/23UB,Cheltenham Borough Council,455819,9367,EMMDEE BUILDING SERVICES,C-L21100-1801,Town Hall-RM-Electrical repairs,19 August 2011,33.75
http://statistics.data.gov.uk/id/local-authority-district/23UB,Cheltenham Borough Council,455818,9365,EMMDEE BUILDING SERVICES,C-L21100-1801,Town Hall-RM-Electrical repairs,19 August 2011,165.28
http://statistics.data.gov.uk/id/local-authority-district/23UB,Cheltenham Borough Council,455820,9379,EMMDEE BUILDING SERVICES,C-L21200-1801,Pump Room-RM-Electrical repairs,19 August 2011,45.00
http://statistics.data.gov.uk/id/local-authority-district/23UB,Cheltenham Borough Council,455830,9302,EMMDEE BUILDING SERVICES,C-PM0030-R022,Pitt.Pump Room-Electrical Works,19 August 2011,150.61
http://statistics.data.gov.uk/id/local-authority-district/23UB,Cheltenham Borough Council,455441,301267/7/2011,ENER-G,C-L11500-1402,Rec Facilities-Electricity,17 August 2011,"3,789.29"
http://statistics.data.gov.uk/id/local-authority-district/23UB,Cheltenham Borough Council,456290,whfa/2150/05,ENVEX CONTRACTORS LTD,C-D21250-3973,Civil Emergency-EA FDGIA allocation,31 August 2011,"49,352.47"
http://statistics.data.gov.uk/id/local-authority-district/23UB,Cheltenham Borough Council,456123,1751,ENTERTAINMENT TRADE MGT (AGENCIES ) LTD,C-1T10F1-3568,Katy Ashworth-Artist Fees,24 August 2011,"2,000.00"
http://statistics.data.gov.uk/id/local-authority-district/23UB,Cheltenham Borough Council,455604,190711,FAIRFORD TREE SERVICES,C-E21100-1804,Car Prks-Off St-RM-External structures,17 August 2011,210.00
http://statistics.data.gov.uk/id/local-authority-district/23UB,Cheltenham Borough Council,455605,1000,FAIRFORD TREE SERVICES,C-H33700-1305,Estate Services-Tree surgery,17 August 2011,600.00
http://statistics.data.gov.uk/id/local-authority-district/23UB,Cheltenham Borough Council,455577,8268,FITLINXX,C-L11500-3167,Rec Facilities-Maintenance Agreements,17 August 2011,"3,250.00"
http://statistics.data.gov.uk/id/local-authority-district/23UB,Cheltenham Borough Council,455577,8268,FITLINXX,C-L11500-3167,Rec Facilities-Maintenance Agreements,17 August 2011,"2,000.00"
http://statistics.data.gov.uk/id/local-authority-district/23UB,Cheltenham Borough Council,455756,S/122209,FLEET LINE MARKERS LTD,C-C22120-3121,Spts/Open Space-Materials-Contract,17 August 2011,"1,755.00"
http://statistics.data.gov.uk/id/local-authority-district/23UB,Cheltenham Borough Council,455379,F0208CTH,FOSTERS EVENT CATERING,C-1T05E1-3212,Sumr Ball Fest-Catering,17 August 2011,634.75
http://statistics.data.gov.uk/id/local-authority-district/23UB,Cheltenham Borough Council,455377,F0184CTH,FOSTERS EVENT CATERING,C-1T41D0-3212,Tea Dances-Catering,17 August 2011,121.90
http://statistics.data.gov.uk/id/local-authority-district/23UB,Cheltenham Borough Council,455378,F0203CTH,FOSTERS EVENT CATERING,C-1T41D0-3212,Tea Dances-Catering,17 August 2011,117.30
http://statistics.data.gov.uk/id/local-authority-district/23UB,Cheltenham Borough Council,456232,12170,FRITZ FRYER ANTIQUE LIGHTING,C-L21200-3101,Pump Room-Equipment purchases,31 August 2011,"1,357.00"
http://statistics.data.gov.uk/id/local-authority-district/23UB,Cheltenham Borough Council,455053,12172,FRITZ FRYER ANTIQUE LIGHTING,C-PM0030-R022,Pitt.Pump Room-Electrical Works,05 August 2011,770.00
http://statistics.data.gov.uk/id/local-authority-district/23UB,Cheltenham Borough Council,455496,45161,FUTRA LTD,C-C24150-3170,Fleet Managemnt-Fuel system maintenance,17 August 2011,904.00
http://statistics.data.gov.uk/id/local-authority-district/23UB,Cheltenham Borough Council,455308,SINV-040197,GELPACK EXCELSIOR LTD,C-N42250-3112,DSO Stores - Stock purchases,11 August 2011,"1,807.92"
http://statistics.data.gov.uk/id/local-authority-district/23UB,Cheltenham Borough Council,455087,025/2011,GET IT SORTED LIMITED,C-C23180-3401,Rcycl Coltn Schms-Printing - general,05 August 2011,225.00
http://statistics.data.gov.uk/id/local-authority-district/23UB,Cheltenham Borough Council,455082,024/2011,GET IT SORTED LIMITED,C-C23180-3920,Rcycl Cltn Schm-Advertising,05 August 2011,687.50
http://statistics.data.gov.uk/id/local-authority-district/23UB,Cheltenham Borough Council,455082,024/2011,GET IT SORTED LIMITED,C-C23180-3920,Rcycl Cltn Schm-Advertising,05 August 2011,687.50
http://statistics.data.gov.uk/id/local-authority-district/23UB,Cheltenham Borough Council,455123,189,GET MEDIA LTD,C-D12495-3920,Cust.Serv.Areas-Advertising,05 August 2011,"1,676.00"
http://statistics.data.gov.uk/id/local-authority-district/23UB,Cheltenham Borough Council,455504,RND1212/0711,GILLMANS SERVICE,C-H33400-3102,Sheltered.Hsg-Equipment rental,17 August 2011,53.52
http://statistics.data.gov.uk/id/local-authority-district/23UB,Cheltenham Borough Council,455510,RND1145/07/11,GILLMANS SERVICE,C-H33400-3102,Sheltered.Hsg-Equipment rental,17 August 2011,46.60
http://statistics.data.gov.uk/id/local-authority-district/23UB,Cheltenham Borough Council,455519,RND125/07/11,GILLMANS SERVICE,C-H33400-3102,Sheltered.Hsg-Equipment rental,17 August 2011,34.15
http://statistics.data.gov.uk/id/local-authority-district/23UB,Cheltenham Borough Council,455518,RND182/07/11,GILLMANS SERVICE,C-H33400-3102,Sheltered.Hsg-Equipment rental,17 August 2011,73.65
http://statistics.data.gov.uk/id/local-authority-district/23UB,Cheltenham Borough Council,455517,RND192/07/11,GILLMANS SERVICE,C-H33400-3102,Sheltered.Hsg-Equipment rental,17 August 2011,49.50
http://statistics.data.gov.uk/id/local-authority-district/23UB,Cheltenham Borough Council,455516,RND187/07/11,GILLMANS SERVICE,C-H33400-3102,Sheltered.Hsg-Equipment rental,17 August 2011,141.90
http://statistics.data.gov.uk/id/local-authority-district/23UB,Cheltenham Borough Council,455515,RND1107/07/11,GILLMANS SERVICE,C-H33400-3102,Sheltered.Hsg-Equipment rental,17 August 2011,33.95
http://statistics.data.gov.uk/id/local-authority-district/23UB,Cheltenham Borough Council,455514,RND1126/07/11,GILLMANS SERVICE,C-H33400-3102,Sheltered.Hsg-Equipment rental,17 August 2011,42.00
http://statistics.data.gov.uk/id/local-authority-district/23UB,Cheltenham Borough Council,455513,RND1131/07/11,GILLMANS SERVICE,C-H33400-3102,Sheltered.Hsg-Equipment rental,17 August 2011,43.00
http://statistics.data.gov.uk/id/local-authority-district/23UB,Cheltenham Borough Council,455512,RND1143/07/11,GILLMANS SERVICE,C-H33400-3102,Sheltered.Hsg-Equipment rental,17 August 2011,46.60
http://statistics.data.gov.uk/id/local-authority-district/23UB,Cheltenham Borough Council,455511,RND1144/07/11,GILLMANS SERVICE,C-H33400-3102,Sheltered.Hsg-Equipment rental,17 August 2011,75.00
http://statistics.data.gov.uk/id/local-authority-district/23UB,Cheltenham Borough Council,455528,RND1145/06/11,GILLMANS SERVICE,C-H33400-3102,Sheltered.Hsg-Equipment rental,17 August 2011,46.60
http://statistics.data.gov.uk/id/local-authority-district/23UB,Cheltenham Borough Council,455527,RND1179/06/11,GILLMANS SERVICE,C-H33400-3102,Sheltered.Hsg-Equipment rental,17 August 2011,60.09
http://statistics.data.gov.uk/id/local-authority-district/23UB,Cheltenham Borough Council,455526,RND1180/06/11,GILLMANS SERVICE,C-H33400-3102,Sheltered.Hsg-Equipment rental,17 August 2011,50.55
http://statistics.data.gov.uk/id/local-authority-district/23UB,Cheltenham Borough Council,455525,RND1203/06/11,GILLMANS SERVICE,C-H33400-3102,Sheltered.Hsg-Equipment rental,17 August 2011,59.65
http://statistics.data.gov.uk/id/local-authority-district/23UB,Cheltenham Borough Council,455524,RND1212/06/11,GILLMANS SERVICE,C-H33400-3102,Sheltered.Hsg-Equipment rental,17 August 2011,53.52
http://statistics.data.gov.uk/id/local-authority-district/23UB,Cheltenham Borough Council,455523,RND112/07/11,GILLMANS SERVICE,C-H33400-3102,Sheltered.Hsg-Equipment rental,17 August 2011,72.30
http://statistics.data.gov.uk/id/local-authority-district/23UB,Cheltenham Borough Council,455522,RND115/07/11,GILLMANS SERVICE,C-H33400-3102,Sheltered.Hsg-Equipment rental,17 August 2011,40.13
http://statistics.data.gov.uk/id/local-authority-district/23UB,Cheltenham Borough Council,455521,RND117/07/11,GILLMANS SERVICE,C-H33400-3102,Sheltered.Hsg-Equipment rental,17 August 2011,40.13
http://statistics.data.gov.uk/id/local-authority-district/23UB,Cheltenham Borough Council,455520,RND124/07/11,GILLMANS SERVICE,C-H33400-3102,Sheltered.Hsg-Equipment rental,17 August 2011,31.45
http://statistics.data.gov.uk/id/local-authority-district/23UB,Cheltenham Borough Council,455542,RND112/06/11,GILLMANS SERVICE,C-H33400-3102,Sheltered.Hsg-Equipment rental,17 August 2011,72.30
http://statistics.data.gov.uk/id/local-authority-district/23UB,Cheltenham Borough Council,455541,RND115/06/11,GILLMANS SERVICE,C-H33400-3102,Sheltered.Hsg-Equipment rental,17 August 2011,40.13
http://statistics.data.gov.uk/id/local-authority-district/23UB,Cheltenham Borough Council,455540,RND117/06/11,GILLMANS SERVICE,C-H33400-3102,Sheltered.Hsg-Equipment rental,17 August 2011,40.13
http://statistics.data.gov.uk/id/local-authority-district/23UB,Cheltenham Borough Council,455539,RND124/06/11,GILLMANS SERVICE,C-H33400-3102,Sheltered.Hsg-Equipment rental,17 August 2011,31.45
http://statistics.data.gov.uk/id/local-authority-district/23UB,Cheltenham Borough Council,455538,RND125/06/11,GILLMANS SERVICE,C-H33400-3102,Sheltered.Hsg-Equipment rental,17 August 2011,34.15
http://statistics.data.gov.uk/id/local-authority-district/23UB,Cheltenham Borough Council,455537,RND182/06/11,GILLMANS SERVICE,C-H33400-3102,Sheltered.Hsg-Equipment rental,17 August 2011,73.65
http://statistics.data.gov.uk/id/local-authority-district/23UB,Cheltenham Borough Council,455536,RND187/06/11,GILLMANS SERVICE,C-H33400-3102,Sheltered.Hsg-Equipment rental,17 August 2011,141.90
http://statistics.data.gov.uk/id/local-authority-district/23UB,Cheltenham Borough Council,455535,RND190/06/11,GILLMANS SERVICE,C-H33400-3102,Sheltered.Hsg-Equipment rental,17 August 2011,35.00
http://statistics.data.gov.uk/id/local-authority-district/23UB,Cheltenham Borough Council,455534,RND192/06/11,GILLMANS SERVICE,C-H33400-3102,Sheltered.Hsg-Equipment rental,17 August 2011,49.50
http://statistics.data.gov.uk/id/local-authority-district/23UB,Cheltenham Borough Council,455533,RND1107/06/11,GILLMANS SERVICE,C-H33400-3102,Sheltered.Hsg-Equipment rental,17 August 2011,33.95
http://statistics.data.gov.uk/id/local-authority-district/23UB,Cheltenham Borough Council,455532,RND1126/06/11,GILLMANS SERVICE,C-H33400-3102,Sheltered.Hsg-Equipment rental,17 August 2011,42.00
http://statistics.data.gov.uk/id/local-authority-district/23UB,Cheltenham Borough Council,455531,RND1131/06/11,GILLMANS SERVICE,C-H33400-3102,Sheltered.Hsg-Equipment rental,17 August 2011,43.00
http://statistics.data.gov.uk/id/local-authority-district/23UB,Cheltenham Borough Council,455530,RND1143/06/11,GILLMANS SERVICE,C-H33400-3102,Sheltered.Hsg-Equipment rental,17 August 2011,46.60
http://statistics.data.gov.uk/id/local-authority-district/23UB,Cheltenham Borough Council,455529,RND1144/06/11,GILLMANS SERVICE,C-H33400-3102,Sheltered.Hsg-Equipment rental,17 August 2011,75.00
http://statistics.data.gov.uk/id/local-authority-district/23UB,Cheltenham Borough Council,455509,RND1179/07/11,GILLMANS SERVICE,C-H33400-3102,Sheltered.Hsg-Equipment rental,17 August 2011,60.09
http://statistics.data.gov.uk/id/local-authority-district/23UB,Cheltenham Borough Council,455505,RND1211/07/11,GILLMANS SERVICE,C-H33400-3102,Sheltered.Hsg-Equipment rental,17 August 2011,62.62
http://statistics.data.gov.uk/id/local-authority-district/23UB,Cheltenham Borough Council,455506,RND1203/07/11,GILLMANS SERVICE,C-H33400-3102,Sheltered.Hsg-Equipment rental,17 August 2011,59.65
http://statistics.data.gov.uk/id/local-authority-district/23UB,Cheltenham Borough Council,455507,RND1181/07/11,GILLMANS SERVICE,C-H33400-3102,Sheltered.Hsg-Equipment rental,17 August 2011,48.15
http://statistics.data.gov.uk/id/local-authority-district/23UB,Cheltenham Borough Council,455508,RND1180/07/11,GILLMANS SERVICE,C-H33400-3102,Sheltered.Hsg-Equipment rental,17 August 2011,50.55
http://statistics.data.gov.uk/id/local-authority-district/23UB,Cheltenham Borough Council,455023,21054,LLOYDS TSB COMMERCIAL LTD,C-E21100-3501,Car Prks-Off St-Hire of outside services,05 August 2011,174.00
http://statistics.data.gov.uk/id/local-authority-district/23UB,Cheltenham Borough Council,455024,21053,LLOYDS TSB COMMERCIAL LTD,C-E21100-3501,Car Prks-Off St-Hire of outside services,05 August 2011,"2,520.00"
http://statistics.data.gov.uk/id/local-authority-district/23UB,Cheltenham Borough Council,455024,21053,LLOYDS TSB COMMERCIAL LTD,C-E21100-3501,Car Prks-Off St-Hire of outside services,05 August 2011,435.00
http://statistics.data.gov.uk/id/local-authority-district/23UB,Cheltenham Borough Council,455024,21053,LLOYDS TSB COMMERCIAL LTD,C-E21100-3501,Car Prks-Off St-Hire of outside services,05 August 2011,435.00
http://statistics.data.gov.uk/id/local-authority-district/23UB,Cheltenham Borough Council,455024,21053,LLOYDS TSB COMMERCIAL LTD,C-E21100-3501,Car Prks-Off St-Hire of outside services,05 August 2011,435.00
http://statistics.data.gov.uk/id/local-authority-district/23UB,Cheltenham Borough Council,456072,21417,LLOYDS TSB COMMERCIAL LTD,C-E21100-3501,Car Prks-Off St-Hire of outside services,24 August 2011,"2,604.00"
http://statistics.data.gov.uk/id/local-authority-district/23UB,Cheltenham Borough Council,456072,21417,LLOYDS TSB COMMERCIAL LTD,C-E21100-3501,Car Prks-Off St-Hire of outside services,24 August 2011,449.50
http://statistics.data.gov.uk/id/local-authority-district/23UB,Cheltenham Borough Council,456072,21417,LLOYDS TSB COMMERCIAL LTD,C-E21100-3501,Car Prks-Off St-Hire of outside services,24 August 2011,449.50
http://statistics.data.gov.uk/id/local-authority-district/23UB,Cheltenham Borough Council,456072,21417,LLOYDS TSB COMMERCIAL LTD,C-E21100-3501,Car Prks-Off St-Hire of outside services,24 August 2011,449.50
http://statistics.data.gov.uk/id/local-authority-district/23UB,Cheltenham Borough Council,456071,21418,LLOYDS TSB COMMERCIAL LTD,C-E21150-1806,Royal Well B/S-RM-Ext. fixtures/fittings,24 August 2011,210.25
http://statistics.data.gov.uk/id/local-authority-district/23UB,Cheltenham Borough Council,455615,1800190744,GLOUCESTERSHIRE COUNTY COUNCIL,C-E36200-4528,On-St Car Prkng-Net income paid to GCC,17 August 2011,"90,675.77"
http://statistics.data.gov.uk/id/local-authority-district/23UB,Cheltenham Borough Council,455608,1800193920,GLOUCESTERSHIRE COUNTY COUNCIL,C-E72500-3501,Built Env Div-Hire of outside services,17 August 2011,"4,568.00"
http://statistics.data.gov.uk/id/local-authority-district/23UB,Cheltenham Borough Council,455746,55466608,GLOS NEWSPAPERS,C-C22110-1301,Parks & Gardens-Routine grounds maint,17 August 2011,286.00
http://statistics.data.gov.uk/id/local-authority-district/23UB,Cheltenham Borough Council,455746,55466608,GLOS NEWSPAPERS,C-D38100-3196,C.Dev.Strategy-Fiesta in the park,17 August 2011,299.97
http://statistics.data.gov.uk/id/local-authority-district/23UB,Cheltenham Borough Council,455828,GLOS CRICKET,GLOUCESTERSHIRE COUNTY CRICKET CLUB,C-Z12310-3940,TIC Agency-External Event Payments,19 August 2011,945.00
http://statistics.data.gov.uk/id/local-authority-district/23UB,Cheltenham Borough Council,455828,GLOS CRICKET,GLOUCESTERSHIRE COUNTY CRICKET CLUB,C-Z12310-3940,TIC Agency-External Event Payments,19 August 2011,-94.50
http://statistics.data.gov.uk/id/local-authority-district/23UB,Cheltenham Borough Council,454850,CERT 1,GPL GREENWAY PARTNERSHIP LIMITED,C-LC6011-C401,Pittville Park-Civil Engineering Cntrctr,03 August 2011,"2,139.40"
http://statistics.data.gov.uk/id/local-authority-district/23UB,Cheltenham Borough Council,455744,0141/11,GRAHAM HARPER ASSOCIATES,C-C22110-1301,Parks & Gardens-Routine grounds maint,17 August 2011,825.00
http://statistics.data.gov.uk/id/local-authority-district/23UB,Cheltenham Borough Council,454775,288,GREENWAY PARTNERSHIP LIMITED,C-C22110-1804,Parks & Gardens-RM-External structures,03 August 2011,27.50
http://statistics.data.gov.uk/id/local-authority-district/23UB,Cheltenham Borough Council,454768,261,GREENWAY PARTNERSHIP LIMITED,C-C22190-1809,Allotments-RM-sanitary works,03 August 2011,67.50
http://statistics.data.gov.uk/id/local-authority-district/23UB,Cheltenham Borough Council,454776,259,GREENWAY PARTNERSHIP LIMITED,C-C23140-1807,Public Convnces-RM-Vandalism,03 August 2011,122.00
http://statistics.data.gov.uk/id/local-authority-district/23UB,Cheltenham Borough Council,454764,297,GREENWAY PARTNERSHIP LIMITED,C-C23140-1809,Public Convnces-RM-sanitary works,03 August 2011,28.13
http://statistics.data.gov.uk/id/local-authority-district/23UB,Cheltenham Borough Council,454765,298,GREENWAY PARTNERSHIP LIMITED,C-C23140-1809,Public Convnces-RM-sanitary works,03 August 2011,68.50
http://statistics.data.gov.uk/id/local-authority-district/23UB,Cheltenham Borough Council,454766,299,GREENWAY PARTNERSHIP LIMITED,C-C23140-1809,Public Convnces-RM-sanitary works,03 August 2011,33.75
http://statistics.data.gov.uk/id/local-authority-district/23UB,Cheltenham Borough Council,454771,291,GREENWAY PARTNERSHIP LIMITED,C-C23140-1809,Public Convnces-RM-sanitary works,03 August 2011,33.75
http://statistics.data.gov.uk/id/local-authority-district/23UB,Cheltenham Borough Council,454774,292,GREENWAY PARTNERSHIP LIMITED,C-C23140-1809,Public Convnces-RM-sanitary works,03 August 2011,22.50
http://statistics.data.gov.uk/id/local-authority-district/23UB,Cheltenham Borough Council,454773,263,GREENWAY PARTNERSHIP LIMITED,C-C23140-1809,Public Convnces-RM-sanitary works,03 August 2011,68.25
http://statistics.data.gov.uk/id/local-authority-district/23UB,Cheltenham Borough Council,454770,307,GREENWAY PARTNERSHIP LIMITED,C-C23140-1809,Public Convnces-RM-sanitary works,03 August 2011,176.00
http://statistics.data.gov.uk/id/local-authority-district/23UB,Cheltenham Borough Council,454763,281,GREENWAY PARTNERSHIP LIMITED,C-D13550-1809,Area Off -E.Hse-RM-sanitary works,03 August 2011,669.91
http://statistics.data.gov.uk/id/local-authority-district/23UB,Cheltenham Borough Council,454767,305,GREENWAY PARTNERSHIP LIMITED,C-D14100-1809,Depot Building-RM-sanitary works,03 August 2011,155.75
http://statistics.data.gov.uk/id/local-authority-district/23UB,Cheltenham Borough Council,454762,294,GREENWAY PARTNERSHIP LIMITED,C-E21100-1809,Car Prks-Off St-RM-sanitary works,03 August 2011,47.50
http://statistics.data.gov.uk/id/local-authority-district/23UB,Cheltenham Borough Council,454769,306,GREENWAY PARTNERSHIP LIMITED,C-E21150-1806,Royal Well B/S-RM-Ext. fixtures/fittings,03 August 2011,33.75
http://statistics.data.gov.uk/id/local-authority-district/23UB,Cheltenham Borough Council,454772,293,GREENWAY PARTNERSHIP LIMITED,C-E63100-1809,Cemetery & Crem-RM-sanitary works,03 August 2011,160.00
http://statistics.data.gov.uk/id/local-authority-district/23UB,Cheltenham Borough Council,454781,303,GREENWAY PARTNERSHIP LIMITED,C-L21100-3103,Town Hall-Equipment repairs & maint,03 August 2011,135.00
http://statistics.data.gov.uk/id/local-authority-district/23UB,Cheltenham Borough Council,455475,809056,GREENWAY PARTNERSHIP LIMITED,C-H44752-1104,Dis Adapts-Tech-Council House repairs,17 August 2011,295.00
http://statistics.data.gov.uk/id/local-authority-district/23UB,Cheltenham Borough Council,455476,279,GREENWAY PARTNERSHIP LIMITED,C-H44752-1104,Dis Adapts-Tech-Council House repairs,17 August 2011,322.00
http://statistics.data.gov.uk/id/local-authority-district/23UB,Cheltenham Borough Council,455477,269,GREENWAY PARTNERSHIP LIMITED,C-H44752-1104,Dis Adapts-Tech-Council House repairs,17 August 2011,"1,389.00"
http://statistics.data.gov.uk/id/local-authority-district/23UB,Cheltenham Borough Council,455727,302,GREENWAY PARTNERSHIP LIMITED,C-L41100-3131,AG & M-Exhibition & Display,17 August 2011,94.00
http://statistics.data.gov.uk/id/local-authority-district/23UB,Cheltenham Borough Council,455727,302,GREENWAY PARTNERSHIP LIMITED,C-L41100-3131,AG & M-Exhibition & Display,17 August 2011,108.00
http://statistics.data.gov.uk/id/local-authority-district/23UB,Cheltenham Borough Council,456120,809059,GREENWAY PARTNERSHIP LIMITED,C-H44752-1104,Dis Adapts-Tech-Council House repairs,24 August 2011,970.33
http://statistics.data.gov.uk/id/local-authority-district/23UB,Cheltenham Borough Council,456209,312,GREENWAY PARTNERSHIP LIMITED,C-L41100-3131,AG & M-Exhibition & Display,31 August 2011,"1,494.00"
http://statistics.data.gov.uk/id/local-authority-district/23UB,Cheltenham Borough Council,456209,312,GREENWAY PARTNERSHIP LIMITED,C-L41100-3131,AG & M-Exhibition & Display,31 August 2011,709.00
http://statistics.data.gov.uk/id/local-authority-district/23UB,Cheltenham Borough Council,456209,312,GREENWAY PARTNERSHIP LIMITED,C-L41100-3131,AG & M-Exhibition & Display,31 August 2011,"1,346.00"
http://statistics.data.gov.uk/id/local-authority-district/23UB,Cheltenham Borough Council,455825,7017906,GVA GRIMLEY LLP,C-D35100-350A,Glos Airport-Consultants Fees,19 August 2011,998.40
http://statistics.data.gov.uk/id/local-authority-district/23UB,Cheltenham Borough Council,455826,7017864,GVA GRIMLEY LLP,C-D35100-350A,Glos Airport-Consultants Fees,19 August 2011,998.40
http://statistics.data.gov.uk/id/local-authority-district/23UB,Cheltenham Borough Council,455029,36064,HAG SHUTTERS & GRILLES LTD,C-L41100-1114,AG & M-Security systems,05 August 2011,150.00
http://statistics.data.gov.uk/id/local-authority-district/23UB,Cheltenham Borough Council,455030,36020,HAG SHUTTERS & GRILLES LTD,C-L41100-1114,AG & M-Security systems,05 August 2011,725.00
http://statistics.data.gov.uk/id/local-authority-district/23UB,Cheltenham Borough Council,455771,G8201107655,HALCROW CONSULTING ENGINEERS,C-D21250-3973,Civil Emergency-EA FDGIA allocation,17 August 2011,"3,555.00"
http://statistics.data.gov.uk/id/local-authority-district/23UB,Cheltenham Borough Council,455772,G8201107653,HALCROW CONSULTING ENGINEERS,C-D21250-3973,Civil Emergency-EA FDGIA allocation,17 August 2011,"2,583.50"
http://statistics.data.gov.uk/id/local-authority-district/23UB,Cheltenham Borough Council,456130,H1505,HALSALL  CONSTRUCTION LIMITED,C-HC4845-C302,Neighbrhd works-Building Contractor,24 August 2011,"139,784.96"
http://statistics.data.gov.uk/id/local-authority-district/23UB,Cheltenham Borough Council,455255,REDACTED,HANOVER HOUSING ASSOCIATION,C-HC7440-C801,DFG.96.Act-Grants,09 August 2011,"6,059.25"
http://statistics.data.gov.uk/id/local-authority-district/23UB,Cheltenham Borough Council,455256,REDACTED,HANOVER HOUSING ASSOCIATION,C-HC7440-C801,DFG.96.Act-Grants,09 August 2011,"1,366.18"
http://statistics.data.gov.uk/id/local-authority-district/23UB,Cheltenham Borough Council,455628,REDACTED,HANOVER HOUSING ASSOCIATION,C-HC7440-C801,DFG.96.Act-Grants,17 August 2011,"8,280.00"
http://statistics.data.gov.uk/id/local-authority-district/23UB,Cheltenham Borough Council,455712,6721951,HEWLETT PACKARD LIMITED,C-D11820-3660,IT Infrastructu-Hardware PC & Servers,17 August 2011,"2,690.00"
http://statistics.data.gov.uk/id/local-authority-district/23UB,Cheltenham Borough Council,456106,4651,HILDEN HOUSE HOTEL,C-D24200-3501,Gottingen Sport-Hire of outside services,24 August 2011,570.83
http://statistics.data.gov.uk/id/local-authority-district/23UB,Cheltenham Borough Council,455175,REDACTED,REDACTED,C-P12250-9104,Tenants Rent-Refunds,05 August 2011,547.55
http://statistics.data.gov.uk/id/local-authority-district/23UB,Cheltenham Borough Council,456125,REDACTED,IDRIS DAVIES LIMITED,C-H22400-3244,Homelessness-Supporting People,24 August 2011,500.00
http://statistics.data.gov.uk/id/local-authority-district/23UB,Cheltenham Borough Council,454796,5030,INDUSTRIAL MEDICAL AND SAFETY SVCE LTD,C-D12300-3250,Personnel and P-Occupational Health,03 August 2011,834.00
http://statistics.data.gov.uk/id/local-authority-district/23UB,Cheltenham Borough Council,456174,REDACTED,REDACTED,C-P12250-9104,Tenants Rent-Refunds,26 August 2011,"1,729.57"
http://statistics.data.gov.uk/id/local-authority-district/23UB,Cheltenham Borough Council,455236,SETTLEMENT,INTERNATIONAL GUITAR FOUNDATION,C-N13125-9206,ASH Ledger-PPR Invoices Paid,09 August 2011,-380.89
http://statistics.data.gov.uk/id/local-authority-district/23UB,Cheltenham Borough Council,455236,SETTLEMENT,INTERNATIONAL GUITAR FOUNDATION,C-N13125-9206,ASH Ledger-PPR Invoices Paid,09 August 2011,-846.96
http://statistics.data.gov.uk/id/local-authority-district/23UB,Cheltenham Borough Council,455236,SETTLEMENT,INTERNATIONAL GUITAR FOUNDATION,C-Z12210-9137,Box Off A/C-PPR Hirers Tkt Pd out,09 August 2011,292.00
http://statistics.data.gov.uk/id/local-authority-district/23UB,Cheltenham Borough Council,455236,SETTLEMENT,INTERNATIONAL GUITAR FOUNDATION,C-Z12210-9137,Box Off A/C-PPR Hirers Tkt Pd out,09 August 2011,"3,254.00"
http://statistics.data.gov.uk/id/local-authority-district/23UB,Cheltenham Borough Council,455104,INV13550,INVARMEX,C-L11500-3167,Rec Facilities-Maintenance Agreements,05 August 2011,610.00
http://statistics.data.gov.uk/id/local-authority-district/23UB,Cheltenham Borough Council,455574,SIN014178,IQL UK LTD,C-L11500-3101,Rec Facilities-Equipment purchases,17 August 2011,10.00
http://statistics.data.gov.uk/id/local-authority-district/23UB,Cheltenham Borough Council,455574,SIN014178,IQL UK LTD,C-L11500-3101,Rec Facilities-Equipment purchases,17 August 2011,565.95
http://statistics.data.gov.uk/id/local-authority-district/23UB,Cheltenham Borough Council,455632,HBO02,HANNA IRVINE,C-L41100-3155,AG & M-Life Long Learning,17 August 2011,875.00
http://statistics.data.gov.uk/id/local-authority-district/23UB,Cheltenham Borough Council,454810,6788,MIKE JAMES,C-1T05E1-3568,Sumr Ball Fest-Artist Fees,03 August 2011,"1,860.00"
http://statistics.data.gov.uk/id/local-authority-district/23UB,Cheltenham Borough Council,456105,1011342,JCA OCCUPATIONAL PSYCHOLOGISTS LIMITED,C-D11100-0204,Training fees/exp (Prof),24 August 2011,750.00
http://statistics.data.gov.uk/id/local-authority-district/23UB,Cheltenham Borough Council,455034,01097,D A JONES,C-C22115-3501,Grass Verges-Hire of outside services,05 August 2011,"6,300.00"
http://statistics.data.gov.uk/id/local-authority-district/23UB,Cheltenham Borough Council,455055,01098,D A JONES,C-C22120-1301,Spts/Open Space-Routine grounds maint,05 August 2011,80.00
http://statistics.data.gov.uk/id/local-authority-district/23UB,Cheltenham Borough Council,455059,01099,D A JONES,C-E21100-8589,Car Prks-Off St-Fees-Staff Car Parks(Sat,05 August 2011,155.00
http://statistics.data.gov.uk/id/local-authority-district/23UB,Cheltenham Borough Council,455059,01099,D A JONES,C-N11250-9227,EXCLUDED,05 August 2011,-31.00
http://statistics.data.gov.uk/id/local-authority-district/23UB,Cheltenham Borough Council,455055,01098,D A JONES,C-N11250-9227,EXCLUDED,05 August 2011,-16.00
http://statistics.data.gov.uk/id/local-authority-district/23UB,Cheltenham Borough Council,455034,01097,D A JONES,C-N11250-9227,EXCLUDED,05 August 2011,"-1,103.20"
http://statistics.data.gov.uk/id/local-authority-district/23UB,Cheltenham Borough Council,455643,H1503,P H JONES LIMITED,C-H46100-1104,Cen.Heat.Serv-Council House repairs,17 August 2011,"44,178.06"
http://statistics.data.gov.uk/id/local-authority-district/23UB,Cheltenham Borough Council,455643,H1503,P H JONES LIMITED,C-HC4862-C302,New Heating Ins-Building Contractor,17 August 2011,"25,025.88"
http://statistics.data.gov.uk/id/local-authority-district/23UB,Cheltenham Borough Council,455643,H1503,P H JONES LIMITED,C-HC4875-C302,Gas-Building Contractor,17 August 2011,"6,402.47"
http://statistics.data.gov.uk/id/local-authority-district/23UB,Cheltenham Borough Council,455456,0811102,MR M JONES AND MRS M JONES,C-H22400-5204,Homelessness-Provision of accommo(B&B),17 August 2011,195.00
http://statistics.data.gov.uk/id/local-authority-district/23UB,Cheltenham Borough Council,455457,0711198,MR M JONES AND MRS M JONES,C-H22400-5204,Homelessness-Provision of accommo(B&B),17 August 2011,195.00
http://statistics.data.gov.uk/id/local-authority-district/23UB,Cheltenham Borough Council,455458,0611171,MR M JONES AND MRS M JONES,C-H22400-5204,Homelessness-Provision of accommo(B&B),17 August 2011,117.90
http://statistics.data.gov.uk/id/local-authority-district/23UB,Cheltenham Borough Council,455071,00001390,JUST FOR LAUGHS LIVE LIMITED,C-1T13D1-3568,Dylan Moran-Artist Fees,05 August 2011,"10,467.04"
http://statistics.data.gov.uk/id/local-authority-district/23UB,Cheltenham Borough Council,455073,0001390A,JUST FOR LAUGHS LIVE LIMITED,C-1T13D1-3568,Dylan Moran-Artist Fees,05 August 2011,"3,234.89"
http://statistics.data.gov.uk/id/local-authority-district/23UB,Cheltenham Borough Council,455035,972,K B BUILDING SERVICES UK LIMITED,C-H4209G-1104,Gen Wks 2209-Council House repairs,05 August 2011,"2,099.00"
http://statistics.data.gov.uk/id/local-authority-district/23UB,Cheltenham Borough Council,454947,974,K B BUILDING SERVICES UK LIMITED,C-H4211G-1104,Gen Wks 2211-Council House repairs,05 August 2011,"1,355.00"
http://statistics.data.gov.uk/id/local-authority-district/23UB,Cheltenham Borough Council,455035,972,K B BUILDING SERVICES UK LIMITED,C-N11250-9227,EXCLUDED,05 August 2011,-268.20
http://statistics.data.gov.uk/id/local-authority-district/23UB,Cheltenham Borough Council,454947,974,K B BUILDING SERVICES UK LIMITED,C-N11250-9227,EXCLUDED,05 August 2011,-238.00
http://statistics.data.gov.uk/id/local-authority-district/23UB,Cheltenham Borough Council,455227,967,K B BUILDING SERVICES UK LIMITED,C-HC4841-C302,Major Voids-Building Contractor,09 August 2011,"12,966.00"
http://statistics.data.gov.uk/id/local-authority-district/23UB,Cheltenham Borough Council,455227,967,K B BUILDING SERVICES UK LIMITED,C-N11250-9227,EXCLUDED,09 August 2011,"-2,132.80"
http://statistics.data.gov.uk/id/local-authority-district/23UB,Cheltenham Borough Council,455644,6219,KITSONS ENVIRONMENTAL EUROPE LIMITED,C-HC4865-C302,Asbestos Mngmnt-Building Contractor,17 August 2011,"5,996.00"
http://statistics.data.gov.uk/id/local-authority-district/23UB,Cheltenham Borough Council,455212,519,KNAPP RICHARDSON,C-D12205-3676,Specialist Legal Advice,05 August 2011,700.00
http://statistics.data.gov.uk/id/local-authority-district/23UB,Cheltenham Borough Council,454949,6623,L AND D SCAFFOLDING LIMITED,C-H4214G-1104,Gen Wks 2214-Council House repairs,05 August 2011,148.00
http://statistics.data.gov.uk/id/local-authority-district/23UB,Cheltenham Borough Council,456280,6631,L AND D SCAFFOLDING LIMITED,C-H4214G-1104,Gen Wks 2214-Council House repairs,31 August 2011,484.00
http://statistics.data.gov.uk/id/local-authority-district/23UB,Cheltenham Borough Council,455913,CD20110000399,LAPPSET PLAYWORLD UK LTD,C-C22120-3104,Spts/Open Space-Sports & play equipment,19 August 2011,603.00
http://statistics.data.gov.uk/id/local-authority-district/23UB,Cheltenham Borough Council,455913,CD20110000399,LAPPSET PLAYWORLD UK LTD,C-C22120-3104,Spts/Open Space-Sports & play equipment,19 August 2011,603.00
http://statistics.data.gov.uk/id/local-authority-district/23UB,Cheltenham Borough Council,455641,H1499,LOVELL PARTNERSHIPS LTD,C-HC4844-C302,Internal Imp-Building Contractor,17 August 2011,"6,544.44"
http://statistics.data.gov.uk/id/local-authority-district/23UB,Cheltenham Borough Council,456192,22544,MARCHANTS COACHES,C-L16100-3501,Holiday Rec-Hire of outside services,31 August 2011,"2,350.00"
http://statistics.data.gov.uk/id/local-authority-district/23UB,Cheltenham Borough Council,455453,108,MISS A MARAFFI,C-H22400-5204,Homelessness-Provision of accommo(B&B),17 August 2011,460.00
http://statistics.data.gov.uk/id/local-authority-district/23UB,Cheltenham Borough Council,455454,106,MISS A MARAFFI,C-H22400-5204,Homelessness-Provision of accommo(B&B),17 August 2011,480.00
http://statistics.data.gov.uk/id/local-authority-district/23UB,Cheltenham Borough Council,455763,2500,MARK WROOT AGRICULTURAL & GARDENS SERV,C-C22115-3501,Grass Verges-Hire of outside services,17 August 2011,"3,969.00"
http://statistics.data.gov.uk/id/local-authority-district/23UB,Cheltenham Borough Council,456131,H1501,MANSELL CONSTRUCTION SERVICES LTD,C-HC4843-C302,External Imp-Building Contractor,24 August 2011,"58,445.99"
http://statistics.data.gov.uk/id/local-authority-district/23UB,Cheltenham Borough Council,455184,19651,MANSELL CONSTRUCTION SERVICES LTD,C-HC4849-C302,Concrete repair-Building Contractor,05 August 2011,"49,461.17"
http://statistics.data.gov.uk/id/local-authority-district/23UB,Cheltenham Borough Council,455100,0020,MARK MASTERS,C-L11500-3522,Rec Facilities-Coaching scheme,05 August 2011,420.00
http://statistics.data.gov.uk/id/local-authority-district/23UB,Cheltenham Borough Council,455100,0020,MARK MASTERS,C-L11500-3522,Rec Facilities-Coaching scheme,05 August 2011,105.00
http://statistics.data.gov.uk/id/local-authority-district/23UB,Cheltenham Borough Council,455100,0020,MARK MASTERS,C-L11500-3522,Rec Facilities-Coaching scheme,05 August 2011,175.00
http://statistics.data.gov.uk/id/local-authority-district/23UB,Cheltenham Borough Council,455100,0020,MARK MASTERS,C-L11500-3522,Rec Facilities-Coaching scheme,05 August 2011,210.00
http://statistics.data.gov.uk/id/local-authority-district/23UB,Cheltenham Borough Council,455100,0020,MARK MASTERS,C-L11500-3522,Rec Facilities-Coaching scheme,05 August 2011,21.00
http://statistics.data.gov.uk/id/local-authority-district/23UB,Cheltenham Borough Council,455100,0020,MARK MASTERS,C-L11500-3522,Rec Facilities-Coaching scheme,05 August 2011,105.00
http://statistics.data.gov.uk/id/local-authority-district/23UB,Cheltenham Borough Council,455165,REDACTED,MEARS HOME IMPROVEMENTS LTD,C-HC7440-C801,DFG.96.Act-Grants,05 August 2011,"5,056.88"
http://statistics.data.gov.uk/id/local-authority-district/23UB,Cheltenham Borough Council,455166,REDACTED,MEARS HOME IMPROVEMENTS LTD,C-HC7440-C801,DFG.96.Act-Grants,05 August 2011,"29,772.09"
http://statistics.data.gov.uk/id/local-authority-district/23UB,Cheltenham Borough Council,455167,REDACTED,MEARS HOME IMPROVEMENTS LTD,C-HC7440-C801,DFG.96.Act-Grants,05 August 2011,"26,334.38"
http://statistics.data.gov.uk/id/local-authority-district/23UB,Cheltenham Borough Council,455260,REDACTED,MEARS HOME IMPROVEMENTS LTD,C-HC7440-C801,DFG.96.Act-Grants,09 August 2011,"4,594.50"
http://statistics.data.gov.uk/id/local-authority-district/23UB,Cheltenham Borough Council,455259,REDACTED,MEARS HOME IMPROVEMENTS LTD,C-HC7440-C801,DFG.96.Act-Grants,09 August 2011,"10,498.03"
http://statistics.data.gov.uk/id/local-authority-district/23UB,Cheltenham Borough Council,455257,REDACTED,MEARS HOME IMPROVEMENTS LTD,C-HC7440-C801,DFG.96.Act-Grants,09 August 2011,"6,305.00"
http://statistics.data.gov.uk/id/local-authority-district/23UB,Cheltenham Borough Council,455258,REDACTED,MEARS HOME IMPROVEMENTS LTD,C-HC7440-C801,DFG.96.Act-Grants,09 August 2011,"1,577.42"
http://statistics.data.gov.uk/id/local-authority-district/23UB,Cheltenham Borough Council,455261,REDACTED,MEARS HOME IMPROVEMENTS LTD,C-HC7445-C801,Adapt Sup Grant-Grants,09 August 2011,"3,712.24"
